Workbook

Sheet Home
A1: INCREASED RENEWABLE ENERGY AND ENERGY EFFICIENCY BY INTEGRATIUNG, COMBINING AND EMPOWERING URBAN WASTEWATER AND ORGANIC WASTE MANAGEMENT SYSTEMS

Sheet Front
A1: 1. Information about WWTP and Substrate
A2: Click -WWTP- to insert information about WWTP (Location, Address …)
A6: Click -Substrate- to insert information about available substrates
A9: 2. Treatment processes
A17: 3. Urban Compatibility Assessment
A22: 4. Economic parameters
A27: 5. Life Cycle Assessment

Sheet Report
B1: INCREASED RENEWABLE ENERGY AND ENERGY EFFICIENCY BY INTEGRATING, COMBINING AND EMPOWERING URBAN WASTEWATER AND ORGANIC WASTE MANAGEMENT SYSTEMS.
B6: Useful information about this tool
B8: Input data
B9: _WWTP_ description
B11: Name of WWTP/operator | E11: =+'Plant description'!C2 -> 
B12: Address of WWTP | E12: =+'Plant description'!C3 -> 
B13: Contact person | E13: =+'Plant description'!C5 -> 
B14: Country | E14: =+'Plant description'!C1 -> 0
B15: Year of commissioning of the last expansion stage | E15: =+'Plant description'!C6 -> 
B16: Treatment capacity | E16: =+'Plant description'!C8 -> 
B17: Connected population | E17: =+'Plant description'!C9 -> 50000
B19: _Substrate_ analyzed
D21: Tons | E21: Total Solid (%) | F21: C feed (% solid) | G21: H feed (% solid) | H21: O feed (% solid) | I21: N feed (% solid) | J21: Ash feed (% solid) | K21: VM feed (% solid) | L21: FC feed (% solid) | M21: Incomes price [€/t]
B22: Primary Sludge | D22: =+Feedstock_Database!F5 -> 0 | E22: =+Feedstock_Database!G5 -> 0 | F22: =+Feedstock_Database!H5 -> 0 | G22: =+Feedstock_Database!I5 -> 0 | H22: =+Feedstock_Database!J5 -> 0 | I22: =+Feedstock_Database!K5 -> 0 | J22: =+Feedstock_Database!L5 -> 0 | K22: =+Feedstock_Database!M5 -> 0 | L22: =+Feedstock_Database!N5 -> 0 | M22: =+'Economic evaluation'!D47 -> 0
B23: Secondary Sludge | D23: =+Feedstock_Database!F7 -> 0 | E23: =+Feedstock_Database!G7 -> 0 | F23: =+Feedstock_Database!H7 -> 0 | G23: =+Feedstock_Database!I7 -> 0 | H23: =+Feedstock_Database!J7 -> 0 | I23: =+Feedstock_Database!K7 -> 0 | J23: =+Feedstock_Database!L7 -> 0 | K23: =+Feedstock_Database!M7 -> 0 | L23: =+Feedstock_Database!N7 -> 0 | M23: =+'Economic evaluation'!D48 -> 0
B24: Organic fraction MSW | D24: =+Feedstock_Database!F9 -> 0 | E24: =+Feedstock_Database!G9 -> 0 | F24: =+Feedstock_Database!H9 -> 0 | G24: =+Feedstock_Database!I9 -> 0 | H24: =+Feedstock_Database!J9 -> 0 | I24: =+Feedstock_Database!K9 -> 0 | J24: =+Feedstock_Database!L9 -> 0 | K24: =+Feedstock_Database!M9 -> 0 | L24: =+Feedstock_Database!N9 -> 0 | M24: =+'Economic evaluation'!D49 -> 0
B25: Digestate | D25: =+Feedstock_Database!F11 -> 0 | E25: =+Feedstock_Database!G11 -> 0 | F25: =+Feedstock_Database!H11 -> 0 | G25: =+Feedstock_Database!I11 -> 0 | H25: =+Feedstock_Database!J11 -> 0 | I25: =+Feedstock_Database!K11 -> 0 | J25: =+Feedstock_Database!L11 -> 0 | K25: =+Feedstock_Database!M11 -> 0 | L25: =+Feedstock_Database!N11 -> 0 | M25: =+'Economic evaluation'!D50 -> 0
B26: Food industry waste | D26: =+Feedstock_Database!F13 -> 0 | E26: =+Feedstock_Database!G13 -> 0 | F26: =+Feedstock_Database!H13 -> 0 | G26: =+Feedstock_Database!I13 -> 0 | H26: =+Feedstock_Database!J13 -> 0 | I26: =+Feedstock_Database!K13 -> 0 | J26: =+Feedstock_Database!L13 -> 0 | K26: =+Feedstock_Database!M13 -> 0 | L26: =+Feedstock_Database!N13 -> 0 | M26: =+'Economic evaluation'!D51 -> 0
B27: Animal blood | D27: =+Feedstock_Database!F15 -> 0 | E27: =+Feedstock_Database!G15 -> 0 | F27: =+Feedstock_Database!H15 -> 0 | G27: =+Feedstock_Database!I15 -> 0 | H27: =+Feedstock_Database!J15 -> 0 | I27: =+Feedstock_Database!K15 -> 0 | J27: =+Feedstock_Database!L15 -> 0 | K27: =+Feedstock_Database!M15 -> 0 | L27: =+Feedstock_Database!N15 -> 0 | M27: =+'Economic evaluation'!D52 -> 0
B28: Animal fat | D28: =+Feedstock_Database!F17 -> 0 | E28: =+Feedstock_Database!G17 -> 0 | F28: =+Feedstock_Database!H17 -> 0 | G28: =+Feedstock_Database!I17 -> 0 | H28: =+Feedstock_Database!J17 -> 0 | I28: =+Feedstock_Database!K17 -> 0 | J28: =+Feedstock_Database!L17 -> 0 | K28: =+Feedstock_Database!M17 -> 0 | L28: =+Feedstock_Database!N17 -> 0 | M28: =+'Economic evaluation'!D53 -> 0
B29: Other substrate | D29: =+Feedstock_Database!F19 -> 0 | E29: =+Feedstock_Database!G19 -> 0 | F29: =+Feedstock_Database!H19 -> 0 | G29: =+Feedstock_Database!I19 -> 0 | H29: =+Feedstock_Database!J19 -> 0 | I29: =+Feedstock_Database!K19 -> 0 | J29: =+Feedstock_Database!L19 -> 0 | K29: =+Feedstock_Database!M19 -> 0 | L29: =+Feedstock_Database!N19 -> 0 | M29: =+'Economic evaluation'!D54 -> 0
B31: Wastewater Treatment Plant_EE/RES_ Modify Parameters
B33: WWTP Properties_Energy Efficiency
B34: Qww Daily average of wastewater flow [m3/d] | E34: =+EE_WWTP!D23 -> 0 | H34: Ambient air temperature [°C] | K34: =+EE_WWTP!D55 -> 0
B35: CODconc Daily average of COD inflow concentration [mg/l] | E35: =+EE_WWTP!D26 -> 0 | H35: Building surface [m2] | K35: =+EE_WWTP!D56 -> 0
B36: Digestion tower temperature [°C] | E36: =+EE_WWTP!D47 -> 0 | H36: Building heat demand [kWh/(y*m2)] (depending on the age of the building) | K36: =+EE_WWTP!D57 -> 0
B39: ECel,tot Total electric energy consumption [kWh/d] | E39: =+IF(EE_WWTP!E103=0,EE_WWTP!C103,EE_WWTP!E103) -> 0
B43: Inflow pumping station and mechanical pre-treatment | H43: Sludge treatment
B44: Pumping station [kWh/d] | E44: =+IF(EE_WWTP!C88=0,"NA",EE_WWTP!C88) -> NA | H44: Thickening [kWh/d] | K44: =+IF(EE_WWTP!C97=0,"NA",EE_WWTP!C97) -> NA
B45: Screen [kWh/d] | E45: =+IF(EE_WWTP!C89=0,"NA",EE_WWTP!C89) -> NA | H45: Digestion [kWh/d] | K45: =+IF(EE_WWTP!C98=0,"NA",EE_WWTP!C98) -> NA
B46: Sand trap and primary clarifier [kWh/d] | E46: =+IF(EE_WWTP!C90=0,"NA",EE_WWTP!C90) -> NA | H46: Dewatering [kWh/d] | K46: =+IF(EE_WWTP!C99=0,"NA",EE_WWTP!C99) -> NA
B47: Mechanical-biological treatment | H47: Infrastructure
B48: Aeration [kWh/d] | E48: =+IF(EE_WWTP!C92=0,"NA",EE_WWTP!C92) -> NA | H48: Heating [kWh/d] | K48: =+IF(EE_WWTP!C101=0,"NA",EE_WWTP!C101) -> NA
B49: Stirrers [kWh/d] | E49: =+IF(EE_WWTP!C93=0,"NA",EE_WWTP!C93) -> NA | H49: Misc. infrastructure [kWh/d] | K49: =+IF(EE_WWTP!C102=0,"NA",EE_WWTP!C102) -> NA
B50: Return sludge pumps [kWh/d] | E50: =+IF(EE_WWTP!C94=0,"NA",EE_WWTP!C94) -> NA
B51: Miscellanious (sec. clarifier) [kWh/d] | E51: =+IF(EE_WWTP!C95=0,"NA",EE_WWTP!C95) -> NA
B53: WWTP Properties_Renewable Energy Sources
B54: Solar power
B55: Photovoltaics | F55: Solar thermal | J55: Hybrid collectors
B56: Area for solar energy [m2] | D56: =+IF(RES_WWTP!M3=0,"NA",RES_WWTP!M3) -> NA | F56: Area for solar energy [m2] | H56: =+IF(RES_WWTP!M4=0,"NA",RES_WWTP!M4) -> NA | J56: Area for solar energy [m2] | L56: =+IF(RES_WWTP!M5=0,"NA",RES_WWTP!M5) -> NA
B57: Electrical efficiency (%) | D57: =+IF(RES_WWTP!N3=0,"NA",RES_WWTP!N3) -> NA | F57: Thermal efficiency (%) | H57: =+IF(RES_WWTP!O4=0,"NA",RES_WWTP!O4) -> NA | J57: Electrical efficiency (%) | L57: =+IF(RES_WWTP!N5=0,"NA",RES_WWTP!N5) -> NA
J58: Thermal efficiency (%) | L58: =+IF(RES_WWTP!O5=0,"NA",RES_WWTP!O5) -> NA
B60: Hydro power
B61: Usable height [m] | G61: =+IF(RES_WWTP!F22=0,"NA",RES_WWTP!F22) -> NA
B62: Turbine and generator efficiency (%) | G62: =+IF(RES_WWTP!F23=0,"NA",RES_WWTP!F23) -> NA
B64: Energy from biogas
B65: Digester gas fed into the grid (%) | G65: =+LCA!J40 -> 0 | H65: Status quo
B66: Digester gas fed into the grid (%) | G66: =+LCA!K40 -> 100 | H66: Future situation
B67: Anaerobic Digestion_ Modify Parameters
F69: Primary Sludge | G69: Secondary Sludge | H69: Organic fraction MSW | I69: Food industry waste | J69: Animal blood | K69: Animal fat | L69: Other substrate
B70: Specific production of biogas [m3/kgVS] | F70: =+IF(Anaerobic_Digestion!$D$10="Wet",Anaerobic_Digestion!D15,IF(Anaerobic_Digestion!$D$10="Semy-Dry",Anaerobic_Digestion!Z15,IF(Anaerobic_Digestion!$D$10="Dry",Anaerobic_Digestion!AS15,0))) ->  | G70: =+IF(Anaerobic_Digestion!$D$10="Wet",Anaerobic_Digestion!E15,IF(Anaerobic_Digestion!$D$10="Semy-Dry",Anaerobic_Digestion!AA15,IF(Anaerobic_Digestion!$D$10="Dry",Anaerobic_Digestion!AT15,0))) ->  | H70: =+IF(Anaerobic_Digestion!$D$10="Wet",Anaerobic_Digestion!F15,IF(Anaerobic_Digestion!$D$10="Semy-Dry",Anaerobic_Digestion!AB15,IF(Anaerobic_Digestion!$D$10="Dry",Anaerobic_Digestion!AU15,0))) ->  | I70: =+IF(Anaerobic_Digestion!$D$10="Wet",Anaerobic_Digestion!G15,IF(Anaerobic_Digestion!$D$10="Semy-Dry",Anaerobic_Digestion!AC15,IF(Anaerobic_Digestion!$D$10="Dry",Anaerobic_Digestion!AV15,0))) ->  | J70: =+IF(Anaerobic_Digestion!$D$10="Wet",Anaerobic_Digestion!H15,IF(Anaerobic_Digestion!$D$10="Semy-Dry",Anaerobic_Digestion!AD15,IF(Anaerobic_Digestion!$D$10="Dry",Anaerobic_Digestion!AW15,0))) ->  | K70: =+IF(Anaerobic_Digestion!$D$10="Wet",Anaerobic_Digestion!I15,IF(Anaerobic_Digestion!$D$10="Semy-Dry",Anaerobic_Digestion!AE15,IF(Anaerobic_Digestion!$D$10="Dry",Anaerobic_Digestion!AX15,0))) ->  | L70: =+IF(Anaerobic_Digestion!$D$10="Wet",Anaerobic_Digestion!J15,IF(Anaerobic_Digestion!$D$10="Semy-Dry",Anaerobic_Digestion!AF15,IF(Anaerobic_Digestion!$D$10="Dry",Anaerobic_Digestion!AY15,0))) -> 
B71: Type of hydrolysis | E71: =+IF(UpDateAnaerobicDigestion!B25="Thermo-chemical","You have chosen to use: Thermo-chemical hydrolysis (65°C) for secondary sludge.",IF(UpDateAnaerobicDigestion!B25="Thermo-pressure","You have chosen to use: Thermo-pressure hydrolysis (165°C) for secondary sludge.","No hydrolysis.")) -> No hydrolysis.
B72: =+IF(OR(UpDateAnaerobicDigestion!B25="Thermo-chemical",UpDateAnaerobicDigestion!B25="Thermo-pressure"),"Pay attention that choosing this technology you will have an increase of non biodegradable COD!","") -> 
B74: LHV Biogas [MJ/m3] | G74: =+IF(Anaerobic_Digestion!$D$10="Wet",Anaerobic_Digestion!C47,IF(Anaerobic_Digestion!$D$10="Semy-Dry",Anaerobic_Digestion!Y47,IF(Anaerobic_Digestion!$D$10="Dry",Anaerobic_Digestion!AR47,0))) -> 
B75: CHP Electric Yield % (Gas engine) | G75: =+IF(Anaerobic_Digestion!$D$10="Wet",Anaerobic_Digestion!C56,IF(Anaerobic_Digestion!$D$10="Semy-Dry",Anaerobic_Digestion!Y56,IF(Anaerobic_Digestion!$D$10="Dry",Anaerobic_Digestion!AR56,0))) -> 
B76: CHP Thermal Yield % (Gas engine) | G76: =+IF(Anaerobic_Digestion!$D$10="Wet",Anaerobic_Digestion!C67,IF(Anaerobic_Digestion!$D$10="Semy-Dry",Anaerobic_Digestion!Y67,IF(Anaerobic_Digestion!$D$10="Dry",Anaerobic_Digestion!AR67,0))) -> 
B78: Biogas upgrading process | E78: =+IF(UpGrading!F2="Membrane","You have chosen to use Membrane.",IF(UpGrading!F2="PWA","You have chosen to use PWA.", IF(UpGrading!F2="PSA","You have chosen to use PSA.","No biogas upgrading."))) -> No biogas upgrading.
B79: Power to Gas | D79: =+IF(UpDateAnaerobicDigestion!F1="SI","You have chosen to use PtG.","You haven't chosen to use PtG.") -> You haven't chosen to use PtG.
B81: Urban Compatibility Assessment_Modify Parameters
B82: Status quo
F83: Type 1 a | G83: Type 1b | H83: Type 1c | I83: Type 2a | J83: Type 2b | K83: Type 3 | L83: Type 4
B84: Gross development area [ha] | F84: =+UCA!D2 -> 3333 | G84: =+UCA!E2 ->  | H84: =+UCA!F2 ->  | I84: =+UCA!G2 ->  | J84: =+UCA!H2 ->  | K84: =+UCA!I2 ->  | L84: NA
B85: Specific thermal energy demand [MWh/(ha*y)] | F85: =+UCA!D3 -> 333 | G85: =+UCA!E3 -> 0 | H85: =+UCA!F3 -> 0 | I85: =+UCA!G3 -> 0 | J85: =+UCA!H3 -> 0 | K85: NA | L85: NA
B86: Heat demand [MWh/y] | F86: NA | G86: NA | H86: NA | I86: NA | J86: NA | K86: =+UCA!I4 ->  | L86: =+UCA!J4 -> 
B87: Settlement specific grid length (internal) [m/ha] | F87: =+UCA!D9 -> 0 | G87: =+UCA!E9 -> 0 | H87: =+UCA!F9 -> 0 | I87: =+UCA!G9 -> 0 | J87: =+UCA!H9 -> 0 | K87: =+UCA!I9 -> 0 | L87: NA
B88: Grid length (external) [m] | F88: =+UCA!G11 -> 
B90: Future situation
F91: Type 1 a | G91: Type 1b | H91: Type 1c | I91: Type 2a | J91: Type 2b | K91: Type 3 | L91: Type 4
B92: Degree of connection (%) | F92: =+UCA!D19 ->  | G92: =+UCA!E19 ->  | H92: =+UCA!F19 ->  | I92: =+UCA!G19 ->  | J92: =+UCA!H19 ->  | K92: =+UCA!I19 ->  | L92: NA
B93: Degree of densification (%) | F93: =+UCA!D21 ->  | G93: =+UCA!E21 ->  | H93: =+UCA!F21 ->  | I93: =+UCA!G21 ->  | J93: =+UCA!H21 ->  | K93: =+UCA!I21 ->  | L93: NA
B94: Degree of energy savings (%) | F94: =+UCA!D24 ->  | G94: =+UCA!E24 ->  | H94: =+UCA!F24 ->  | I94: =+UCA!G24 ->  | J94: =+UCA!H24 ->  | K94: =+UCA!I24 ->  | L94: =+UCA!J24 -> 
B95: Share of solar thermal energy provision (%) | F95: =+UCA!D26 ->  | G95: =+UCA!E26 ->  | H95: =+UCA!F26 ->  | I95: =+UCA!G26 ->  | J95: =+UCA!H26 ->  | K95: =+UCA!I26 ->  | L95: =+UCA!J26 -> 
B97: Economic parameters_Modify Parameters
G99: =+'Plant description'!C1 -> 0
B100: Price of electricity | F100: €/kWh | G100: =+'Economic evaluation'!D69 -> 0
B101: CNG price for cars | F101: €/Nm3 | G101: =+'Economic evaluation'!D68 -> 0
B102: Selling price of electricity | F102: €/kWh | G102: =+'Economic evaluation'!D66 -> 0
B103: Selling price for biomethane with subsidy | F103: €/Nm3 | G103: =+'Economic evaluation'!D65 -> 0
B104: Selling price for heat | F104: €/GJ | G104: =+'Economic evaluation'!D67 -> 0
B105: Disposal price sludge | F105: €/t | G105: =+'Economic evaluation'!D46 -> 0
B107: Lyfe Cycle Assessment_Modify Parameters
G108: Status quo | J108: Future situation
B109: Acetic acid | F109: kg/y | G109: =+IF(Input!C68=0,"NA",Input!C68) -> NA | J109: =+IF(Input!E68=0,"NA",Input!E68) -> NA
B110: Methanol | F110: kg/y | G110: =+IF(Input!C69=0,"NA",Input!C69) -> NA | J110: =+IF(Input!E69=0,"NA",Input!E69) -> NA
B111: Ferric chloride | F111: kg/y | G111: =+IF(Input!C70=0,"NA",Input!C70) -> NA | J111: =+IF(Input!E70=0,"NA",Input!E70) -> NA
B112: Polyaluminiumchlorid | F112: kg/y | G112: =+IF(Input!C71=0,"NA",Input!C71) -> NA | J112: =+IF(Input!E71=0,"NA",Input!E71) -> NA
B113: Polymer | F113: kg/y | G113: =+IF(Input!C72=0,"NA",Input!C72) -> NA | J113: =+IF(Input!E72=0,"NA",Input!E72) -> NA
B115: Offgas treatment (From biogas Upgrading) | G115: =+LCA!J52 ->  | J115: =+LCA!K52 -> 
B116: Sludge Use | G116: =+LCA!J57 -> Co-Inceneration | J116: =+LCA!K57 -> Co-Inceneration
B120: Results
B122: WWTP Properties_Energy Efficiency
B124: Electric energy consumption | I124: Standard range
B125: WWTP total [kWh/PE120/y] | G125: =+EE_WWTP!C158 ->  | I125: =+EE_WWTP!F158 -> 20 | K125: =+EE_WWTP!G158 -> 50
B126: 1) inflow pumping station and mechanical pre-treatment [kWh/PE120/y] | G126: =+EE_WWTP!C159 ->  | I126: =+EE_WWTP!F159 -> 2.5 | K126: =+EE_WWTP!G159 -> 5.5
B127: 1.1 pumping stations [kWh/PE120/y] | G127: =+EE_WWTP!C160 ->  | I127: =+EE_WWTP!F160 -> 1.5 | K127: =+EE_WWTP!G160 -> 3.5
B128: 1.2 screening [kWh/PE120/y] | G128: =+EE_WWTP!C161 ->  | I128: =+EE_WWTP!F161 -> 0.5 | K128: =+EE_WWTP!G161 -> 1
B129: 1.3 sand trap and primary clarifier [kWh/PE120/y] | G129: =+EE_WWTP!C162 ->  | I129: =+EE_WWTP!F162 -> 0.5 | K129: =+EE_WWTP!G162 -> 1
B130: 2) mechanical-biological treatment [kWh/PE120/y] | G130: =+EE_WWTP!C163 ->  | I130: =+EE_WWTP!F163 -> 14.5 | K130: =+EE_WWTP!G163 -> 33
B131: 2.1 aeration [kWh/PE120/y] | G131: =+EE_WWTP!C164 ->  | I131: =+EE_WWTP!F164 -> 11.5 | K131: =+EE_WWTP!G164 -> 22
B132: 2.2 stirrers [kWh/PE120/y] | G132: =+EE_WWTP!C165 ->  | I132: =+EE_WWTP!F165 -> 1.5 | K132: =+EE_WWTP!G165 -> 4.5
B133: 2.3 return sludge pumps [kWh/PE120/y] | G133: =+EE_WWTP!C166 ->  | I133: =+EE_WWTP!F166 -> 1 | K133: =+EE_WWTP!G166 -> 4.5
B134: 2.4 miscellanious (sec. clarifier) [kWh/PE120/y] | G134: =+EE_WWTP!C167 ->  | I134: =+EE_WWTP!F167 -> 0.5 | K134: =+EE_WWTP!G167 -> 2
B135: 3) sludge treatment [kWh/PE120/y] | G135: =+EE_WWTP!C168 ->  | I135: =+EE_WWTP!F168 -> 2 | K135: =+EE_WWTP!G168 -> 7
B136: 3.1 thickening [kWh/PE120/y] | G136: =+EE_WWTP!C169 ->  | I136: =+EE_WWTP!F169 -> 0.5 | K136: =+EE_WWTP!G169 -> 1
B137: 3.2 digestion [kWh/PE120/y] | G137: =+EE_WWTP!C170 ->  | I137: =+EE_WWTP!F170 -> 1 | K137: =+EE_WWTP!G170 -> 2.5
B138: 3.3 dewatering [kWh/PE120/y] | G138: =+EE_WWTP!C171 ->  | I138: =+EE_WWTP!F171 -> 0.5 | K138: =+EE_WWTP!G171 -> 3.5
B139: 4) infrastructure [kWh/PE120/y] | G139: =+EE_WWTP!C172 ->  | I139: =+EE_WWTP!F172 -> 1 | K139: =+EE_WWTP!G172 -> 4.5
B140: 4.1 heating [kWh/PE120/y] | G140: =+EE_WWTP!C173 ->  | I140: =+EE_WWTP!F173 -> 0 | K140: =+EE_WWTP!G173 -> 2.5
B141: 4.2 misc. Infrastructure [kWh/PE120/y] | G141: =+EE_WWTP!C174 ->  | I141: =+EE_WWTP!F174 -> 1 | K141: =+EE_WWTP!G174 -> 2
B143: Thermal energy comsumption
B144: WWTP total [kWh/PE120/y] | G144: =+EE_WWTP!C208 ->  | I144: =+EE_WWTP!F208 -> 0 | K144: =+EE_WWTP!G208 -> 30
B145: sludge heating [kWh/PE120/y] | G145: =+EE_WWTP!C209 ->  | I145: =+EE_WWTP!F209 -> 8 | K145: =+EE_WWTP!G209 -> 12
B146: transmission loss, digester tower heating [kWh/PE120/y] | G146: =+EE_WWTP!C210 ->  | I146: =+EE_WWTP!F210 -> 0 | K146: =+EE_WWTP!G210 -> 4
B147: generation, storage and distrivution loss [kWh/PE120/y] | G147: =+EE_WWTP!C211 ->  | I147: =+EE_WWTP!F211 -> 0 | K147: =+EE_WWTP!G211 -> 2
B148: heat for buildings [kWh/PE120/y] | G148: =+EE_WWTP!C212 ->  | I148: =+EE_WWTP!F212 -> 0 | K148: =+EE_WWTP!G212 -> 2
B150: WWTP Properties_Renewable Energy Sources
D152: energy content (feed-in to gas grid) [kWh/month] | G152: utilisable electric energy [kWh/month] | J152: utilisable thermal energy [kWh/month]
B153: =+RES_WWTP!M21 -> January | D153: =+RES_WWTP!N21 ->  | G153: =+RES_WWTP!O21 ->  | J153: =+RES_WWTP!P21 -> 
B154: =+RES_WWTP!M22 -> February | D154: =+RES_WWTP!N22 ->  | G154: =+RES_WWTP!O22 ->  | J154: =+RES_WWTP!P22 -> 
B155: =+RES_WWTP!M23 -> March | D155: =+RES_WWTP!N23 ->  | G155: =+RES_WWTP!O23 ->  | J155: =+RES_WWTP!P23 -> 
B156: =+RES_WWTP!M24 -> April | D156: =+RES_WWTP!N24 ->  | G156: =+RES_WWTP!O24 ->  | J156: =+RES_WWTP!P24 -> 
B157: =+RES_WWTP!M25 -> May | D157: =+RES_WWTP!N25 ->  | G157: =+RES_WWTP!O25 ->  | J157: =+RES_WWTP!P25 -> 
B158: =+RES_WWTP!M26 -> June | D158: =+RES_WWTP!N26 ->  | G158: =+RES_WWTP!O26 ->  | J158: =+RES_WWTP!P26 -> 
B159: =+RES_WWTP!M27 -> July | D159: =+RES_WWTP!N27 ->  | G159: =+RES_WWTP!O27 ->  | J159: =+RES_WWTP!P27 -> 
B160: =+RES_WWTP!M28 -> August | D160: =+RES_WWTP!N28 ->  | G160: =+RES_WWTP!O28 ->  | J160: =+RES_WWTP!P28 -> 
B161: =+RES_WWTP!M29 -> September | D161: =+RES_WWTP!N29 ->  | G161: =+RES_WWTP!O29 ->  | J161: =+RES_WWTP!P29 -> 
B162: =+RES_WWTP!M30 -> October | D162: =+RES_WWTP!N30 ->  | G162: =+RES_WWTP!O30 ->  | J162: =+RES_WWTP!P30 -> 
B163: =+RES_WWTP!M31 -> November | D163: =+RES_WWTP!N31 ->  | G163: =+RES_WWTP!O31 ->  | J163: =+RES_WWTP!P31 -> 
B164: =+RES_WWTP!M32 -> December | D164: =+RES_WWTP!N32 ->  | G164: =+RES_WWTP!O32 ->  | J164: =+RES_WWTP!P32 -> 
B170: Anaerobic Digestion
B171: =+IF(AND(Anaerobic_Digestion!D10="Wet"),"Type of Anaerobic Digestion: Wet",IF(AND(Anaerobic_Digestion!D10="Semy-Dry"),"Type of Anaerobic Digestion: Semy-Dry",IF(AND(Anaerobic_Digestion!D10="Dry"),"Type of Anaerobic Digestion: Dry","Attention: out of the intervals of anaerobic digestion. Try with other values of dry substance!"))) -> 
B172: Engine power [kWele] | G172: =+IF(AND(Anaerobic_Digestion!D10="Wet"),Anaerobic_Digestion!C49,IF(AND(Anaerobic_Digestion!D10="Semy-Dry"),Anaerobic_Digestion!Y49,IF(AND(Anaerobic_Digestion!D10="Dry"),Anaerobic_Digestion!AR49,0))) -> 
B173: Power for the grid [kWhele/y] | G173: =+IF(AND(Anaerobic_Digestion!D10="Wet"),Anaerobic_Digestion!C60,IF(AND(Anaerobic_Digestion!D10="Semy-Dry"),Anaerobic_Digestion!Y60,IF(AND(Anaerobic_Digestion!D10="Dry"),Anaerobic_Digestion!AR60,0))) -> 
B174: Energy available for heating [kWhth/y] | G174: =+IF(AND(Anaerobic_Digestion!D10="Wet"),Anaerobic_Digestion!C71,IF(AND(Anaerobic_Digestion!D10="Semy-Dry"),Anaerobic_Digestion!Y71,IF(AND(Anaerobic_Digestion!D10="Dry"),Anaerobic_Digestion!AR71,0))) -> 
B175: Biogas production [Nm3/year] | G175: =+IF(AND(Anaerobic_Digestion!D10="Wet"),Anaerobic_Digestion!L24,IF(AND(Anaerobic_Digestion!D10="Semy-Dry"),Anaerobic_Digestion!AH24,IF(AND(Anaerobic_Digestion!D10="Dry"),Anaerobic_Digestion!BA24,0))) -> 
B176: Digestate mass [t/year] | G176: =+IF(AND(Anaerobic_Digestion!D10="Wet"),Anaerobic_Digestion!C37,IF(AND(Anaerobic_Digestion!D10="Semy-Dry"),Anaerobic_Digestion!Y37,IF(AND(Anaerobic_Digestion!D10="Dry"),Anaerobic_Digestion!AR37,0))) -> 
B177: Solid fraction after separator [t/year] | G177: =+IF(AND(Anaerobic_Digestion!D10="Wet"),Anaerobic_Digestion!F34,IF(AND(Anaerobic_Digestion!D10="Semy-Dry"),Anaerobic_Digestion!AB34,IF(AND(Anaerobic_Digestion!D10="Dry"),Anaerobic_Digestion!AU34,0))) -> 
B178: Water fraction after separator [t/year] | G178: =+IF(AND(Anaerobic_Digestion!D10="Wet"),Anaerobic_Digestion!F33,IF(AND(Anaerobic_Digestion!D10="Semy-Dry"),Anaerobic_Digestion!AB33,IF(AND(Anaerobic_Digestion!D10="Dry"),Anaerobic_Digestion!AU33,0))) -> 
B180: Power to Gas
B182: PEM-Elektrolyzer_Energy consumption [kWh/Nm3] | I182: =+IF(UpDateAnaerobicDigestion!F1="SI",UpDateAnaerobicDigestion!D3,"NA") -> NA
B183: Electrolyzer_Installed Power [kW] | I183: =+IF(UpDateAnaerobicDigestion!F1="SI",UpDateAnaerobicDigestion!D14,"NA") -> NA
B184: Total Methane [Nm3/year] | I184: =+IF(UpDateAnaerobicDigestion!F1="SI",UpDateAnaerobicDigestion!D18,"NA") -> NA
B185: Electric energy consuption of the hydrolyser [MWh/y] | I185: =+IF(UpDateAnaerobicDigestion!F1="SI",UpDateAnaerobicDigestion!D3*UpDateAnaerobicDigestion!D12/1000,"NA") -> NA
B187: Biogas UpGrading
B189: Amount of clean biomethane [Nm3/year] | J189: =+IF(UpGrading!C6="PSA",UpGrading!C21,IF(UpGrading!C6="PWA",UpGrading!C21,IF(UpGrading!C6="Membrane",UpGrading!C21,"NA"))) -> NA
B190: Total amount of ouput gas [Nm3/year] | J190: =+IF(UpGrading!C6="PSA",UpGrading!C22,IF(UpGrading!C6="PWA",UpGrading!C22,IF(UpGrading!C6="Membrane",UpGrading!C22,"NA"))) -> NA
B191: Total electricity consumption for biogas upgrading [kWh/year] | J191: =+IF(UpGrading!C6="PSA",UpGrading!C23,IF(UpGrading!C6="PWA",UpGrading!C23,IF(UpGrading!C6="Membrane",UpGrading!C23,"NA"))) -> NA
B192: Electricity from bioemthane [kWh/year] | J192: =+IF(UpGrading!C6="PSA",UpGrading!C24,IF(UpGrading!C6="PWA",UpGrading!C24,IF(UpGrading!C6="Membrane",UpGrading!C24,"NA"))) -> NA
B193: Thermal energy from biomethane [kWh/year] | J193: =+IF(UpGrading!C6="PSA",UpGrading!C25,IF(UpGrading!C6="PWA",UpGrading!C25,IF(UpGrading!C6="Membrane",UpGrading!C25,"NA"))) -> NA
B194: Thermal energy from biomethane [GJ/year] | J194: =+IF(UpGrading!C6="PSA",UpGrading!C26,IF(UpGrading!C6="PWA",UpGrading!C26,IF(UpGrading!C6="Membrane",UpGrading!C26,"NA"))) -> NA
B196: Anaerobic Digestion and Composting
B198: Compost mass [t/year] | G198: =+'AD+Composting'!F201 -> 926.1052835
B199: Final compost moisture (%) | G199: =+'AD+Composting'!F202 -> 45
B200: Final compost temperature [°C] | G200: =+'AD+Composting'!F203 -> 30
B201: Addition of coformulant [t ar/year] | G201: =+'AD+Composting'!F204 -> 2013.272356
B203: Anaerobic Digestion and HTC
B205: Hydrochar mass [t/year] | H205: =+'AD+HTC'!G208 -> 891.353766
B206: Hydrochar carbon content (%C solid) | H206: =+'AD+HTC'!G209 -> 57.79552027
B207: LHV - Hydrochar Lower Heating Value [MJ/t] | H207: =+'AD+HTC'!G210 -> 24325.3332
B208: Input Power [kW] | H208: =+'AD+HTC'!G211 -> 752.8637971
B210: Anaerobic Digestion and Gasification
B212: Engine power [kWele] | H212: =+'AD+Gasification'!G223 -> NA
B213: Power for the grid [kWhele/y] | H213: =+'AD+Gasification'!G224 -> NA
B214: Energy available for heating [kWhth/y] | H214: =+'AD+Gasification'!G225 -> NA
B215: Syngas production [Nm3/year] | H215: =+'AD+Gasification'!G226 -> NA
B216: LHV - Syngas Lower Heating Value [MJ/Nm3] | H216: =+'AD+Gasification'!G227 -> NA
B217: η cold (%) | H217: =+'AD+Gasification'!G228 -> NA
B219: Urban Compatibility Assessment
B221: Status quo
F222: Type 1 a | G222: Type 1b | H222: Type 1c | I222: Type 2a | J222: Type 2b | K222: Type 3 | L222: Type 4
B223: Heat demand [MWh/y] | F223: =+UCA!D4 -> 1109889 | G223: =+UCA!E4 ->  | H223: =+UCA!F4 ->  | I223: =+UCA!G4 ->  | J223: =+UCA!H4 ->  | K223: =+UCA!I4 ->  | L223: =+UCA!J4 -> 
B224: Current heat demand [MWh/y] | F224: =+UCA!D6 ->  | G224: =+UCA!E185 -> 0 | H224: =+UCA!F185 -> 0 | I224: =+UCA!G185 -> 0 | J224: =+UCA!H185 -> 0 | K224: NA | L224: NA
B225: Calculated grid length (internal) [m] | F225: =+UCA!D10 -> 0 | G225: =+UCA!E10 ->  | H225: =+UCA!F10 ->  | I225: =+UCA!G10 ->  | J225: =+UCA!H10 ->  | K225: =+UCA!I10 ->  | L225: NA
B226: Total grid length [m] | F226: =+UCA!D13 ->  | G226: =+UCA!E191 -> 0 | H226: =+UCA!F191 -> 0 | I226: =+UCA!G191 -> 0 | J226: =+UCA!H191 -> 0 | K226: =+UCA!I191 -> 0 | L226: NA
B227: Occupancy density [MWh/m] | F227: =+UCA!D15 -> 
B229: Future situation
F230: Type 1 a | G230: Type 1b | H230: Type 1c | I230: Type 2a | J230: Type 2b | K230: Type 3 | L230: Type 4
B231: Adapted heat demand [MWh/y] | F231: =+UCA!D20 ->  | G231: =+UCA!E20 ->  | H231: =+UCA!F20 ->  | I231: =+UCA!G20 ->  | J231: =+UCA!H20 ->  | K231: =+UCA!I20 ->  | L231: =+UCA!J20 -> 
B232: Potential [MWh/y] | F232: =+UCA!D22 ->  | G232: =+UCA!E22 ->  | H232: =+UCA!F22 ->  | I232: =+UCA!G22 ->  | J232: =+UCA!H22 ->  | K232: =+UCA!I22 ->  | L232: =+UCA!J22 -> 
B233: Interim heat demand 1 [MWh/y] | F233: =+UCA!D23 ->  | G233: =+UCA!E23 ->  | H233: =+UCA!F23 ->  | I233: =+UCA!G23 ->  | J233: =+UCA!H23 ->  | K233: =+UCA!I23 ->  | L233: =+UCA!J23 -> 
B234: Interim heat demand 2 [MWh/y] | F234: =+UCA!D25 ->  | G234: =+UCA!E25 ->  | H234: =+UCA!F25 ->  | I234: =+UCA!G25 ->  | J234: =+UCA!H25 ->  | K234: =+UCA!I25 ->  | L234: =+UCA!J25 -> 
B235: Interim heat demand 3 [MWh/y] | F235: =+UCA!D27 ->  | G235: =+UCA!E27 ->  | H235: =+UCA!F27 ->  | I235: =+UCA!G27 ->  | J235: =+UCA!H27 ->  | K235: =+UCA!I27 ->  | L235: =+UCA!J27 -> 
B236: Future heat demand [MWh/y] | F236: =+UCA!D29 ->  | G236: =+UCA!E28 -> 0 | H236: =+UCA!F28 -> 0 | I236: =+UCA!G28 -> 0 | J236: =+UCA!H28 -> 0 | K236: =+UCA!I28 -> 0 | L236: =+UCA!J28 -> 0
B237: Occupancy density [MWh/m] | F237: =+UCA!D31 ->  | G237: =+UCA!E29 -> 0 | H237: =+UCA!F29 -> 0 | I237: =+UCA!G29 -> 0 | J237: =+UCA!H29 -> 0 | K237: =+UCA!I29 -> 0 | L237: =+UCA!J29 -> 0
B239: Economic evaluation
B240: Total operating costs [€/year] | H240: =+'Economic evaluation'!D110 -> 
B241: Total investment cost [€] | H241: =+'Economic evaluation'!D113 -> 
B242: Incomes - external waste processing [€/year] | H242: =+'Economic evaluation'!D117 -> 
B243: Incomes biogas utilisation in CHP (heat) [€/year] | H243: =+'Economic evaluation'!D118 -> 
B244: Incomes biogas utilisation in CHP (electricity) [€/year] | H244: =+'Economic evaluation'!D119 -> 
B245: Incomes biomethane selling into the grid [€/year] | H245: =+'Economic evaluation'!D120 -> 
B246: Incomes biomethane selling CNG [€/year] | H246: =+'Economic evaluation'!D121 -> 
B247: Benefit (return) of project [year] | H247: =+_xlfn.CEILING.MATH('Economic evaluation'!D122,1,1) -> 
B249: Lyfe Cycle Assessment_Modify Parameters
G250: Status quo | J250: Future situation
B251: =+LCA!C81 -> Carbon footprint elec. Energy | F251: Tons CO2-eq | G251: =+LCA!D81/1000 ->  | J251: =+LCA!E81/1000 -> 
B252: =+LCA!C82 -> Carbon footprint th. Energy | F252: =+F251 -> Tons CO2-eq | G252: =+LCA!D82/1000 ->  | J252: =+LCA!E82/1000 -> 
B253: =+LCA!C83 -> Carbon footprint N20 aerobic treatment | F253: =+F252 -> Tons CO2-eq | G253: =+LCA!D83/1000 -> 0 | J253: =+LCA!E83/1000 -> 0
B254: =+LCA!C84 -> Carbon footprint sludge handling | F254: Tons CO2-eq | G254: =+LCA!D84/1000 -> 0 | J254: =+LCA!E84/1000 -> 
B255: =+LCA!C85 -> Sum carbon footprint chemicals | F255: Tons CO2-eq | G255: =+LCA!D85/1000 -> 0 | J255: =+LCA!E85/1000 -> 0
... 7 more rows

Sheet LCA
A1: last update by KWB: [ReneGriese] 26.09.2018
A2: Calculations | H2: Data aquisition | O2: internal emission factor library
B3: Promemoria da rivedere | D3: status quo | E3: new situation | J3: status quo | K3: new situation | Q3: Global warming potential (IPCC 2013) für 100a | R3: Cumulative energy demand of non-renewable resources (fossil + nuclear) (VDI 4600) | S3: comments, data source (ecoinvent v3.3 /v3.4)
A5: Energy | O5: indirect emissions | Q5: kg CO2-eq/kwh | R5: Megajoule
P6: Electricity mix for EU | Q6: 0.39 | R6: 9.434 | S6: market group for electricity, medium voltage [RER]
C7: emission factor for energy from electrical grid | D7: =VLOOKUP(J7,P6:Q12,2,FALSE) -> 0.69 | E7: =VLOOKUP(K7,P6:Q12,2,FALSE) -> 0.69 | F7: [kg CO2-eq/kWh] | H7: FROM USER | I7: electricity_mix | J7: Electricity mix for CZ | K7: Electricity mix for CZ | P7: Electricity mix for DE | Q7: 0.627 | R7: 9.848 | S7: market for electricity, medium voltage [DE]
C8: net_external_elec_energy_demand | D8: =J8 ->  | E8: =K8 ->  | F8: [kWh] | H8: FROM OTHER TOOL: | I8: net_external_elec_energy_demand [kWh] | J8: =+IF((EE_WWTP!C158*EE_WWTP!C128-(J35*J39/100)*(RES_WWTP!J23/100))<=0,0,(EE_WWTP!C158*EE_WWTP!C128-(J35*J39/100)*(RES_WWTP!J23/100))) ->  | K8: =+IF((EE_WWTP!C158*EE_WWTP!C128+((IF(UpDateAnaerobicDigestion!B25="Thermo-chemical",UpDateAnaerobicDigestion!C37,IF(UpDateAnaerobicDigestion!B25="Thermo-pressure",UpDateAnaerobicDigestion!D37,IF(UpDateAnaerobicDigestion!B25="NO",0))))+UpDateAnaerobicDigestion!D3*UpDateAnaerobicDigestion!D12+UpGrading!C23))-(SUM(RES_WWTP!O21:O32))<=0,0,EE_WWTP!C158*EE_WWTP!C128-(SUM(RES_WWTP!O21:O32))+((IF(UpDateAnaerobicDigestion!B25="Thermo-chemical",UpDateAnaerobicDigestion!C37,IF(UpDateAnaerobicDigestion!B25="Thermo-pressure",UpDateAnaerobicDigestion!D37,IF(UpDateAnaerobicDigestion!B25="NO",0))))+UpDateAnaerobicDigestion!D3*UpDateAnaerobicDigestion!D12+UpGrading!C23)) ->  | P8: Electricity mix for AT | Q8: 0.295 | R8: 4.858 | S8: market for electricity, medium voltage [AT]
C9: carbon footprint elec. Energy | D9: =D8*D7 ->  | E9: =E8*E7 ->  | F9: [kg CO2-eq] | P9: Electricity mix for IT | Q9: 0.381 | R9: 6.76 | S9: market for electricity, medium voltage [IT]
P10: Electricity mix for HR | Q10: 0.286 | R10: 6.616 | S10: market for electricity, medium voltage [HR]
P11: Electricity mix for CZ | Q11: 0.69 | R11: 12.193 | S11: market for electricity, medium voltage [CZ]
P12: Electricity mix for SE | Q12: 0.035 | R12: 5.928 | S12: market for electricity, medium voltage [SE]
C13: emission factor for external heat supply | D13: =VLOOKUP(J13,P15:Q16,2,FALSE) -> 0.234 | E13: =VLOOKUP(K13,P15:Q16,2,FALSE) -> 0.234 | F13: [kg CO2-eq/kWh] | H13: FROM USER | I13: external heat source | J13: Natural gas | K13: Natural gas
C14: net_external_th_energy_demand | D14: =J14 ->  | E14: =K14 ->  | F14: kWh | H14: FROM OTHER TOOL: | I14: net_external_th_energy_demand [kWh] | J14: =+IF((EE_WWTP!C208*EE_WWTP!C128-((J35*J39/100)*(RES_WWTP!K23)))<=0,0,(EE_WWTP!C208*EE_WWTP!C128-((J35*J39/100)*(RES_WWTP!K23)))) ->  | K14: =+IF(((IF(UpDateAnaerobicDigestion!B25="Thermo-chemical",UpDateAnaerobicDigestion!C38,IF(UpDateAnaerobicDigestion!B25="Thermo-pressure",UpDateAnaerobicDigestion!D38,IF(UpDateAnaerobicDigestion!B25="NO",0)))+(EE_WWTP!C112*365)))-(SUM(RES_WWTP!P21:P32))<=0,0,(-(SUM(RES_WWTP!P21:P32))+(IF(UpDateAnaerobicDigestion!B25="Thermo-chemical",UpDateAnaerobicDigestion!C38,IF(UpDateAnaerobicDigestion!B25="Thermo-pressure",UpDateAnaerobicDigestion!D38,IF(UpDateAnaerobicDigestion!B25="NO",0)))+(EE_WWTP!C112*365)))) ->  | L14: =((IF(UpDateAnaerobicDigestion!B25="Thermo-chemical",UpDateAnaerobicDigestion!C38,IF(UpDateAnaerobicDigestion!B25="Thermo-pressure",UpDateAnaerobicDigestion!D38,IF(UpDateAnaerobicDigestion!B25="NO",0)))+(EE_WWTP!C112*365)))-(SUM(RES_WWTP!P21:P32)) ->  | O14: heat supply
C15: carbon footprint th. Energy | D15: =D14*D13 ->  | E15: =E14*E13 ->  | F15: [kg CO2-eq] | P15: Natural gas | Q15: 0.234 | R15: no data
P16: District heating | Q16: 0.123 | R16: no data
A18: WWTP | O18: aerobic biological treatment | Q18: kg CO2-eq/ kg N in influent aerobic biological treatment
C19: Nitrous oxide emission factor from aerobic biological treatment | D19: =Q19 -> 2.5 | E19: =Q19 -> 2.5 | F19: kg CO2/kg TN influent | P19: N2O emissions | Q19: 2.5 | R19: no data | S19: Assumption: 0.6% N2O-N per kg N in influent; assumption KWB according to Wicht 1996
C20: kg TN in influent | D20: =J20 -> 0 | E20: =K20 -> 0 | F20: [kg TN] | H20: FROM OTHER TOOL: | I20: kg TN in influent/year | J20: =+RES_WWTP!C17*M20 -> 0 | K20: =+RES_WWTP!C17*M20 -> 0 | M20: 0.05 | N20: kg TN/m3
C21: carbon footprint N20 aerobic treatment | D21: =D20*D19 -> 0 | E21: =E20*E19 -> 0 | F21: [kg CO2-eq]
O22: sludge handling (sludge liquor) | Q22: kg CO2-eq/ kg TS in digested sludge
C23: methane emission factor from sludge liquor | D23: =Q23 -> 0.017 | E23: =Q23 -> 0.017 | F23: kg CO2/kg TS in digested sludge | J23: =+EE_WWTP!D27*M24*365 -> 0 | P23: methane emissions | Q23: 0.017 | R23: no data | S23: Assumption: 100% saturation in digested sludge (20 mg/L , T=30°C) | U23: Annahme KWB
C24: kg TS in digested sludge | D24: =J23 -> 0 | E24: =K24 ->  | F24: [kg TS] | H24: FROM OTHER TOOL: | I24: kg TS in digested sludge per year | J24: =+(EE_WWTP!D26-M25)*M26*RES_WWTP!C17*1000/1000000 -> 0 | K24: =+IF(Anaerobic_Digestion!D10="Wet",Anaerobic_Digestion!F35*1000,IF(Anaerobic_Digestion!D10="Semy-Dry",Anaerobic_Digestion!AB35*1000,IF(Anaerobic_Digestion!D10="Dry",Anaerobic_Digestion!AU35*1000))) ->  | M24: =1.15/2 -> 0.575
C25: carbon footprint sludge handling | D25: =D24*D23 -> 0 | E25: =E24*E23 ->  | F25: [kg CO2-eq] | M25: 80 | N25: mg/l COD effluent
M26: 0.477 | N26: gTSproduct/gCODremoved | O26: production of chemicals | Q26: kg CO2-eq/kg chemical
C27: Chemicals production | D27: =J27*R27+J28*R28+J29*R29+J30*R30+J31*R31 -> 0 | E27: =K27*R27+K28*R28+K29*R29+K30*R30+K31*R31 -> 0 | F27: [kg CO2-eq] | H27: FROM USER | I27: kg CH3COOH acetico | J27: =+Input!C68 -> 0 | K27: =+Input!E68 -> 0 | P27: acetic acid | Q27: 50.579 | R27: 1.584 | S27: 100% acetic acid | T27: market for acetic acid, without water, in 98% solution state [GLO] | W27: 1 | X27: kg Essigsäure
C28: Respiration C-sources | D28: =Q34*J27+Q35*J28 -> 0 | E28: =Q34*K27+Q35*K28 -> 0 | F28: [kg CO2-eq] | H28: FROM USER | I28: kg METHANOL | J28: =+Input!C69 -> 0 | K28: =+Input!E69 -> 0 | P28: Methanol | Q28: 35.345 | R28: 0.659 | S28: 100% Methanol | T28: market for methanol [GLO] | W28: 1 | X28: kg Methanol
C29: sum carbon footprint chemicals | D29: =D28+D27 -> 0 | E29: =E28+E27 -> 0 | F29: [kg CO2-eq] | H29: FROM USER | I29: kg FeCl3 (100%) cloruro ferrico | J29: =+Input!C70 -> 0 | K29: =+Input!E70 -> 0 | P29: FeCl3 | Q29: 13.812 | R29: 0.949 | S29: 100% FeCl3 | T29: market for iron (III) chloride, without water, in 40% solution state [GLO] | W29: 1 | X29: kg FeCl3 (100%)
H30: FROM USER | I30: kg PACl (100%) Polyaluminiumchlorid | J30: =+Input!C71 -> 0 | K30: =+Input!E71 -> 0 | P30: Polyaluminiumchlorid | Q30: 21.84 | R30: 1.389 | S30: 100% PACl, 27% Al -contents | T30: market for polyaluminium chloride [GLO] | W30: 1 | X30: kg PACl (100%)
B31: Transports of chemicals and sludge not included->to omit for simplification? | H31: FROM USER | I31: kg Polymer (100% AS) | J31: =+Input!C72 -> 0 | K31: =+Input!E72 -> 0 | P31: Polymer | Q31: 61.782 | R31: 2.087 | S31: Umrechnung (750 g Acrylonitrile für 1000g Polyacrylamid) | T31: market for acrylonitrile [GLO] | W31: 100% Wirksubstanz | X31: kg Polymer (100% AS)
O33: Respiration external carbon source | Q33: kg CO2-eq/ kg chemical
A34: Biogas | P34: acetic acid | Q34: 1.47 | R34: no data | S34: 100% conc.; calculated stoichiometrically acetic acid into CO2
B35: CHP, flare | H35: FROM OTHER TOOL: | I35: [m³] biogas produced | J35: =+J23*(J48/100)*(J47/100)*J46 -> 0 | K35: =+RES_WWTP!J37 ->  | P35: methanol | Q35: 1.375 | R35: no data | S35: 100% conc.; calculated stoichiometrically methanol into CO2
C36: biogas amount CHP and flare | D36: =J39 -> 100 | E36: =K39 -> 0 | H36: FROM OTHER TOOL: | I36: [%] methane content | J36: =+UpGrading!C5 -> 60 | K36: =+UpGrading!C5 -> 60
C37: biogas amount burned in CHP and flare | D37: =D36*J35/100 -> 0 | E37: =E36*K35/100 ->  | F37: [m³] | H37: FROM TOOL OR CALCLUATED | I37: MJ/m³ in Biogas | J37: =+IF(Anaerobic_Digestion!D10="Wet",Anaerobic_Digestion!C47,IF(Anaerobic_Digestion!D10="Semy-Dry",Anaerobic_Digestion!Y47,IF(Anaerobic_Digestion!D10="Dry",Anaerobic_Digestion!AR47))) ->  | K37: =+IF(Anaerobic_Digestion!D10="Wet",Anaerobic_Digestion!C47,IF(Anaerobic_Digestion!D10="Semy-Dry",Anaerobic_Digestion!Y47,IF(Anaerobic_Digestion!D10="Dry",Anaerobic_Digestion!AR47))) ->  | P37: MJ im Biogas | Q37: 30 | R37: MJ/m³ | S37: Ref: G262
C38: emission factor for burning biogas in CHP and flare | D38: =Q39 -> 0.00347 | E38: =Q39 -> 0.00347 | F38: [kg CO2-eq/MJ in biogas] | H38: FROM USER | I38: [%] flared | J38: 0 | K38: 0 | M38: check for 100% | Q38: kg CO2-eq/MJ
C39: carbon footprint CHP and flare emissions | D39: =D37*D38*J37 ->  | E39: =E37*E38*K37 ->  | F39: [kg CO2-eq] | H39: FROM USER | I39: [%] into CHP how much biogas do you use into CHP? | J39: =100-J40 -> 100 | K39: =100-K40 -> 0 | M39: sliders? | P39: CHP emissions | Q39: 0.00347 | S39: KWB model; exhaust gases: N2O, Methane slip
C40: credits for exported electricity | D40: =(-1)*J42*D7 ->  | E40: =(-1)*K42*E7 ->  | F40: [kg CO2-eq] (must be 0 or negative!) | H40: FROM USER | I40: [%] upgraded | J40: 0 | K40: 100
C41: credits for exported heat | D41: =J43*Q43 ->  | E41: =K43*Q43 ->  | F41: [kg CO2-eq] (must be 0 or negative!) | H41: FROM USER | I41: [%] Burner/boiler | J41: 0 | K41: 0 | O41: credits | Q41: kg CO2-eq/ kWh
H42: FROM OTHER TOOL: | I42: kWh exported el. Energy | J42: =+IF((EE_WWTP!C158*EE_WWTP!C128-(J35*J39/100)*(RES_WWTP!J23/100))<=0,((J35*J39/100)*(RES_WWTP!J23/100)-EE_WWTP!C158*EE_WWTP!C128),0) ->  | K42: =+IF((EE_WWTP!C158*EE_WWTP!C128+((IF(UpDateAnaerobicDigestion!B25="Thermo-chemical",UpDateAnaerobicDigestion!C37,IF(UpDateAnaerobicDigestion!B25="Thermo-pressure",UpDateAnaerobicDigestion!D37,IF(UpDateAnaerobicDigestion!B25="NO",0))))+UpDateAnaerobicDigestion!D3*UpDateAnaerobicDigestion!D12+UpGrading!C23))-(SUM(RES_WWTP!O21:O32))<=0,((EE_WWTP!C158*EE_WWTP!C128-(SUM(RES_WWTP!O21:O32))+((IF(UpDateAnaerobicDigestion!B25="Thermo-chemical",UpDateAnaerobicDigestion!C37,IF(UpDateAnaerobicDigestion!B25="Thermo-pressure",UpDateAnaerobicDigestion!D37,IF(UpDateAnaerobicDigestion!B25="NO",0))))+UpDateAnaerobicDigestion!D3*UpDateAnaerobicDigestion!D12+UpGrading!C23)))*(-1),0) ->  | P42: natural gas | Q42: -0.242 | R42: 4.22 | S42: credit for substitution of natural gas | T42: natural gas, burned in gas motor, for storage [RoW]
H43: FROM OTHER TOOL: | I43: kWh exported th. Energy | J43: =++IF((EE_WWTP!C208*EE_WWTP!C128-((J35*J39/100)*(RES_WWTP!K23)))<=0,((J35*J39/100)*(RES_WWTP!K23)-EE_WWTP!C208*EE_WWTP!C128),0) ->  | K43: =+IF((EE_WWTP!C208*EE_WWTP!C128+(IF(UpDateAnaerobicDigestion!B25="Thermo-chemical",UpDateAnaerobicDigestion!C38,IF(UpDateAnaerobicDigestion!B25="Thermo-pressure",UpDateAnaerobicDigestion!D38,IF(UpDateAnaerobicDigestion!B25="NO",0)))+(EE_WWTP!C112*365)))-(SUM(RES_WWTP!P21:P32))<=0,(((EE_WWTP!C208*EE_WWTP!C128-(SUM(RES_WWTP!P21:P32))+(IF(UpDateAnaerobicDigestion!B25="Thermo-chemical",UpDateAnaerobicDigestion!C38,IF(UpDateAnaerobicDigestion!B25="Thermo-pressure",UpDateAnaerobicDigestion!D38,IF(UpDateAnaerobicDigestion!B25="NO",0)))+(EE_WWTP!C112*365)))))*(-1),0) ->  | P43: heat | Q43: -0.202 | R43: 3.66 | S43: credit for district heating | T43: market for heat, district or industrial, natural gas [Europe without Switzerland]
I46: biogas specific production of sludge [m3/kg VS] | J46: 0.25
I47: Volatile content of sludge (% solid) | J47: 70
I48: Total solid removal efficiency (%) | J48: 15 | P48: calculating Volume into mass | R48: 0.72 | S48: density_CH4 =0,72 kg/m³
B50: Upgrading | Q50: kg CO2-eq/ kg CH4
C51: CH4 slip upgrading technology | D51: =VLOOKUP(J51,P55:Q58,2,FALSE) -> 0.02 | E51: =VLOOKUP(K51,P55:Q58,2,FALSE) -> 0.02 | F51: [%] | H51: FROM USER | I51: Upgrading technology | J51: PSA | K51: PSA | P51: methane | Q51: 26.6666 | S51: IPCC GWP100 factor CH4
C52: offgas treatment? | D52: =J52 ->  | E52: =K52 ->  | H52: FROM USER | I52: offgas treatment
C53: biogas upgraded | D53: =J40*J35 -> 0 | E53: =K40*K35 ->  | F53: [m³] | H53: FROM TOOL OR CALCLUATED | I53: kWh exported biomethane | J53: =+((J35*J36/100*J40/100)-D51*(J35*J36/100*J40/100)+2/100*((J35*J36/100*J40/100)-D51*(J35*J36/100*J40/100)))*L54/L55 -> 0 | K53: =+IF(UpDateAnaerobicDigestion!F1="NO",UpGrading!C24,UpGrading!C24+(UpDateAnaerobicDigestion!D16*L54/L55)) -> 
C54: methane slip | D54: =IF(D52="YES",0,D53*J36*D51) -> 0 | E54: =IF(E52="YES",0,E53*K36*E51) ->  | F54: [m³] | K54: LHV | L54: 8.5 | M54: kcal/Nm3 | O54: Upgrading technology | Q54: methane slip factor [%] | R54: reference
C55: carbon footprint methane slip during upgrading | D55: =D54*R48*Q51 -> 0 | E55: =E54*R48*Q51 ->  | F55: [kg CO2-eq] | L55: 860 | M55: kcal/kwh | P55: NONE | Q55: 0
C56: injected biomethane | D56: =J53 -> 0 | E56: =K53 ->  | F56: kWh | P56: PSA | Q56: 0.02 | R56: Technische Universität Wien, I. o. C. E., Research Division Thermal Process Engineering and Simulation (2012). Biogas to biomethane technology review.
C57: credit factor for biomethane | D57: =Q42 -> -0.242 | E57: =Q42 -> -0.242 | F57: [kg CO2-eq/kWh] | H57: FROM USER | I57: sludge use | J57: Co-Inceneration | K57: Co-Inceneration | P57: PWA | Q57: 0.02 | R57: Technische Universität Wien, I. o. C. E., Research Division Thermal Process Engineering and Simulation (2012). Biogas to biomethane technology review.
C58: credit for injected biomethane | D58: =D57*D56 -> 0 | E58: =E57*E56 ->  | F58: [kg CO2-eq] (must be 0 or negative!) | H58: FROM OTHER TOOL: | I58: [t TS in digested sludge] | J58: =J23/1000 -> 0 | K58: =K24/1000 ->  | L58: connected with cells J/K22 divided by 1000; kg to tons | P58: membranes | Q58: 0.005 | R58: chose lowest value; Technische Universität Wien, I. o. C. E., Research Division Thermal Process Engineering and Simulation (2012). Biogas to biomethane technology review.
A59: Sludge use | H59: FROM OTHER TOOL: | I59: kg N in digestate | J59: =+J58*1000*0.5 -> 0 | K59: =+K58*1000*0.5 -> 
C60: sludge use | D60: =J57 -> Co-Inceneration | E60: =K57 -> Co-Inceneration | H60: FROM OTHER TOOL: | I60: kg P in digestate] | J60: =+J58*1000*0.3 -> 0 | K60: =+K58*1000*0.3 ->  | O60: sludge use | Q60: kg CO2-eq/t TS in digested sludge
C61: emission factor for sludge use | D61: =VLOOKUP(D60,P61:Q79,2,FALSE) -> -500 | E61: =VLOOKUP(E60,P61:Q79,2,FALSE) -> -500 | F61: [kg CO2-eq] | P61: Mono incineration | Q61: 325 | R61: per t TS in digested sludge | S61: ! Tons
C62: t TS sludge | D62: =J58 -> 0 | F62: [t TS in digested sludge] | P62: Agricultural use | R62: per t TS in digested sludge
C63: kg N in digestate | D63: 0 | P63: Co-Inceneration | Q63: -500 | R63: per t TS in digested sludge
C64: kg P in digestate] | D64: 0 | P64: Landfilling | Q64: 1500 | R64: per t TS in digested sludge
C65: credit for agr. Use | D65: =IF(D60=P62,(Q78*D63+Q79*D64),0) -> 0 | E65: =IF(E60=P62,(Q78*E63+Q79*E64),0) -> 0 | F65: [kg CO2-eq]
C66: carbon footprint sludge use | D66: =IF(D60=P62,D65,D61*D62) -> 0 | E66: =IF(E60=Q62,E65,E61*E62) ->  | F66: [kg CO2-eq]
A67: Electrolysis | J67: YES
B68: savings for oxygen fed into aeration/ozonation [may be added at a later date] | J68: NO
R69: MJ/(t*km)
R70: 2.66 | S70: mass*distance: [tons*km] | T70: transport, freight, lorry 16-32 metric ton, EURO4 [RER]
R71: 2.662 | S71: mass*distance: [tons*km] | T71: transport, freight, lorry 16-32 metric ton, EURO5 [RER]
R72: 2.615 | S72: mass*distance: [tons*km] | T72: transport, freight, lorry 16-32 metric ton, EURO6 [RER]
A77: Summary | Q77: kg CO2-eq/ kg in digested sludge
P78: credit for Nitrogen contents | Q78: -10
P79: credit for phosphorus contents | Q79: -2.37
D80: status quo | E80: new situation
C81: Carbon footprint elec. Energy | D81: =D9 ->  | E81: =E9 ->  | F81: [kg CO2-eq]
C82: Carbon footprint th. Energy | D82: =D15 ->  | E82: =E15 ->  | F82: [kg CO2-eq]
C83: Carbon footprint N20 aerobic treatment | D83: =D21 -> 0 | E83: =E21 -> 0 | F83: [kg CO2-eq] | O83: transports | Q83: kg CO2-eq/(t*km)
C84: Carbon footprint sludge handling | D84: =D25 -> 0 | E84: =E25 ->  | F84: [kg CO2-eq] | P84: Transport lorry (16-32t EURO4) | Q84: 0.147
C85: Sum carbon footprint chemicals | D85: =D29 -> 0 | E85: =E29 -> 0 | F85: [kg CO2-eq] | P85: Transport lorry (16-32t EURO5) | Q85: 0.151
C86: Carbon footprint CHP and flare emissions | D86: =D39 ->  | F86: [kg CO2-eq] | P86: Transport lorry (16-32t EURO6) | Q86: 0.15
C87: Credits for exported electricity | F87: [kg CO2-eq]
C88: Credits for exported heat | F88: [kg CO2-eq]
C89: Carbon footprint methane slip during upgrading | D89: =D55 -> 0 | E89: =E55 ->  | F89: [kg CO2-eq]
C90: Credit for injected biomethane | D90: =D58 -> 0 | E90: =E58 ->  | F90: [kg CO2-eq]
C91: Carbon footprint sludge use | D91: =D66 -> 0 | E91: =E66 ->  | F91: [kg CO2-eq]
C94: net | D94: =SUM(D81:D93) ->  | E94: =SUM(E81:E93) ->  | F94: [kg CO2-eq]

Sheet EE_WWTP
C2: legend
D4: data input of the sheet
D5: not necessary dat, to be cancelled
D6: can be removed
C7: *(explanation and data utilized in….) | D7: useful for calculations in the TOOL
D8: calculated
D9: for RES (Franz.xls)
B12: Wichtigsten Indirekteinleiters (Einwohnergleichwerte) | F12: EGW
B13: Zweitwichtigster Indirekteinleiter (Art)
B14: Zweitwichtigster Indirekteinleiter (Einwohnergleichwert) | F14: EGW
B15: Drittwichtigster Indirekteinleiter (Art)
B16: Drittwichtigster Indirekteinleiter (Einwohnergleichwert) | F16: EGW
B20: Operating data of the year of investigation (dayly average in the investigated year)
A23: Input parameter for EE | B23: wastewater inflow | E23: m³/d | F23: Userform
A24: Input paramter for RES (already included in Franz' xls/RES sheet) | B24: wastewater inflow temperature | D24: xxx | E24: °C
A25: Line can be removed | J25: =+(EE_WWTP!D26-80) -> -80
A26: Input parameter for EE - we could also refer to BOD | B26: COD inflow concentration | E26: mg/l | F26: Userform
A27: (Calculated) input parameter for EE - we could also refer to BOD | B27: COD inflow load | D27: =D23*D26*0.001 -> 0 | E27: kg/d
A28: Lines can be removed
F40: V safety factor digestor | G40: 1.2
F41: h | G41: 4
F42: HRT | G42: 20
F44: Volume | G44: Raggio (r1)
A45: Input parameter for EE (thermal) | B45: digestion tower surface | D45: =2*PI()*G45*G41+2*PI()*(G45^2) -> 0 | E45: m² | F45: =+(Feedstock_Database!F5+Feedstock_Database!F7+Feedstock_Database!F9+Feedstock_Database!F13+Feedstock_Database!F15+Feedstock_Database!F17+Feedstock_Database!F19)*G40*G42/365 -> 0 | G45: =+SQRT(F45/(PI()*G41)) -> 0
A46: Line can be removed
A47: Input parameter for EE (thermal) | B47: digestion tower temperature | E47: °C | F47: Userform
A48: Input paramter for RES (already included in Franz' xls/RES sheet) | B48: digester gas yield | D48: xxx | E48: m³/d
A49: Input parameter for EE (thermal) - "heat transition coefficient" - default value - usually between 0,3 and 1,3 W/m²*K | B49: k-value digester tower | D49: 0.4 | E49: W/m²*K | F49: * 0.4-1.3 25°C
A50: Input paramter for RES (already included in Franz' xls/RES sheet) | B50: CH4 content digester gas | D50: xxx | E50: %
A51: Input paramters for digestion sheet (should already be part of digestion sheet) | B51: digester sludge yield/stabilised sludge yield | D51: xxx | E51: m³/d
B52: DM digester sludge/stabilised sludge | D52: xxx | E52: kg/m³
B53: oDM digester sludge/stabilised sludge | D53: xxx | E53: %
A55: Input parameter for EE (thermal) | B55: ambient air temperature | E55: °C | F55: 9.8 | G55: Userform
A56: Input parameter for EE (thermal) | B56: building surface | E56: m² | F56: 3567 | G56: Userform
A57: Input parameter for EE (thermal) - default value - between 50 and 150 kWh/m²*a depending on the age of the building) | B57: building heat demand | E57: kWh/m²*a | F57: 78888 | G57: Userform
A58: Input paramter for RES (already included in Franz' xls/RES sheet) | B58: effluent cool down | D58: xxx | E58: K
A60: Lines can be removed - they are already integrated in Franz' RES xls | B60: Energy sources | C60: amount | E60: energy content | G60: utilisable electric energy | I60: utilisable thermal energy
B61: digester gas total | C61: =SUM(C62:C65) -> 0 | D61: m³/d | E61: =SUM(E62:E65) ->  | F61: kWh/d | G61: =SUM(G62:G63) ->  | I61: =SUM(I62:I64) ->  | J61: *C201 kWh/d
B62: digester gas CHP (engine?) | C62: xxx | D62: *m³/d | E62: =C62*11.1*(D50/100) ->  | F62: *C186 kWh/d | G62: =E62*0.4 ->  | H62: *C186 kWh/d | I62: =E62*0.55 ->  | J62: *C218 kWh/d
B63: digester gas CHP (turbine?) | C63: xxx | D63: *m³/d | E63: =C63*11.1*(D50/100) ->  | F63: kWh/d | G63: =E63*0.4 ->  | H63: kWh/d | I63: =E63*0.55 ->  | J63: kWh/d
B64: digester gas heating | C64: xxx | D64: *m³/d | E64: =C64*11.1*(D50/100) ->  | F64: kWh/d | I64: =E64*0.4 ->  | J64: kWh/d
B65: digester gas flare | C65: xxx | D65: *m³/d | E65: =C65*11.1*(D50/100) ->  | F65: kWh/d
B66: natural gas total | C66: =SUM(C67:C69) -> 0 | D66: *m³/d | E66: =SUM(E67:E69) ->  | F66: kWh/d | G66: =SUM(G67:G68) ->  | H66: *C151 kWh/d | I66: =SUM(I67:I69) ->  | J66: *C202 kWh/d
B67: natural gas CHP (engine?) | C67: xxx | D67: *m³/d | E67: =C67*6 ->  | F67: kWh/d | G67: =E67*0.4 ->  | H67: kWh/d | I67: =E67*0.55 ->  | J67: kWh/d
B68: natural gas CHP (turbine?) | C68: xxx | D68: *m³/d | E68: =C68*6 ->  | F68: kWh/d | G68: =E68*0.4 ->  | H68: kWh/d | I68: =E68*0.55 ->  | J68: kWh/d
B69: natural gas heating | C69: xxx | D69: *m³/d | E69: =C69*6 ->  | F69: kWh/d | I69: =C69*U109 ->  | J69: kWh/d
B70: liquide gas total | C70: =SUM(C71:C73) -> 0 | D70: kg/d | F70: kWh/d | G70: =SUM(G71:G72) -> 0 | H70: *C151 kWh/d | I70: =SUM(I71:I73) -> 0 | J70: *C202 kWh/d
B71: liquide gas CHP (engine?) | C71: xxx | D71: kg/d | F71: kWh/d | H71: kWh/d | J71: kWh/d
B72: liquide gas CHP (turbine???) | C72: xxx | D72: kg/d | F72: kWh/d | H72: kWh/d | J72: kWh/d
B73: liquide gas heating | C73: xxx | D73: kg/d | F73: kWh/d | J73: kWh/d
B74: heating oil | C74: xxx | D74: l/d | F74: kWh/d | G74: xxx | H74: *C151 kWh/d | J74: kWh/d
B75: alternative renewables total | C75: =SUM(C76:C80) ->  | D75: kWh/d | E75: =SUM(E76:E80) -> 0 | F75: kWh/d | G75: =SUM(G78:G80) -> 0 | H75: *C151 kWh/d | I75: =SUM(I76:I77) -> 0 | J75: *C202 kWh/d
B76: wastewater heat recovery | C76: =1.16*D58*D23 ->  | D76: kWh/d | F76: kWh/d | J76: kWh/d
B77: solar power (solar thermal) | C77: xxx | D77: kWh/d | F77: kWh/d | J77: kWh/d
B78: solar power (photopholtaics) | C78: xxx | D78: kWh/d | F78: kWh/d | G78: xxx | H78: kWh/d
B79: windpower | C79: xxx | D79: kWh/d | F79: kWh/d | G79: xxx | H79: kWh/d
B80: hydropower | C80: xxx | D80: kWh/d | F80: kWh/d | G80: xxx | H80: kWh/d
B81: total electric and thermal energy generation at WWTP | G81: =G61+G70+G66+G74+G75 ->  | H81: *C182 kWh/d | I81: =I61+I66+I70+I74+I75 ->  | J81: kWh/d
B82: energy supplied/purchased from external supply (public supply and distric heating) | G82: xxx | H82: *C152 kWh/d | I82: xxx | J82: kWh/d
B83: energy delivered/sold to external supply (public supply and district heating) | G83: xxx | H83: *C153 kWh/d | I83: xxx | J83: *C203 kWh/d
B84: energy provision WWTP | G84: =G82+G81-G83 ->  | H84: *C182 kWh/d | I84: =I82+I81-I83 ->  | J84: kWh/d
B86: Electric energy consumption
A87: Input parameter for EE (the more detailed data avaiable the better) | B87: 1) inflow pumping station and mechanical pre-treatment | C87: =SUM(C88+C89+C90) -> 0 | D87: kWh/d
B88: 1.1 pumping stations | C88: 0 | D88: kWh/d | E88: Userform
B89: 1.2 screen | C89: 0 | D89: kWh/d | E89: Userform
B90: 1.3 sand trap and primary clarifier | C90: 0 | D90: kWh/d | E90: Userform
B91: 2) mechanical-biological treatment | C91: =SUM(C92:C95) -> 0 | D91: kWh/d
B92: 2.1 aeration | C92: 0 | D92: kWh/d | E92: Userform
B93: 2.2 stirrers | C93: 0 | D93: kWh/d | E93: Userform
B94: 2.3 return sludge pumps | C94: 0 | D94: kWh/d | E94: Userform
B95: 2.4 miscellanious (sec. clarifier) | C95: 0 | D95: kWh/d | E95: Userform
B96: 3) sludge treatment | C96: =SUM(C97:C99) -> 0 | D96: kWh/d
B97: 3.1 thickening | C97: 0 | D97: kWh/d | E97: Userform
B98: 3.2 digestion | C98: 0 | D98: kWh/d | E98: Userform
B99: 3.3 dewatering | C99: 0 | D99: kWh/d | E99: Userform
B100: 4) infrastructure | C100: =SUM(C101:C102) -> 0 | D100: kWh/d
B101: 4.1 heating | C101: 0 | D101: kWh/d | E101: Userform
B102: 4.2 misc. infrastructure | C102: 0 | D102: kWh/d | E102: Userform
B103: total WWTP | C103: =SUM(C100,C91,C87,C96) -> 0 | D103: kWh/d | E103: 0 | F103: ricorda che qua hai due numeri
G105: Specif Heat demand | H105: 0.00116 | I105: kWh/(l*K)
B106: Thermal energy consumption
A107: Input parameter for EE | B107: Sludge heating | C107: =G107/365 -> 0 | D107: kWh/d | E107: QS | F107: QS=m*(tFR-tRS)*c | G107: =+(Feedstock_Database!F5+Feedstock_Database!F7)*10^3*(EE_WWTP!D47-RES_WWTP!D17)*H105 -> 0 | H107: kWh/y
A108: (Calculated) input parameter for EE | B108: transmission loss, digester tower heating | C108: =D45*(D47-D55)*D49*24/1000 -> 0 | D108: kWh/d | E108: QT | F108: QT = A*(tFR-tUT)*k*24/1000
A109: (Calculated) input parameter for EE - default value - 5 to 10 % of sum from line 107 and 108 | B109: generation, storage and distribution loss | C109: =(C108+C107)*0.1 -> 0 | D109: kWh/d | E109: QV | F109: 10% von QT+QS
A110: (Calculated) input parameter for EE | B110: heat for buildings | C110: =(D56*D57)/365 -> 0 | D110: kWh/d | E110: Qbuilding
A111: I am not sure, if required in a first step (let's wait for the trainings) | B111: heat for supply air unit | C111: ??? | D111: kWh/d
B112: total WWTP | C112: =SUM(C107:C111) -> 0 | D112: kWh/d | E112: QWWTP
A115: Input paramter for RES (already included in Franz' xls/RES sheet) - "heat capacity of water" - default value 1,16 kWh/m³*K | B115: heat capacity | C115: 1.16 | D115: kWh/kg/K
A116: can be removed - see line 49
A117: can be removed - see line 55
A119: Lines can be removed (belong to comment in line 111)
A127: WWTP indicators
A128: (Calculated) input parameter for EE - based on 120 g COD/PE*d (if we also want to refer to BOD, the divisor woud be 0,06 - 60 g BOD/PE*d) | B128: PE120 | C128: =D27/0.12 -> 0
A129: Lines can be removed
A146: Energy indicators
A148: 1 | B148: Electric energy provision
A150: Lines can be removed
A156: 2 | B156: Electric energy consumption
F157: standard range
A158: final evaluation of EE (result) | B158: WWTP total | C158: =IF(E103=0,C103*365/$C$128,E103*365/$C$128) ->  | D158: kWh/PE120/a | F158: 20 | G158: 50
B159: 1) inflow pumping station and mechanical pre-treatment | C159: =C87*365/$C$128 ->  | D159: kWh/PE120/a | F159: 2.5 | G159: 5.5
B160: 1.1 pumping stations | C160: =C88*365/$C$128 ->  | D160: kWh/PE120/a | F160: 1.5 | G160: 3.5
B161: 1.2 screening | D161: kWh/PE120/a | F161: 0.5 | G161: 1
B162: 1.3 sand trap and primary clarifier | D162: kWh/PE120/a | F162: 0.5 | G162: 1
B163: 2) mechanical-biological treatment | D163: kWh/PE120/a | F163: 14.5 | G163: 33
B164: 2.1 aeration | D164: kWh/PE120/a | F164: 11.5 | G164: 22
B165: 2.2 stirrers | D165: kWh/PE120/a | F165: 1.5 | G165: 4.5
B166: 2.3 return sludge pumps | D166: kWh/PE120/a | F166: 1 | G166: 4.5
B167: 2.4 miscellanious (sec. clarifier) | D167: kWh/PE120/a | F167: 0.5 | G167: 2
B168: 3) sludge treatment | C168: =C96*365/C128 ->  | D168: kWh/PE120/a | F168: 2 | G168: 7
B169: 3.1 thickening | C169: =C97*365/$C$128 ->  | D169: kWh/PE120/a | F169: 0.5 | G169: 1
B170: 3.2 digestion | D170: kWh/PE120/a | F170: 1 | G170: 2.5
B171: 3.3 dewatering | D171: kWh/PE120/a | F171: 0.5 | G171: 3.5
B172: 4) infrastructure | D172: kWh/PE120/a | F172: 1 | G172: 4.5
B173: 4.1 heating | D173: kWh/PE120/a | F173: 0 | G173: 2.5
B174: 4.2 misc. infrastructure | D174: kWh/PE120/a | F174: 1 | G174: 2
A180: 3 | B180: Other electric energy indicators
A182: Lines can be removed
A188: 4 | B188: Energy indicators for aeration energy
A190: Lines can be removed
A199: 5 | B199: Thermal ernergy provision
A201: Lines can be removed
A206: 6 | B206: Thermal energy comsumption
F207: standard range
A208: final evaluation of EE (result) | B208: WWTP total | C208: =+SUM(C209:C212) ->  | D208: kWh/PE/a | F208: 0 | G208: 30
B209: sludge heating | C209: =C107*365/$C$128 ->  | D209: kWh/PE/a | F209: 8 | G209: 12
B210: transmission loss, digester tower heating | C210: =C108*365/$C$128 ->  | D210: kWh/PE/a | F210: 0 | G210: 4
B211: generation, storage and distrivution loss | C211: =C109*365/$C$128 ->  | D211: kWh/PE/a | F211: 0 | G211: 2
B212: heat for buildings | C212: =C110*365/$C$128 ->  | D212: kWh/PE/a | F212: 0 | G212: 2
A213: Line can be removed (belong to comment in line 111)
A216: 7 | B216: Other thermal energy indicators
A218: Line can be removed

Sheet Input
B2: OFMSW [t a.r.] | C2: =+Front!Q7 -> 0 | E2: Anaerobic Digestion | P2: Composting | AA2: Gasification | AO2: HTC
B3: SEWAGE SLUDGE [t a.r.] | C3: =+Front!Q9 -> 0 | F3: OFMSW | G3: Sewage Sludge
E4: Totalsolid (%) | F4: 0 | G4: 0 | Q4: Solidsinitial = initial feedstock concentration (%, solid) | R4: Cfeed = carbon content of the feedstock (%, db) | S4: Hfeed = hydrogen content of the feedstock (%, db) | T4: Ofeed = oxygen content of the feedstock (%, db) | U4: Nfeed = nitrogen content of the feedstock (%, db) | AB4: Solidsinitial = initial feedstock concentration (%, solid) | AC4: Cfeed = carbon content of the feedstock (%, db) | AD4: Hfeed = hydrogen content of the feedstock (%, db) | AE4: Ofeed = oxygen content of the feedstock (%, db) | AF4: Nfeed = nitrogen content of the feedstock (%, db) | AQ4: Solidsinitial = initial feedstock concentration (%, solid) | AR4: Cfeed = carbon content of the feedstock (%, db) | AS4: Hfeed = hydrogen content of the feedstock (%, db) | AT4: Ofeed = oxygen content of the feedstock (%, db) | AU4: Ashfeed = ash content of the feedstock (%, db) | AV4: VMfeed = volatile matter content of the feedstock (%,db) | AW4: FCfeed = fixed carbon content of the feedstock (%, db)
P5: OFMSW | Q5: 0 | R5: 0 | S5: 0 | T5: 0 | U5: 0 | AA5: OFMSW | AB5: 0 | AC5: 0 | AD5: 0 | AE5: 0 | AF5: 0 | AP5: OFMSW | AQ5: 45 | AR5: 44.19 | AS5: 5.79 | AT5: 40.92 | AU5: 7.44 | AV5: 75.11 | AW5: 16.32
F6: 45 | G6: 30 | H6: Default | P6: Default | Q6: 45 | R6: 44.19 | S6: 5.79 | T6: 40.92 | U6: 2.6 | AA6: Default | AB6: 45 | AC6: 44.19 | AD6: 5.79 | AE6: 40.92 | AF6: 2.6 | AP6: Default | AQ6: 45 | AR6: 44.19 | AS6: 5.79 | AT6: 40.92 | AU6: 7.44 | AV6: 75.11 | AW6: 16.32
P7: Sewage Sludge | Q7: 0 | R7: 0 | S7: 0 | T7: 0 | U7: 0 | AA7: Sewage Sludge | AB7: 0 | AC7: 0 | AD7: 0 | AE7: 0 | AF7: 0 | AP7: Sewage Sludge | AQ7: 7.5 | AR7: 33.01 | AS7: 5.56 | AT7: 33.17 | AU7: 28.34 | AV7: 67.58 | AW7: 3.89
E8: WET | P8: Default | Q8: 30 | R8: 33.01 | S8: 5.56 | T8: 33.17 | U8: 2 | AA8: Default | AB8: 30 | AC8: 33.01 | AD8: 5.56 | AE8: 33.17 | AF8: 2 | AP8: Default | AQ8: 7.5 | AR8: 33.01 | AS8: 5.56 | AT8: 33.17 | AU8: 28.34 | AV8: 67.58 | AW8: 3.89
E9: Volatile Matter (% solid) | F9: Specific production of biogas [m3/kgVS]
D10: OFMSW | E10: 90 | F10: 0.5 | Q10: % weight of the organic substance that becomes compost | R10: inlet organic matter temperature [°C] | S10: inlet air temperature [°C] | T10: output air temperature [°C] | U10: final compost temperature [°C] | V10: final compost moisture % | AB10: η ele | AC10: η thermal | AQ10: Tfinal = final reaction temperature (°C) | AR10: t = reaction time (min) | AS10: HT = heating time (min) | AT10: V = volume (mL) | AU10: VR = volume ratio
D11: Default | E11: 90 | F11: 0.5 | Q11: 0 | R11: 0 | S11: 0 | T11: 0 | U11: 0 | V11: 0 | AB11: 0 | AC11: 0 | AQ11: 240 | AR11: 920 | AS11: 81 | AT11: 2870 | AU11: 0.4
D12: Sewage Sludge | E12: 80 | F12: 0.5 | P12: Default | Q12: 60 | R12: 25 | S12: 20 | T12: 45 | U12: 30 | V12: 45 | AA12: Default | AB12: 30 | AC12: 40 | AP12: Default | AQ12: 240 | AR12: 920 | AS12: 81 | AT12: 2870 | AU12: 0.4
D13: Default | E13: 80 | F13: 0.5
E15: LHV Biogas [MJ/m3] | F15: η ele | G15: η thermal
E16: 20 | F16: 37 | G16: 43
D17: Default | E17: 20 | F17: 37 | G17: 43
E21: SEMY-DRY
E22: Volatile Matter (% solid) | F22: Specific production of biogas [m3/kgVS]
D23: OFMSW | E23: 90 | F23: 0.5
D24: Default | E24: 90 | F24: 0.5
D25: Sewage Sludge | E25: 80 | F25: 0.5
D26: Default | E26: 80 | F26: 0.5
E28: LHV Biogas [MJ/m3] | F28: η ele | G28: η thermal
E29: 20 | F29: 37 | G29: 43
D30: Default | E30: 20 | F30: =+F17 -> 37 | G30: =+G17 -> 43
E33: DRY
E34: Volatile Matter (% solid) | F34: Specific production of biogas [m3/kgVS]
D35: OFMSW | E35: 0 | F35: 0
D36: Default | E36: 90 | F36: 0.3
D37: Sewage Sludge | E37: 0 | F37: 0
D38: Default | E38: 80 | F38: 0.3
E40: LHV Biogas [MJ/m3] | F40: η ele | G40: η thermal
E41: 20 | F41: 37 | G41: 43
D42: Default | E42: 20 | F42: =+F30 -> 37 | G42: =+G30 -> 43
B52: UCA
B54: Type | D54: Type 1 a | E54: Type 1b | F54: Type 1c | G54: Type 2a | H54: Type 2b | I54: Type 3 | J54: Type 4
B56: Specific thermal energy demand | C56: [MWh/(ha.a)] | D56: 333 | E56: 0 | F56: 0 | G56: 0 | H56: 0
C57: default | D57: 1000 | E57: 1500 | F57: 2000 | G57: 1200 | H57: 800
B59: Settlement specific grid length (internal) | C59: [m/ha] | D59: 0 | E59: 0 | F59: 0 | G59: 0 | H59: 0 | I59: 0
C60: default | D60: 200 | E60: 200 | F60: 200 | G60: 150 | H60: 150 | I60: 100
B66: LCA | C66: status quo | E66: new situation
B68: kg CH3COOH acetico | C68: 0 | D68: 15000 | E68: 0 | F68: 15000
B69: kg METHANOL | C69: 0 | D69: 2500 | E69: 0 | F69: 2500
B70: kg FeCl3 (100%) cloruro ferrico | C70: 0 | D70: 1500 | E70: 0 | F70: 1500
B71: kg PACl (100%) Polyaluminiumchlorid | C71: 0 | D71: 4000 | E71: 0 | F71: 4000
B72: kg Polymer (100% AS) | C72: 0 | D72: 750 | E72: 0 | F72: 750
C81: Total price - partner estimate | D81: Price of eletricity | E81: Electricity transmission free | F81: Price of natural gas | G81: Price of heat | H81: CNG price for cars | I81: Energy subsidies (RES) | J81: Subsidy for biomethan | K81: Subsidy for heat | L81: Disposal price sludge | M81: Disposal price CLO | N81: Disposal price RDF
C82: EUR/kWh | D82: EUR/kWh | E82: EUR/kWh | F82: EUR/kWh | G82: EUR/GJ | H82: EUR/kg (Nm3) | I82: EUR/kWh | J82: EUR/Nm3 | K82: EUR/GJ | L82: EUR/t | M82: EUR/t | N82: EUR/t
B83: European Union
B84: Germany
B85: Austria
B86: Croatia
B87: Italy
B88: Czech Republic
B89: Sweden
B92: dafualt data
B93: European Union | C93: 1 | D93: 2 | E93: 3 | F93: 4 | G93: 5 | H93: 6 | I93: 7 | J93: 8 | K93: 9 | L93: 10 | M93: 11 | N93: 12
B94: Germany | C94: 13 | D94: 14 | E94: 15 | F94: 16 | G94: 17 | H94: 18 | I94: 19 | J94: 20 | K94: 21 | L94: 22 | M94: 23 | N94: 24
B95: Austria | C95: 25 | D95: 26 | E95: 27 | F95: 28 | G95: 29 | H95: 30 | I95: 31 | J95: 32 | K95: 33 | L95: 34 | M95: 35 | N95: 36
B96: Croatia | C96: 37 | D96: 38 | E96: 39 | F96: 40 | G96: 41 | H96: 42 | I96: 43 | J96: 44 | K96: 45 | L96: 46 | M96: 47 | N96: 48
B97: Italy | C97: 49 | D97: 50 | E97: 51 | F97: 52 | G97: 53 | H97: 54 | I97: 55 | J97: 56 | K97: 57 | L97: 58 | M97: 59 | N97: 60
B98: Czech Republic | C98: 61 | D98: 62 | E98: 63 | F98: 64 | G98: 65 | H98: 66 | I98: 67 | J98: 68 | K98: 69 | L98: 70 | M98: 71 | N98: 72
B99: Sweden | C99: 73 | D99: 74 | E99: 75 | F99: 76 | G99: 77 | H99: 78 | I99: 79 | J99: 80 | K99: 81 | L99: 82 | M99: 83 | N99: 84
B102: FROM USERFORM | C102: Price of electricity | D102: CNG price for cars | E102: Selling price of electricity | F102: Selling price for biomethan with subsidy | G102: Selling price for heat | H102: Disposal price sludge | I102: Primary Sludge | J102: Secondary Sludge | K102: Organic fraction MSW | L102: Digestate | M102: Food industry waste | N102: Animal blood | O102: Animal fat | P102: other
C103: EUR/kWh | D103: EUR/Nm3 | E103: EUR/kWh | F103: EUR/Nm3 | G103: EUR/GJ | H103: EUR/t | I103: €/ton | J103: €/ton | K103: €/ton | L103: €/ton | M103: €/ton | N103: €/ton | O103: €/ton | P103: €/ton
B104: European Union | C104: 0 | D104: 0 | E104: 0 | F104: 0 | G104: 0 | H104: 0 | I104: 0 | J104: 0 | K104: 0 | L104: 0 | M104: 0 | N104: 0 | O104: 0 | P104: 0
B105: Germany | C105: 0 | D105: 0 | E105: 0 | F105: 0 | G105: 0 | H105: 0 | I105: 0 | J105: 0 | K105: 0 | L105: 0 | M105: 0 | N105: 0 | O105: 0 | P105: 0
B106: Austria | C106: 0 | D106: 0 | E106: 0 | F106: 0 | G106: 0 | H106: 0 | I106: 0 | J106: 0 | K106: 0 | L106: 0 | M106: 0 | N106: 0 | O106: 0 | P106: 0
B107: Croatia | C107: 0 | D107: 0 | E107: 0 | F107: 0 | G107: 0 | H107: 0 | I107: 0 | J107: 0 | K107: 0 | L107: 0 | M107: 0 | N107: 0 | O107: 0 | P107: 0
B108: Italy | C108: 0 | D108: 0 | E108: 0 | F108: 0 | G108: 0 | H108: 0 | I108: 0 | J108: 0 | K108: 0 | L108: 0 | M108: 0 | N108: 0 | O108: 0 | P108: 0
B109: Czech Republic | C109: 0 | D109: 0 | E109: 0 | F109: 0 | G109: 0 | H109: 0 | I109: 0 | J109: 0 | K109: 0 | L109: 0 | M109: 0 | N109: 0 | O109: 0 | P109: 0
B110: Sweden | C110: 0 | D110: 0 | E110: 0 | F110: 0 | G110: 0 | H110: 0 | I110: 0 | J110: 0 | K110: 0 | L110: 0 | M110: 0 | N110: 0 | O110: 0 | P110: 0
B112: dafualt data
B113: European Union
B114: Germany
B115: Austria
B116: Croatia
B117: Italy
B118: Czech Republic | C118: 0.064 | D118: 0.7 | E118: 0.038 | F118: 0.88 | G118: 14.4 | H118: 36 | I118: 20 | J118: 20 | K118: 55 | L118: 0 | M118: 55 | N118: 20 | O118: -25
B119: Sweden

Sheet Economic evaluation
B1: REEF 2W project | H1: Legend
B2: Economic evaluation of the REEF2W project - a basic tool for the evaluation | H2: Default Data | I2: Data from other tool | J2: Calculated | K2: to fill by the user | L2: To report
B4: Ondřej Beneš, Tomáš Rosenberg, Zdeněk Varga
B7: Input data from user | C7: costs | I7: incomes
C8: Price of electricity | D8: CNG price for cars | E8: Selling price of electricity | F8: Selling price for biomethan with subsidy | G8: Selling price for heat | H8: Disposal price sludge | I8: Primary Sludge | J8: Secondary Sludge | K8: Organic fraction MSW | L8: Digestate | M8: Food industry waste | N8: Animal blood | O8: Animal fat | P8: other
C9: EUR/kWh | D9: EUR/Nm3 | E9: EUR/kWh | F9: EUR/Nm3 | G9: EUR/GJ | H9: EUR/t | I9: €/ton | J9: €/ton | K9: €/ton | L9: €/ton | M9: €/ton | N9: €/ton | O9: €/ton | P9: €/ton
B10: European Union | C10: =+Input!C104 -> 0 | D10: =+Input!D104 -> 0 | E10: =+Input!E104 -> 0 | F10: =+Input!F104 -> 0 | G10: =+Input!G104 -> 0 | H10: =+Input!H104 -> 0 | I10: =+Input!I104 -> 0 | J10: =+Input!J104 -> 0 | K10: =+Input!K104 -> 0 | L10: =+Input!L104 -> 0 | M10: =+Input!M104 -> 0 | N10: =+Input!N104 -> 0 | O10: =+Input!O104 -> 0 | P10: =+Input!P104 -> 0
B11: Germany | C11: =+Input!C105 -> 0 | D11: =+Input!D105 -> 0 | E11: =+Input!E105 -> 0 | F11: =+Input!F105 -> 0 | G11: =+Input!G105 -> 0 | H11: =+Input!H105 -> 0 | I11: =+Input!I105 -> 0 | J11: =+Input!J105 -> 0 | K11: =+Input!K105 -> 0 | L11: =+Input!L105 -> 0 | M11: =+Input!M105 -> 0 | N11: =+Input!N105 -> 0 | O11: =+Input!O105 -> 0 | P11: =+Input!P105 -> 0
B12: Austria | C12: =+Input!C106 -> 0 | D12: =+Input!D106 -> 0 | E12: =+Input!E106 -> 0 | F12: =+Input!F106 -> 0 | G12: =+Input!G106 -> 0 | H12: =+Input!H106 -> 0 | I12: =+Input!I106 -> 0 | J12: =+Input!J106 -> 0 | K12: =+Input!K106 -> 0 | L12: =+Input!L106 -> 0 | M12: =+Input!M106 -> 0 | N12: =+Input!N106 -> 0 | O12: =+Input!O106 -> 0 | P12: =+Input!P106 -> 0
B13: Croatia | C13: =+Input!C107 -> 0 | D13: =+Input!D107 -> 0 | E13: =+Input!E107 -> 0 | F13: =+Input!F107 -> 0 | G13: =+Input!G107 -> 0 | H13: =+Input!H107 -> 0 | I13: =+Input!I107 -> 0 | J13: =+Input!J107 -> 0 | K13: =+Input!K107 -> 0 | L13: =+Input!L107 -> 0 | M13: =+Input!M107 -> 0 | N13: =+Input!N107 -> 0 | O13: =+Input!O107 -> 0 | P13: =+Input!P107 -> 0
B14: Italy | C14: =+Input!C108 -> 0 | D14: =+Input!D108 -> 0 | E14: =+Input!E108 -> 0 | F14: =+Input!F108 -> 0 | G14: =+Input!G108 -> 0 | H14: =+Input!H108 -> 0 | I14: =+Input!I108 -> 0 | J14: =+Input!J108 -> 0 | K14: =+Input!K108 -> 0 | L14: =+Input!L108 -> 0 | M14: =+Input!M108 -> 0 | N14: =+Input!N108 -> 0 | O14: =+Input!O108 -> 0 | P14: =+Input!P108 -> 0
B15: Czech Republic | C15: =+Input!C109 -> 0 | D15: =+Input!D109 -> 0 | E15: =+Input!E109 -> 0 | F15: =+Input!F109 -> 0 | G15: =+Input!G109 -> 0 | H15: =+Input!H109 -> 0 | I15: =+Input!I109 -> 0 | J15: =+Input!J109 -> 0 | K15: =+Input!K109 -> 0 | L15: =+Input!L109 -> 0 | M15: =+Input!M109 -> 0 | N15: =+Input!N109 -> 0 | O15: =+Input!O109 -> 0 | P15: =+Input!P109 -> 0
B16: Sweden | C16: =+Input!C110 -> 0 | D16: =+Input!D110 -> 0 | E16: =+Input!E110 -> 0 | F16: =+Input!F110 -> 0 | G16: =+Input!G110 -> 0 | H16: =+Input!H110 -> 0 | I16: =+Input!I110 -> 0 | J16: =+Input!J110 -> 0 | K16: =+Input!K110 -> 0 | L16: =+Input!L110 -> 0 | M16: =+Input!M110 -> 0 | N16: =+Input!N110 -> 0 | O16: =+Input!O110 -> 0 | P16: =+Input!P110 -> 0
AY17: Feedstock | AZ17: Units | BB17: Recomanded range | BC17: Notes
AY18: Primary Sludge | AZ18: €/ton | BB18: 10-30 | BC18: 2% sludge depends if its aerobically stabilizated or not
B19: dafualt data | AY19: default | AZ19: €/ton | BA19: 20 | BC19: INCOME
B20: European Union | AY20: Secondary Sludge | AZ20: €/ton | BB20: 10-30 | BC20: 2% sludge depends if its aerobically stabilizated or not
B21: Germany | AY21: default | AZ21: €/ton | BA21: 20 | BC21: INCOME
B22: Austria | AY22: Organic fraction MSW | AZ22: €/ton | BB22: 20-60 | BC22: depend on quailty and source there is no exact value for this commodity, It is not produced in CZ, biowaste collected separately from households is about 20 EUR/t, MSW is about 55 - 60 EUR/t
B23: Croatia | AY23: default | AZ23: €/ton | BA23: 55 | BC23: INCOME
B24: Italy | AY24: Digestate | AZ24: €/ton
B25: Czech Republic | C25: 0.064 | D25: 0.7 | E25: 0.038 | F25: 0.88 | G25: 14.4 | H25: 36 | I25: 20 | J25: 20 | K25: 55 | L25: 0 | M25: 55 | N25: 20 | O25: -25 | AY25: default | AZ25: €/ton | BA25: 0
B26: Sweden | AY26: Food industry waste | AZ26: €/ton | BB26: 20-80 | BC26: Depends on quality
AY27: default | AZ27: €/ton | BA27: 55 | BC27: INCOME
B28: How much of sludge you are currently disposing ? | C28: t/year | D28: 0 | E28: Userform
B29: How much of biomethane you will sell like CNG | C29: % | D29: 0 | E29: Userform | AY29: Animal blood | AZ29: €/ton | BB29: 16-40
B31: Input data or clalculated data from others tools | C31: Units | E31: Notes
B32: Produced biogas (calculated from other tools) | C32: Nm3/year | D32: =+RES_WWTP!J37 ->  | E32: Taken from RES_WWTP
B33: Produced methane (calculated from other tools) | C33: Nm3/year | D33: =+UpGrading!C5/100 -> 0.6
B34: percentage or NM3 biogas (methane) converted to biomethane | C34: % | D34: =+RES_WWTP!K37 -> 0 | E34: Taken from RES_WWTP cell K37 (amount of biogas converted to biomethane)
B35: Quality of biomethane (P2G, biogas upgrading …) | C35: % | D35: =+UpGrading!C10 -> 98
B36: Produced biomethane (P2G, biogas upgrading …) | C36: Nm3/year | D36: =+(UpGrading!C21+UpDateAnaerobicDigestion!D16)/(D35/100) -> 
B37: CHP efficiency electrical | C37: % | D37: =+RES_WWTP!J23 -> 
B38: CHP efficiency thermal | C38: % | D38: =+RES_WWTP!K23 -> 
B39: Amount of stabilizated sludge (dewatered) | C39: t/year | D39: =+IF(AND(Anaerobic_Digestion!D10="Wet"),Anaerobic_Digestion!F34,IF(AND(Anaerobic_Digestion!D10="Semy-Dry"),Anaerobic_Digestion!AB34,IF(AND(Anaerobic_Digestion!D10="Dry"),Anaerobic_Digestion!AU34,0))) ->  | E39: Sheet Anaerobic digestion - cell F34 or AB34 or AU 34 = Amount of sludge dewaterized per year
B40: Country choosed from userform | D40: =+'Plant description'!C1 -> 0 | E40: Taken from sheet Plant description C1
B42: Calculation of disposal sludge | C42: Units | E42: Recomanded range | F42: Notes
B43: Income from external sludge | C43: EUR/year | D43: =D47*Anaerobic_Digestion!E3+D48*Anaerobic_Digestion!F3+D49*Anaerobic_Digestion!G3+D50*Anaerobic_Digestion!H3+D51*Anaerobic_Digestion!I3+D52*Anaerobic_Digestion!J3+D53*Anaerobic_Digestion!K3+D54*Anaerobic_Digestion!L3 -> 0 | E43: REPORT
B44: Price for disposal sludge | C44: EUR/year | D44: =D28*D46 -> 0 | E44: REPORT
B45: Price for disposal sludge with additional sludge from external substrates | C45: EUR/year | D45: =D44+D39*D46 ->  | E45: REPORT
B46: Sludge disposal price | C46: EUR/t | D46: =IF(D40=B10,H10,IF(D40=B11,H11,IF(D40=B12,H12,IF(D40=B13,H13,IF(D40=B14,H14,IF(D40=B15,H15,IF(D40=B16,H16,"0"))))))) -> 0 | F46: From userform table
B47: Primary Sludge | C47: EUR/t | D47: =IF(D40=B10,I10,IF(D40=B11,I11,IF(D40=B12,I12,IF(D40=B13,I13,IF(D40=B14,I14,IF(D40=B15,I15,IF(D40=B16,I16,"0"))))))) -> 0 | F47: From userform table
B48: Secondary Sludge | C48: EUR/t | D48: =IF(D40=B10,J10,IF(D40=B11,J11,IF(D40=B12,J12,IF(D40=B13,J13,IF(D40=B14,J14,IF(D40=B15,J15,IF(D40=B16,J16,"0"))))))) -> 0 | F48: From userform table
B49: Organic fraction MSW | C49: EUR/t | D49: =IF(D40=B10,K10,IF(D40=B11,K11,IF(D40=B12,K12,IF(D40=B13,K13,IF(D40=B14,K14,IF(D40=B15,K15,IF(D40=B16,K16,"0"))))))) -> 0 | F49: From userform table
B50: Digestate | C50: EUR/t | D50: =IF(D40=B10,L10,IF(D40=B11,L11,IF(D40=B12,L12,IF(D40=B13,L13,IF(D40=B14,L14,IF(D40=B15,L15,IF(D40=B16,L16,"0"))))))) -> 0 | F50: From userform table
B51: Food industry waste | C51: EUR/t | D51: =IF(D40=B10,M10,IF(D40=B11,M11,IF(D40=B12,M12,IF(D40=B13,M13,IF(D40=B14,M14,IF(D40=B15,M15,IF(D40=B16,M16,"0"))))))) -> 0 | F51: From userform table
B52: Animal blood | C52: EUR/t | D52: =IF(D40=B10,N10,IF(D40=B11,N11,IF(D40=B12,N12,IF(D40=B13,N13,IF(D40=B14,N14,IF(D40=B15,N15,IF(D40=B16,N16,"0"))))))) -> 0 | F52: From userform table
B53: Animal fat | C53: EUR/t | D53: =IF(D40=B10,O10,IF(D40=B11,O11,IF(D40=B12,O12,IF(D40=B13,O13,IF(D40=B14,O14,IF(D40=B15,O15,IF(D40=B16,O16,"0"))))))) -> 0 | F53: From userform table
B54: other | C54: EUR/t | D54: =IF(D40=B10,P10,IF(D40=B11,P11,IF(D40=B12,P12,IF(D40=B13,P13,IF(D40=B14,P14,IF(D40=B15,P15,IF(D40=B16,P16,"0"))))))) -> 0 | F54: From userform table
B58: Calculation of thermal hydrolisys | C58: Units | E58: Recomanded range | F58: Notes
B59: default | C59: EUR/t | D59: 20 | E59: 20eur/t of process material ,nebo 2000-4000 za ekvivalenta,
B60: Investment cost for thermal hydrolisys of external substrates | C60: EUR | D60: =(Anaerobic_Digestion!E3+Anaerobic_Digestion!F3+Anaerobic_Digestion!G3+Anaerobic_Digestion!H3+Anaerobic_Digestion!I3+Anaerobic_Digestion!J3+Anaerobic_Digestion!K3)*D59 -> 0 | E60: REPORT
B63: Calculation of Biogas upgrading technology
B64: Amount of biomethane produced from external substrates | C64: Nm3/year | D64: =D34/100*(UpGrading!C22+UpDateAnaerobicDigestion!D16) ->  | E64: Sheet UpGrading! Cell C22 + Sheet UpDateAnaerobicDigestion! Cell D16 = Total amount of biomethane upgraded from biogas (100%) * percentage of desired amoun of biogas to upgrade
B65: Selling price of biomethane | C65: EUR/Nm3 | D65: =IF(D40=B10,F10,IF(D40=B11,F11,IF(D40=B12,F12,IF(D40=B13,F13,IF(D40=B14,F14,IF(D40=B15,F15,IF(D40=B16,F16,"0"))))))) -> 0 | F65: From userform table | K65: Selling price of biomethane | L65: 0.44
B66: Selling price of electricity | C66: EUR/kWh | D66: =IF(D40=B10,E10,IF(D40=B11,E11,IF(D40=B12,E12,IF(D40=B13,E13,IF(D40=B14,E14,IF(D40=B15,E15,IF(D40=B16,E16,"0"))))))) -> 0 | F66: From userform table | K66: Selling price of electricity | L66: 0.038
B67: Selling price of thermal energy | C67: EUR/GJ | D67: =IF(D40=B10,G10,IF(D40=B11,G11,IF(D40=B12,G12,IF(D40=B13,G13,IF(D40=B14,G14,IF(D40=B15,G15,IF(D40=B16,G16,"0"))))))) -> 0 | F67: From userform table | K67: Selling price of thermal energy | L67: 12
B68: CNG price for cars | C68: EUR/Nm3 | D68: =IF(D40=B10,D10,IF(D40=B11,D11,IF(D40=B12,D12,IF(D40=B13,D13,IF(D40=B14,D14,IF(D40=B15,D15,IF(D40=B16,D16,"0"))))))) -> 0 | F68: From userform table
B69: Price of electricity | C69: EUR/kWh | D69: =IF(D40=B10,C10,IF(D40=B11,C11,IF(D40=B12,C12,IF(D40=B13,C13,IF(D40=B14,C14,IF(D40=B15,C15,IF(D40=B16,C16,"0"))))))) -> 0 | F69: From userform table
B71: default | C71: Eur | D71: =IF(UpGrading!F2="Membrane",D73,IF(UpGrading!F2="PWA",D72,IF(UpGrading!F2="PSA",D74,"")))*(D32/365/24*D34/100) ->  | F71: investment cost based on choosed upgrading technology * amount of gas to celan
B72: PWA | D72: =IF(((D32/365/24)*D34/100)<1000,-0.00002*((D32/365/24)*D34/100)^3+0.0523*((D32/365/24)*D34/100)^2-41.796*((D32/365/24)*D34/100)+12519,((D32/365/24)*D34/100)*1500) ->  | F72: investment cost = -2E-05x3 + 0,0523x2 - 41,796x + 12519 ; x= inputgas m3/h (equation for investment cost based on input gas m3/h from benchmarking of different sizes of technology)
B73: Membrane | D73: =IF(((D32/365/24)*D34/100)<700,-0.000006*((D32/365/24)*D34/100)*((D32/365/24)*D34/100)*((D32/365/24)*D34/100)+0.0173*((D32/365/24)*D34/100)*((D32/365/24)*D34/100)-17.562*((D32/365/24)*D34/100)+ 7867.2,1700*(D32/365/24*D34/100)) ->  | F73: investment cost = -6E-06x3 + 0,0173x2 - 17,562x + 7867,2 (equation for investment cost based on input gas m3/h from benchmarking of different sizes of technology)
B74: PSA | D74: =IF(((D32/365/24)*D34/100)<1500, -0.000006*(D32/365/24*D34/100)*(D32/365/24*D34/100)*(D32/365/24*D34/100)+0.0189*(D32/365/24*D34/100)*(D32/365/24*D34/100)-20.213*(D32/365/24*D34/100)+8931.6,1500*((D32/365/24)*D34/100)) ->  | F74: investment cost = -6E-06x3 + 0,0189x2 - 20,213x + 8931,6 (equation for investment cost based on input gas m3/h from benchmarking of different sizes of technology)
B75: Investment cost for biogas upgrading | C75: EUR | D75: =D71 ->  | E75: REPORT
B77: default | C77: EUR/kWh | D77: =-190.5*IF(UpDateAnaerobicDigestion!D14=0,0,LN(UpDateAnaerobicDigestion!D14)+2833.9) ->  | F77: Price per kw = -190.5ln(amount of kw) + 2833.9 | G77: Investment cost are between 750-2000 Eur/kw
B78: Investment cost for P2G-system | C78: EUR | D78: =UpDateAnaerobicDigestion!D14*D77 ->  | E78: REPORT
B80: default | C80: EUR/hour | D80: =IF(UpGrading!F2="Membrane",D82,IF(UpGrading!F2="PWA",D81,IF(UpGrading!F2="PSA",D83,"")))*((D32/365/24)*D34/100) -> 
B81: PWA | C81: EUR/hour | D81: =IF(((D32/365/24)*D34/100)<700,0.00000009*(((D32/365/24)*D34/100))^2-0.0002*(((D32/365/24)*D34/100))+0.1878,(((D32/365/24)*D34/100))*0.11) ->  | F81: operational cost = 9E-08x2 - 0,0002x + 0,1878
B82: Membrane | C82: EUR/hour | D82: =IF((((D32/365/24)*D34/100))<1500,0.00000000007*(((D32/365/24)*D34/100))^3-0.0000002*(((D32/365/24)*D34/100))^2 +0.000003*(((D32/365/24)*D34/100))+0.2276,0.13*(((D32/365/24)*D34/100))) ->  | F82: y = 7E-11x3 - 2E-07x2 + 3E-06x + 0,2276
B83: PSA | C83: EUR/hour | D83: =IF((((D32/365/24)*D34/100))<250,(((D32/365/24)*D34/100))*0.12,(((D32/365/24)*D34/100))*0.11) ->  | F83: 0.12 pak 0.11
B84: Operational cost for biogas upgrading | C84: EUR/year | D84: =D80*UpDateAnaerobicDigestion!D4 ->  | E84: REPORT
B86: default | C86: EUR/year | D86: =(UpDateAnaerobicDigestion!D3*UpDateAnaerobicDigestion!D10)*D69 -> 
B87: Income from selling biomethane into grid | C87: EUR/year | D87: =D65*D64*(1-(D29/100)) ->  | E87: REPORT | F87: Amount of produced biomethane * selling price
B88: Income from selling biomethane like CNG | D88: =D68*D64*(D29/100) ->  | E88: REPORT | J88: Heat demand UCA TOOL | K88: =UCA!D6 ->  | L88: MWh/year | M88: =K88*3.6 ->  | N88: GJ
B89: Incomes biogas utilisation in CHP (heat) | C89: EUR/year | D89: =IF(K88=0,0,IF((K88>K89),M89*D67,M88*D67)) ->  | E89: REPORT | J89: Utilizable heat RES TOOL | K89: =SUM(RES_WWTP!P21:P32)/1000 ->  | L89: MWh/year | M89: =K89*3.6 ->  | N89: GJ
B90: Incomes biogas utilisation in CHP (electricity) | C90: EUR/year | D90: =SUM(RES_WWTP!O21:O32)*D66 -> 
B91: Price for gas pipeline | C91: Eur/m | D91: 60
B93: Price for pipeline | C93: Eur/m | D93: 300
B96: Investment | C96: Units | D96: Biogas upgrading unit | E96: Thermal hydrolisis | F96: P2G | G96: Pipeline | H96: Notes
B97: Project | C97: EUR | D97: =SUM(D98:D98)*0.1 ->  | E97: =SUM(E98:E98)*0.1 -> 0 | F97: =SUM(F98:F98)*0.1 ->  | G97: =SUM(G98:G98)*0.1 -> 0 | H97: 10 % of investment costs
B98: Technology | C98: EUR | D98: =D75 ->  | E98: =D60 -> 0 | F98: =D78 ->  | G98: 0
B99: Investment cost | C99: EUR | D99: =SUM(D97:D98) ->  | E99: =SUM(E97:E98) -> 0 | F99: =SUM(F97:F98) ->  | G99: =SUM(G97:G98) -> 0
B101: Operating costs | C101: Units | D101: Biogas upgrading unit | E101: Thermal hydrolisis | F101: P2G | G101: Pipeline | H101: Notes
B102: Technology | C102: EUR/year | D102: =D84 ->  | E102: =0.025*E99 -> 0 | F102: =D84 -> 
B103: Maintenance | C103: EUR/year | D103: =D99*0.02 ->  | E103: =E99*0.02 -> 0 | F103: =F99*0.02 ->  | G103: =G99*0.02 -> 0
B104: Operating cost | C104: EUR | D104: =SUM(D102:D103) ->  | E104: =SUM(E102:E103) -> 0 | F104: =SUM(F102:F103) ->  | G104: =SUM(G102:G103) -> 0
B106: OPERATING COSTS | C106: Units | E106: Notes
B107: Maintenance | C107: EUR/year | D107: =D103+E103+F103+G103 -> 
B109: Operational cost
B110: TOTAL OPERATING COSTS | C110: EUR/year | D110: =+SUM(D104:G104) -> 
B112: Investment cost | C112: Units
B113: Total investment cost | C113: EUR | D113: =+SUM(D99:G99) -> 
B116: OPERATING INCOMES | C116: Units | E116: Notes
B117: Incomes - external waste processing | C117: EUR/year | D117: =D45-D44 -> 
B118: Incomes biogas utilisation in CHP (heat) | C118: EUR/year | D118: =D89 -> 
B119: Incomes biogas utilisation in CHP (electricity) | C119: EUR/year | D119: =D90 -> 
B120: Incomes biomethane selling into the grid | C120: EUR/year | D120: =D87 -> 
B121: Incomes biomethane selling CNG | C121: EUR/year | D121: =D88 -> 
B122: Benefit (return) of project | C122: year | D122: =D113/(D110-(SUM(D117:D121))) -> 

Sheet Plant description
A1: Object data
A2: name of WWTP/operator
A3: adress of WWTP
A4: adress of operator
A5: contact person
A6: year of commissioning of the last expansion stage
A7: available plant components
A8: treatment capacity | D8: PE | F8: 50000
A9: connected population | C9: 50000 | D9: PE
C12: Colonna1
A13: Country | B13: EU | C13: European Union
B14: DE | C14: Germany
B15: AT | C15: Austria
B16: IT | C16: Italy
B17: HR | C17: Croatia
B18: CZ | C18: Czech Republic
B19: SE | C19: Sweden

Sheet RES_WWTP
B3: Wastewater energy | G3: Solar energy | M3: =+I9 -> 0 | N3: =+J9 -> 0
C4: m³ effluent waste water | D4: T effluent °C | E4: T min allowed | G4: solar kWh/m²/mo. | M4: =+I10 -> 0 | O4: =+K10 -> 0
B5: Jan | C5: =C$17/12 -> 0 | D5: =$D$17-4.7 -> 9.6 | E5: 6 | G5: 28 | M5: =+I11 -> 0 | N5: =+J11 -> 0 | O5: =+K11 -> 0
B6: Feb | C6: 0 | D6: =$D$17-5 -> 9.3 | E6: 6 | G6: 50
B7: Mar | C7: 0 | D7: =$D$17-3.7 -> 10.6 | E7: 6 | G7: 88 | I7: area for solar energy
B8: Apr | C8: 0 | D8: =$D$17-2 -> 12.3 | E8: 6 | G8: 130 | I8: m² | J8: el. efficiency | K8: th. efficiency
B9: May | C9: 0 | D9: =$D$17+0.5 -> 14.8 | E9: 6 | G9: 165 | H9: PV | I9: 0 | J9: 0 | L9: Userform
B10: Jun | C10: 0 | D10: =$D$17+3.5 -> 17.8 | E10: 6 | G10: 172 | H10: solar thermal | I10: 0 | K10: 0 | L10: Userform
B11: Jul | C11: 0 | D11: =$D$17+5.1 -> 19.4 | E11: 6 | G11: 166 | H11: hybrid collectors | I11: 0 | J11: 0 | K11: 0 | L11: Userform
B12: Aug | C12: 0 | D12: =$D$17+5.4 -> 19.7 | E12: 6 | G12: 141 | I12: source for efficiency: http://www.photovoltaik.org/wissen/photovoltaik-wirkungsgrad
B13: Sep | C13: 0 | D13: =$D$17+3.9 -> 18.2 | E13: 6 | G13: 100
B14: Oct | C14: =C$17/12 -> 0 | D14: =$D$17+1.3 -> 15.6 | E14: 6 | G14: 62
B15: Nov | C15: 0 | D15: =$D$17-1.1 -> 13.2 | E15: 6 | G15: 25
B16: Dec | C16: =C$17/12 -> 0 | D16: =$D$17-3.1 -> 11.2 | E16: 6 | G16: 21 | H16: source for monthly values: http://doris.ooe.gv.at/viewer/(S(pa0oqz3lv1qxvdkbkcnekgle))/init.aspx?ks=alk&karte=sonne
B17: year | C17: =+(EE_WWTP!D23)*365 -> 0 | D17: 14.3 | G17: =SUM(G5:G16) -> 1148
B18: in m³/h | C18: =C17/8760 -> 0
B19: in l/s | C19: =C18/3.6 -> 0 | N19: in kWh per month
N20: energy content (feed-in to gas grid) | O20: utilisable electric energy | P20: utilisable thermal energy
B21: COP calculation | E21: Water power | I21: Energy from sewage gas | M21: January | N21: =E51 ->  | O21: =G51 ->  | P21: =I51 -> 
B22: T needed for supply | C22: 50 | E22: usable height [m] | F22: 0 | G22: Userform | I22: CH4 content digester gas | J22: CHP el. eff | K22: CHP th. eff. | M22: February | N22: =E65 ->  | O22: =G65 ->  | P22: =I65 -> 
B23: Carnot-Gütegrad | C23: 0.45 | E23: eff. turbine + generator % | F23: 0 | G23: Userform | I23: =+UpGrading!C5/100 -> 0.6 | J23: =+IF(Anaerobic_Digestion!D10="Wet",Input!F16/100,IF(Anaerobic_Digestion!D10="Semy-Dry",Input!F29/100,IF(Anaerobic_Digestion!D10="Dry",Input!F41/100))) ->  | K23: =+IF(Anaerobic_Digestion!D10="Wet",Input!G16/100,IF(Anaerobic_Digestion!D10="Semy-Dry",Input!G29/100,IF(Anaerobic_Digestion!D10="Dry",Input!G41/100))) ->  | L23: Userform | M23: March | N23: =E79 ->  | O23: =G79 ->  | P23: =I79 -> 
B24: resulting COP | G24: M3 BIOGAS | H24: used for gas heat pump kWh/mo | J24: sewage gas m³/mo. | K24: fraction of biogas used for other purposes % | M24: April | N24: =E93 ->  | O24: =G93 ->  | P24: =I93 -> 
B25: Jan | C25: =(273+$C$22)/($C$22-D5)*$C$23 -> 3.597772277 | G25: =+H25/$E$36 -> 0 | H25: =C44*63/47 -> 0 | I25: Jan | J25: =+J$37/12 ->  | K25: =+J25*$K$37/100 ->  | M25: May | N25: =E107 ->  | O25: =G107 ->  | P25: =I107 -> 
B26: Feb | C26: =(273+$C$22)/($C$22-D6)*$C$23 -> 3.571253071 | G26: =+H26/$E$36 -> 0 | H26: =C58*63/47 -> 0 | I26: Feb | J26: =+J$37/12 ->  | K26: =+J26*$K$37/100 ->  | M26: June | N26: =E121 ->  | O26: =G121 ->  | P26: =I121 -> 
B27: Mar | C27: 3.689086294 | G27: 0 | H27: =C72*63/47 -> 0 | I27: Mar | M27: July | N27: =E135 ->  | O27: =G135 ->  | P27: =I135 -> 
B28: Apr | C28: 3.855437666 | E28: el. heat pump | F28: 0.67 | G28: 0 | H28: =C86*63/47 -> 0 | I28: Apr | M28: August | N28: =E149 ->  | O28: =G149 ->  | P28: =I149 -> 
B29: May | C29: 4.129261364 | E29: gas heat pump | F29: 0.33 | G29: 0 | H29: =C100*63/47 -> 0 | I29: May | M29: September | N29: =E163 ->  | O29: =G163 ->  | P29: =I163 -> 
B30: Jun | C30: 4.513975155 | G30: 0 | H30: =C114*63/47 -> 0 | I30: Jun | M30: October | N30: =E177 ->  | O30: =G177 ->  | P30: =I177 -> 
B31: Jul | C31: 4.75 | G31: 0 | H31: =C128*63/47 -> 0 | I31: Jul | M31: November | N31: =E191 ->  | O31: =G191 ->  | P31: =I191 -> 
B32: Aug | C32: 4.797029703 | G32: 0 | H32: =C142*63/47 -> 0 | I32: Aug | M32: December | N32: =E205 ->  | O32: =G205 ->  | P32: =I205 -> 
B33: Sep | C33: 4.570754717 | G33: 0 | H33: =C156*63/47 -> 0 | I33: Sep
B34: Oct | C34: 4.225290698 | G34: 0 | H34: =C170*63/47 -> 0 | I34: Oct
B35: Nov | C35: 3.949728261 | E35: = | G35: 0 | H35: =C184*63/47 -> 0 | I35: Nov
B36: Dec | C36: 3.746134021 | D36: 20MJ | E36: 5.56 | F36: Kwh | G36: 0 | H36: =C198*63/47 -> 0 | I36: Dec
G37: =+SUM(G25:G36) -> 0 | I37: year | J37: =+IF(Anaerobic_Digestion!D10="Wet",Anaerobic_Digestion!L24-G37,IF(Anaerobic_Digestion!D10="Semy-Dry",Anaerobic_Digestion!AH24-G37,IF(Anaerobic_Digestion!D10="Dry",Anaerobic_Digestion!BA24-G37))) ->  | K37: 0 | L37: Userform
B39: January
B40: Energy sources | C40: amount | E40: energy content | G40: utilisable electric energy | I40: utilisable thermal energy
B41: digester gas fed into the grid | C41: =K25 ->  | D41: m³/mo | E41: =C41*11.1*$I$23 ->  | F41: kWh/mo | G41: 0 | H41: kWh/mo | I41: 0 | J41: kWh/mo
B42: digester gas energetically used | C42: =J25-K25 ->  | D42: m³/mo | E42: =C42*11.1*$I$23 ->  | F42: kWh/mo | G42: =E42*$J$23 ->  | H42: kWh/mo | I42: =E42*$K$23 ->  | J42: kWh/mo
B43: wastewater heat recovery el. heat pump | C43: =1.16*(D5-E5)*C5*F28 -> 0 | D43: kWh/mo | E43: =C43 -> 0 | F43: kWh/mo | G43: =-E43/(C25-1) -> 0 | H43: kWh/mo | I43: =C43-G43 -> 0 | J43: kWh/mo
B44: wastewater heat recovery gas heat pump | C44: =1.16*(D5-E5)*C5*F29 -> 0 | D44: kWh/mo | E44: 0 | F44: kWh/mo | G44: 0 | I44: =C44*100/47 -> 0 | J44: kWh/mo
B45: solar power (solar thermal) | C45: =G5*($I$10*$K$10+$I$11*$K$11) -> 0 | D45: kWh/mo | E45: 0 | F45: kWh/mo | I45: =E45 -> 0 | J45: kWh/mo
B46: solar power (photopholtaics) | C46: =G5*($I$9*$J$9+$I$11*$J$11) -> 0 | D46: kWh/mo | E46: 0 | F46: kWh/mo | G46: =C46 -> 0 | H46: kWh/mo
B47: windpower | C47: 0 | D47: kWh/mo | E47: 0 | F47: kWh/mo | G47: 0 | H47: kWh/mo
B48: hydropower | C48: =C5*1000*10*$F$22/3600000*$F$23/100 -> 0 | D48: kWh/mo | E48: 0 | F48: kWh/mo | G48: =C48 -> 0 | H48: kWh/mo
B49: total electric and thermal energy generation at WWTP | G49: =G42+G46+G47+G48 ->  | H49: kWh/mo | I49: =I42+I43+I44+I45 ->  | J49: kWh/mo
B50: energy necessary for renewable production | G50: =-G43 -> 0 | H50: kWh/mo | I50: 0 | J50: kWh/mo
B51: energy provision at WWTP | E51: =E41 ->  | F51: kWh/mo | G51: =G49-G50 ->  | H51: kWh/mo | I51: =I49-I50 ->  | J51: kWh/mo
B53: February
B54: Energy sources | C54: amount | E54: energy content | G54: utilisable electric energy | I54: utilisable thermal energy
B55: digester gas fed into the grid | C55: =K26 ->  | D55: m³/mo | E55: =C55*11.1*$I$23 ->  | F55: kWh/mo | G55: 0 | H55: kWh/mo | I55: 0 | J55: kWh/mo
B56: digester gas energetically used | C56: =J26-K26 ->  | D56: m³/mo | E56: =C56*11.1*$I$23 ->  | F56: kWh/mo | G56: =E56*$J$23 ->  | H56: kWh/mo | I56: =E56*$K$23 ->  | J56: kWh/mo
B57: wastewater heat recovery el. heat pump | C57: =1.16*(D6-E6)*C6*F28 -> 0 | D57: kWh/mo | E57: =C57 -> 0 | F57: kWh/mo | G57: =-E57/(C26-1) -> 0 | H57: kWh/mo | I57: =C57-G57 -> 0 | J57: kWh/mo
B58: wastewater heat recovery gas heat pump | C58: =1.16*(D6-E6)*C6*F29 -> 0 | D58: kWh/mo | E58: 0 | F58: kWh/mo | G58: 0 | I58: =C58*100/47 -> 0 | J58: kWh/mo
B59: solar power (solar thermal) | C59: =G6*($I$10*$K$10+$I$11*$K$11) -> 0 | D59: kWh/mo | E59: 0 | F59: kWh/mo | I59: =E59 -> 0 | J59: kWh/mo
B60: solar power (photopholtaics) | C60: =G6*($I$9*$J$9+$I$11*$J$11) -> 0 | D60: kWh/mo | E60: 0 | F60: kWh/mo | G60: =C60 -> 0 | H60: kWh/mo
B61: windpower | C61: 0 | D61: kWh/mo | E61: 0 | F61: kWh/mo | G61: 0 | H61: kWh/mo
B62: hydropower | C62: =C6*1000*10*$F$22/3600000*$F$23/100 -> 0 | D62: kWh/mo | E62: 0 | F62: kWh/mo | G62: =C62 -> 0 | H62: kWh/mo
B63: total electric and thermal energy generation at WWTP | G63: =G56+G60+G61+G62 ->  | H63: kWh/mo | I63: =I56+I57+I58+I59 ->  | J63: kWh/mo
B64: energy necessary for renewable production | G64: =-G57 -> 0 | H64: kWh/mo | I64: 0 | J64: kWh/mo
B65: energy provision at WWTP | E65: =E55 ->  | F65: kWh/mo | G65: =G63-G64 ->  | H65: kWh/mo | I65: =I63-I64 ->  | J65: kWh/mo
B67: March
B68: Energy sources | C68: amount | E68: energy content | G68: utilisable electric energy | I68: utilisable thermal energy
B69: digester gas fed into the grid | C69: =K27 ->  | D69: m³/mo | E69: =C69*11.1*$I$23 ->  | F69: kWh/mo | G69: 0 | H69: kWh/mo | I69: 0 | J69: kWh/mo
B70: digester gas energetically used | C70: =J27-K27 ->  | D70: m³/mo | E70: =C70*11.1*$I$23 ->  | F70: kWh/mo | G70: =E70*$J$23 ->  | H70: kWh/mo | I70: =E70*$K$23 ->  | J70: kWh/mo
B71: wastewater heat recovery el. heat pump | C71: =1.16*(D7-E7)*C7*F28 -> 0 | D71: kWh/mo | E71: =C71 -> 0 | F71: kWh/mo | G71: =-E71/(C27-1) -> 0 | H71: kWh/mo | I71: =C71-G71 -> 0 | J71: kWh/mo
B72: wastewater heat recovery gas heat pump | C72: =1.16*(D7-E7)*C7*F29 -> 0 | D72: kWh/mo | E72: 0 | F72: kWh/mo | G72: 0 | I72: =C72*100/47 -> 0 | J72: kWh/mo
B73: solar power (solar thermal) | C73: =G7*($I$10*$K$10+$I$11*$K$11) -> 0 | D73: kWh/mo | E73: 0 | F73: kWh/mo | I73: =E73 -> 0 | J73: kWh/mo
B74: solar power (photopholtaics) | C74: =G7*($I$9*$J$9+$I$11*$J$11) -> 0 | D74: kWh/mo | E74: 0 | F74: kWh/mo | G74: =C74 -> 0 | H74: kWh/mo
B75: windpower | C75: 0 | D75: kWh/mo | E75: 0 | F75: kWh/mo | G75: 0 | H75: kWh/mo
B76: hydropower | C76: =C7*1000*10*$F$22/3600000*$F$23/100 -> 0 | D76: kWh/mo | E76: 0 | F76: kWh/mo | G76: =C76 -> 0 | H76: kWh/mo
B77: total electric and thermal energy generation at WWTP | G77: =G70+G74+G75+G76 ->  | H77: kWh/mo | I77: =I70+I71+I72+I73 ->  | J77: kWh/mo
B78: energy necessary for renewable production | G78: =-G71 -> 0 | H78: kWh/mo | I78: 0 | J78: kWh/mo
B79: energy provision at WWTP | E79: =E69 ->  | F79: kWh/mo | G79: =G77-G78 ->  | H79: kWh/mo | I79: =I77-I78 ->  | J79: kWh/mo
B81: April
B82: Energy sources | C82: amount | E82: energy content | G82: utilisable electric energy | I82: utilisable thermal energy
B83: digester gas fed into the grid | C83: =K28 ->  | D83: m³/mo | E83: =C83*11.1*$I$23 ->  | F83: kWh/mo | G83: 0 | H83: kWh/mo | I83: 0 | J83: kWh/mo
B84: digester gas energetically used | C84: =J28-K28 ->  | D84: m³/mo | E84: =C84*11.1*$I$23 ->  | F84: kWh/mo | G84: =E84*$J$23 ->  | H84: kWh/mo | I84: =E84*$K$23 ->  | J84: kWh/mo
B85: wastewater heat recovery el. heat pump | C85: =1.16*(D8-E8)*C8*F28 -> 0 | D85: kWh/mo | E85: =C85 -> 0 | F85: kWh/mo | G85: =-E85/(C28-1) -> 0 | H85: kWh/mo | I85: =C85-G85 -> 0 | J85: kWh/mo
B86: wastewater heat recovery gas heat pump | C86: =1.16*(D8-E8)*C8*F29 -> 0 | D86: kWh/mo | E86: 0 | F86: kWh/mo | G86: 0 | I86: =C86*100/47 -> 0 | J86: kWh/mo
B87: solar power (solar thermal) | C87: =G8*($I$10*$K$10+$I$11*$K$11) -> 0 | D87: kWh/mo | E87: 0 | F87: kWh/mo | I87: =E87 -> 0 | J87: kWh/mo
B88: solar power (photopholtaics) | C88: =G8*($I$9*$J$9+$I$11*$J$11) -> 0 | D88: kWh/mo | E88: 0 | F88: kWh/mo | G88: =C88 -> 0 | H88: kWh/mo
B89: windpower | C89: 0 | D89: kWh/mo | E89: 0 | F89: kWh/mo | G89: 0 | H89: kWh/mo
B90: hydropower | C90: =C8*1000*10*$F$22/3600000*$F$23/100 -> 0 | D90: kWh/mo | E90: 0 | F90: kWh/mo | G90: =C90 -> 0 | H90: kWh/mo
B91: total electric and thermal energy generation at WWTP | G91: =G84+G88+G89+G90 ->  | H91: kWh/mo | I91: =I84+I85+I86+I87 ->  | J91: kWh/mo
B92: energy necessary for renewable production | G92: =-G85 -> 0 | H92: kWh/mo | I92: 0 | J92: kWh/mo
B93: energy provision at WWTP | E93: =E83 ->  | F93: kWh/mo | G93: =G91-G92 ->  | H93: kWh/mo | I93: =I91-I92 ->  | J93: kWh/mo
B95: May
B96: Energy sources | C96: amount | E96: energy content | G96: utilisable electric energy | I96: utilisable thermal energy
B97: digester gas fed into the grid | C97: =K29 ->  | D97: m³/mo | E97: =C97*11.1*$I$23 ->  | F97: kWh/mo | G97: 0 | H97: kWh/mo | I97: 0 | J97: kWh/mo
B98: digester gas energetically used | C98: =J29-K29 ->  | D98: m³/mo | E98: =C98*11.1*$I$23 ->  | F98: kWh/mo | G98: =E98*$J$23 ->  | H98: kWh/mo | I98: =E98*$K$23 ->  | J98: kWh/mo
B99: wastewater heat recovery el. heat pump | C99: =1.16*(D9-E9)*C9*F28 -> 0 | D99: kWh/mo | E99: =C99 -> 0 | F99: kWh/mo | G99: =-E99/(C29-1) -> 0 | H99: kWh/mo | I99: =C99-G99 -> 0 | J99: kWh/mo
B100: wastewater heat recovery gas heat pump | C100: =1.16*(D9-E9)*C9*F29 -> 0 | D100: kWh/mo | E100: 0 | F100: kWh/mo | G100: 0 | I100: =C100*100/47 -> 0 | J100: kWh/mo
B101: solar power (solar thermal) | C101: =G9*($I$10*$K$10+$I$11*$K$11) -> 0 | D101: kWh/mo | E101: 0 | F101: kWh/mo | I101: =E101 -> 0 | J101: kWh/mo
B102: solar power (photopholtaics) | C102: =G9*($I$9*$J$9+$I$11*$J$11) -> 0 | D102: kWh/mo | E102: 0 | F102: kWh/mo | G102: =C102 -> 0 | H102: kWh/mo
B103: windpower | C103: 0 | D103: kWh/mo | E103: 0 | F103: kWh/mo | G103: 0 | H103: kWh/mo
B104: hydropower | C104: =C9*1000*10*$F$22/3600000*$F$23/100 -> 0 | D104: kWh/mo | E104: 0 | F104: kWh/mo | G104: =C104 -> 0 | H104: kWh/mo
B105: total electric and thermal energy generation at WWTP | G105: =G98+G102+G103+G104 ->  | H105: kWh/mo | I105: =I98+I99+I100+I101 ->  | J105: kWh/mo
B106: energy necessary for renewable production | G106: =-G99 -> 0 | H106: kWh/mo | I106: 0 | J106: kWh/mo
B107: energy provision at WWTP | E107: =E97 ->  | F107: kWh/mo | G107: =G105-G106 ->  | H107: kWh/mo | I107: =I105-I106 ->  | J107: kWh/mo
B109: June
B110: Energy sources | C110: amount | E110: energy content | G110: utilisable electric energy | I110: utilisable thermal energy
B111: digester gas fed into the grid | C111: =K30 ->  | D111: m³/mo | E111: =C111*11.1*$I$23 ->  | F111: kWh/mo | G111: 0 | H111: kWh/mo | I111: 0 | J111: kWh/mo
B112: digester gas energetically used | C112: =J30-K30 ->  | D112: m³/mo | E112: =C112*11.1*$I$23 ->  | F112: kWh/mo | G112: =E112*$J$23 ->  | H112: kWh/mo | I112: =E112*$K$23 ->  | J112: kWh/mo
B113: wastewater heat recovery el. heat pump | C113: =1.16*(D10-E10)*C10*F28 -> 0 | D113: kWh/mo | E113: =C113 -> 0 | F113: kWh/mo | G113: =-E113/(C30-1) -> 0 | H113: kWh/mo | I113: =C113-G113 -> 0 | J113: kWh/mo
B114: wastewater heat recovery gas heat pump | C114: =1.16*(D10-E10)*C10*F29 -> 0 | D114: kWh/mo | E114: 0 | F114: kWh/mo | G114: 0 | I114: =C114*100/47 -> 0 | J114: kWh/mo
B115: solar power (solar thermal) | C115: =G10*($I$10*$K$10+$I$11*$K$11) -> 0 | D115: kWh/mo | E115: 0 | F115: kWh/mo | I115: =E115 -> 0 | J115: kWh/mo
B116: solar power (photopholtaics) | C116: =G10*($I$9*$J$9+$I$11*$J$11) -> 0 | D116: kWh/mo | E116: 0 | F116: kWh/mo | G116: =C116 -> 0 | H116: kWh/mo
B117: windpower | C117: 0 | D117: kWh/mo | E117: 0 | F117: kWh/mo | G117: 0 | H117: kWh/mo
B118: hydropower | C118: =C10*1000*10*$F$22/3600000*$F$23/100 -> 0 | D118: kWh/mo | E118: 0 | F118: kWh/mo | G118: =C118 -> 0 | H118: kWh/mo
B119: total electric and thermal energy generation at WWTP | G119: =G112+G116+G117+G118 ->  | H119: kWh/mo | I119: =I112+I113+I114+I115 ->  | J119: kWh/mo
B120: energy necessary for renewable production | G120: =-G113 -> 0 | H120: kWh/mo | I120: 0 | J120: kWh/mo
B121: energy provision at WWTP | E121: =E111 ->  | F121: kWh/mo | G121: =G119-G120 ->  | H121: kWh/mo | I121: =I119-I120 ->  | J121: kWh/mo
B123: July
B124: Energy sources | C124: amount | E124: energy content | G124: utilisable electric energy | I124: utilisable thermal energy
B125: digester gas fed into the grid | C125: =K31 ->  | D125: m³/mo | E125: =C125*11.1*$I$23 ->  | F125: kWh/mo | G125: 0 | H125: kWh/mo | I125: 0 | J125: kWh/mo
B126: digester gas energetically used | C126: =J31-K31 ->  | D126: m³/mo | E126: =C126*11.1*$I$23 ->  | F126: kWh/mo | G126: =E126*$J$23 ->  | H126: kWh/mo | I126: =E126*$K$23 ->  | J126: kWh/mo
B127: wastewater heat recovery el. heat pump | C127: =1.16*(D11-E11)*C11*F28 -> 0 | D127: kWh/mo | E127: =C127 -> 0 | F127: kWh/mo | G127: =-E127/(C31-1) -> 0 | H127: kWh/mo | I127: =C127-G127 -> 0 | J127: kWh/mo
B128: wastewater heat recovery gas heat pump | C128: =1.16*(D11-E11)*C11*F29 -> 0 | D128: kWh/mo | E128: 0 | F128: kWh/mo | G128: 0 | I128: =C128*100/47 -> 0 | J128: kWh/mo
B129: solar power (solar thermal) | C129: =G11*($I$10*$K$10+$I$11*$K$11) -> 0 | D129: kWh/mo | E129: 0 | F129: kWh/mo | I129: =E129 -> 0 | J129: kWh/mo
B130: solar power (photopholtaics) | C130: =G11*($I$9*$J$9+$I$11*$J$11) -> 0 | D130: kWh/mo | E130: 0 | F130: kWh/mo | G130: =C130 -> 0 | H130: kWh/mo
B131: windpower | C131: 0 | D131: kWh/mo | E131: 0 | F131: kWh/mo | G131: 0 | H131: kWh/mo
B132: hydropower | C132: =C11*1000*10*$F$22/3600000*$F$23/100 -> 0 | D132: kWh/mo | E132: 0 | F132: kWh/mo | G132: =C132 -> 0 | H132: kWh/mo
B133: total electric and thermal energy generation at WWTP | G133: =G126+G130+G131+G132 ->  | H133: kWh/mo | I133: =I126+I127+I128+I129 ->  | J133: kWh/mo
B134: energy necessary for renewable production | G134: =-G127 -> 0 | H134: kWh/mo | I134: 0 | J134: kWh/mo
B135: energy provision at WWTP | E135: =E125 ->  | F135: kWh/mo | G135: =G133-G134 ->  | H135: kWh/mo | I135: =I133-I134 ->  | J135: kWh/mo
B137: August
B138: Energy sources | C138: amount | E138: energy content | G138: utilisable electric energy | I138: utilisable thermal energy
B139: digester gas fed into the grid | C139: =K32 ->  | D139: m³/mo | E139: =C139*11.1*$I$23 ->  | F139: kWh/mo | G139: 0 | H139: kWh/mo | I139: 0 | J139: kWh/mo
B140: digester gas energetically used | C140: =J32-K32 ->  | D140: m³/mo | E140: =C140*11.1*$I$23 ->  | F140: kWh/mo | G140: =E140*$J$23 ->  | H140: kWh/mo | I140: =E140*$K$23 ->  | J140: kWh/mo
B141: wastewater heat recovery el. heat pump | C141: =1.16*(D12-E12)*C12*F28 -> 0 | D141: kWh/mo | E141: =C141 -> 0 | F141: kWh/mo | G141: =-E141/(C32-1) -> 0 | H141: kWh/mo | I141: =C141-G141 -> 0 | J141: kWh/mo
B142: wastewater heat recovery gas heat pump | C142: =1.16*(D12-E12)*C12*F29 -> 0 | D142: kWh/mo | E142: 0 | F142: kWh/mo | G142: 0 | I142: =C142*100/47 -> 0 | J142: kWh/mo
B143: solar power (solar thermal) | C143: =G12*($I$10*$K$10+$I$11*$K$11) -> 0 | D143: kWh/mo | E143: 0 | F143: kWh/mo | I143: =E143 -> 0 | J143: kWh/mo
B144: solar power (photopholtaics) | C144: =G12*($I$9*$J$9+$I$11*$J$11) -> 0 | D144: kWh/mo | E144: 0 | F144: kWh/mo | G144: =C144 -> 0 | H144: kWh/mo
B145: windpower | C145: 0 | D145: kWh/mo | E145: 0 | F145: kWh/mo | G145: 0 | H145: kWh/mo
B146: hydropower | C146: =C12*1000*10*$F$22/3600000*$F$23/100 -> 0 | D146: kWh/mo | E146: 0 | F146: kWh/mo | G146: =C146 -> 0 | H146: kWh/mo
B147: total electric and thermal energy generation at WWTP | G147: =G140+G144+G145+G146 ->  | H147: kWh/mo | I147: =I140+I141+I142+I143 ->  | J147: kWh/mo
B148: energy necessary for renewable production | G148: =-G141 -> 0 | H148: kWh/mo | I148: 0 | J148: kWh/mo
B149: energy provision at WWTP | E149: =E139 ->  | F149: kWh/mo | G149: =G147-G148 ->  | H149: kWh/mo | I149: =I147-I148 ->  | J149: kWh/mo
B151: September
B152: Energy sources | C152: amount | E152: energy content | G152: utilisable electric energy | I152: utilisable thermal energy
B153: digester gas fed into the grid | C153: =K33 ->  | D153: m³/mo | E153: =C153*11.1*$I$23 ->  | F153: kWh/mo | G153: 0 | H153: kWh/mo | I153: 0 | J153: kWh/mo
B154: digester gas energetically used | C154: =J33-K33 ->  | D154: m³/mo | E154: =C154*11.1*$I$23 ->  | F154: kWh/mo | G154: =E154*$J$23 ->  | H154: kWh/mo | I154: =E154*$K$23 ->  | J154: kWh/mo
B155: wastewater heat recovery el. heat pump | C155: =1.16*(D13-E13)*C13*F28 -> 0 | D155: kWh/mo | E155: =C155 -> 0 | F155: kWh/mo | G155: =-E155/(C33-1) -> 0 | H155: kWh/mo | I155: =C155-G155 -> 0 | J155: kWh/mo
B156: wastewater heat recovery gas heat pump | C156: =1.16*(D13-E13)*C13*F29 -> 0 | D156: kWh/mo | E156: 0 | F156: kWh/mo | G156: 0 | I156: =C156*100/47 -> 0 | J156: kWh/mo
B157: solar power (solar thermal) | C157: =G13*($I$10*$K$10+$I$11*$K$11) -> 0 | D157: kWh/mo | E157: 0 | F157: kWh/mo | I157: =E157 -> 0 | J157: kWh/mo
B158: solar power (photopholtaics) | C158: =G13*($I$9*$J$9+$I$11*$J$11) -> 0 | D158: kWh/mo | E158: 0 | F158: kWh/mo | G158: =C158 -> 0 | H158: kWh/mo
B159: windpower | C159: 0 | D159: kWh/mo | E159: 0 | F159: kWh/mo | G159: 0 | H159: kWh/mo
B160: hydropower | C160: =C13*1000*10*$F$22/3600000*$F$23/100 -> 0 | D160: kWh/mo | E160: 0 | F160: kWh/mo | G160: =C160 -> 0 | H160: kWh/mo
B161: total electric and thermal energy generation at WWTP | G161: =G154+G158+G159+G160 ->  | H161: kWh/mo | I161: =I154+I155+I156+I157 ->  | J161: kWh/mo
B162: energy necessary for renewable production | G162: =-G155 -> 0 | H162: kWh/mo | I162: 0 | J162: kWh/mo
B163: energy provision at WWTP | E163: =E153 ->  | F163: kWh/mo | G163: =G161-G162 ->  | H163: kWh/mo | I163: =I161-I162 ->  | J163: kWh/mo
B165: October
B166: Energy sources | C166: amount | E166: energy content | G166: utilisable electric energy | I166: utilisable thermal energy
B167: digester gas fed into the grid | C167: =K34 ->  | D167: m³/mo | E167: =C167*11.1*$I$23 ->  | F167: kWh/mo | G167: 0 | H167: kWh/mo | I167: 0 | J167: kWh/mo
B168: digester gas energetically used | C168: =J34-K34 ->  | D168: m³/mo | E168: =C168*11.1*$I$23 ->  | F168: kWh/mo | G168: =E168*$J$23 ->  | H168: kWh/mo | I168: =E168*$K$23 ->  | J168: kWh/mo
B169: wastewater heat recovery el. heat pump | C169: =1.16*(D14-E14)*C14*F28 -> 0 | D169: kWh/mo | E169: =C169 -> 0 | F169: kWh/mo | G169: =-E169/(C34-1) -> 0 | H169: kWh/mo | I169: =C169-G169 -> 0 | J169: kWh/mo
B170: wastewater heat recovery gas heat pump | C170: =1.16*(D14-E14)*C14*F29 -> 0 | D170: kWh/mo | E170: 0 | F170: kWh/mo | G170: 0 | I170: =C170*100/47 -> 0 | J170: kWh/mo
B171: solar power (solar thermal) | C171: =G14*($I$10*$K$10+$I$11*$K$11) -> 0 | D171: kWh/mo | E171: 0 | F171: kWh/mo | I171: =E171 -> 0 | J171: kWh/mo
B172: solar power (photopholtaics) | C172: =G14*($I$9*$J$9+$I$11*$J$11) -> 0 | D172: kWh/mo | E172: 0 | F172: kWh/mo | G172: =C172 -> 0 | H172: kWh/mo
B173: windpower | C173: 0 | D173: kWh/mo | E173: 0 | F173: kWh/mo | G173: 0 | H173: kWh/mo
B174: hydropower | C174: =C14*1000*10*$F$22/3600000*$F$23/100 -> 0 | D174: kWh/mo | E174: 0 | F174: kWh/mo | G174: =C174 -> 0 | H174: kWh/mo
B175: total electric and thermal energy generation at WWTP | G175: =G168+G172+G173+G174 ->  | H175: kWh/mo | I175: =I168+I169+I170+I171 ->  | J175: kWh/mo
B176: energy necessary for renewable production | G176: =-G169 -> 0 | H176: kWh/mo | I176: 0 | J176: kWh/mo
B177: energy provision at WWTP | E177: =E167 ->  | F177: kWh/mo | G177: =G175-G176 ->  | H177: kWh/mo | I177: =I175-I176 ->  | J177: kWh/mo
B179: November
B180: Energy sources | C180: amount | E180: energy content | G180: utilisable electric energy | I180: utilisable thermal energy
B181: digester gas fed into the grid | C181: =K35 ->  | D181: m³/mo | E181: =C181*11.1*$I$23 ->  | F181: kWh/mo | G181: 0 | H181: kWh/mo | I181: 0 | J181: kWh/mo
B182: digester gas energetically used | C182: =J35-K35 ->  | D182: m³/mo | E182: =C182*11.1*$I$23 ->  | F182: kWh/mo | G182: =E182*$J$23 ->  | H182: kWh/mo | I182: =E182*$K$23 ->  | J182: kWh/mo
B183: wastewater heat recovery el. heat pump | C183: =1.16*(D15-E15)*C15*F28 -> 0 | D183: kWh/mo | E183: =C183 -> 0 | F183: kWh/mo | G183: =-E183/(C35-1) -> 0 | H183: kWh/mo | I183: =C183-G183 -> 0 | J183: kWh/mo
B184: wastewater heat recovery gas heat pump | C184: =1.16*(D15-E15)*C15*F29 -> 0 | D184: kWh/mo | E184: 0 | F184: kWh/mo | G184: 0 | I184: =C184*100/47 -> 0 | J184: kWh/mo
B185: solar power (solar thermal) | C185: =G15*($I$10*$K$10+$I$11*$K$11) -> 0 | D185: kWh/mo | E185: 0 | F185: kWh/mo | I185: =E185 -> 0 | J185: kWh/mo
B186: solar power (photopholtaics) | C186: =G15*($I$9*$J$9+$I$11*$J$11) -> 0 | D186: kWh/mo | E186: 0 | F186: kWh/mo | G186: =C186 -> 0 | H186: kWh/mo
B187: windpower | C187: 0 | D187: kWh/mo | E187: 0 | F187: kWh/mo | G187: 0 | H187: kWh/mo
B188: hydropower | C188: =C15*1000*10*$F$22/3600000*$F$23/100 -> 0 | D188: kWh/mo | E188: 0 | F188: kWh/mo | G188: =C188 -> 0 | H188: kWh/mo
B189: total electric and thermal energy generation at WWTP | G189: =G182+G186+G187+G188 ->  | H189: kWh/mo | I189: =I182+I183+I184+I185 ->  | J189: kWh/mo
B190: energy necessary for renewable production | G190: =-G183 -> 0 | H190: kWh/mo | I190: 0 | J190: kWh/mo
B191: energy provision at WWTP | E191: =E181 ->  | F191: kWh/mo | G191: =G189-G190 ->  | H191: kWh/mo | I191: =I189-I190 ->  | J191: kWh/mo
B193: December
B194: Energy sources | C194: amount | E194: energy content | G194: utilisable electric energy | I194: utilisable thermal energy
B195: digester gas fed into the grid | C195: =K36 ->  | D195: m³/mo | E195: =C195*11.1*$I$23 ->  | F195: kWh/mo | G195: 0 | H195: kWh/mo | I195: 0 | J195: kWh/mo
B196: digester gas energetically used | C196: =J36-K36 ->  | D196: m³/mo | E196: =C196*11.1*$I$23 ->  | F196: kWh/mo | G196: =E196*$J$23 ->  | H196: kWh/mo | I196: =E196*$K$23 ->  | J196: kWh/mo
B197: wastewater heat recovery el. heat pump | C197: =1.16*(D16-E16)*C16*F28 -> 0 | D197: kWh/mo | E197: =C197 -> 0 | F197: kWh/mo | G197: =-E197/(C36-1) -> 0 | H197: kWh/mo | I197: =C197-G197 -> 0 | J197: kWh/mo
B198: wastewater heat recovery gas heat pump | C198: =1.16*(D16-E16)*C16*F29 -> 0 | D198: kWh/mo | E198: 0 | F198: kWh/mo | G198: 0 | I198: =C198*100/47 -> 0 | J198: kWh/mo
B199: solar power (solar thermal) | C199: =G16*($I$10*$K$10+$I$11*$K$11) -> 0 | D199: kWh/mo | E199: 0 | F199: kWh/mo | I199: =E199 -> 0 | J199: kWh/mo
B200: solar power (photopholtaics) | C200: =G16*($I$9*$J$9+$I$11*$J$11) -> 0 | D200: kWh/mo | E200: 0 | F200: kWh/mo | G200: =C200 -> 0 | H200: kWh/mo
B201: windpower | C201: 0 | D201: kWh/mo | E201: 0 | F201: kWh/mo | G201: 0 | H201: kWh/mo
B202: hydropower | C202: =C16*1000*10*$F$22/3600000*$F$23/100 -> 0 | D202: kWh/mo | E202: 0 | F202: kWh/mo | G202: =C202 -> 0 | H202: kWh/mo
B203: total electric and thermal energy generation at WWTP | G203: =G196+G200+G201+G202 ->  | H203: kWh/mo | I203: =I196+I197+I198+I199 ->  | J203: kWh/mo
B204: energy necessary for renewable production | G204: =-G197 -> 0 | H204: kWh/mo | I204: 0 | J204: kWh/mo
B205: energy provision at WWTP | E205: =E195 ->  | F205: kWh/mo | G205: =G203-G204 ->  | H205: kWh/mo | I205: =I203-I204 ->  | J205: kWh/mo

Sheet Anaerobic_Digestion
A1: DATA | E1: 1 | F1: 2 | G1: 3 | H1: 4 | I1: 5 | J1: 6 | K1: 7 | L1: 8 | M1: 9 | N1: 10
A2: CALCULATED | E2: Primary Sludge | F2: Secondary Sludge | G2: Organic fraction MSW | H2: Digestate | I2: Food industry waste | J2: Animal blood | K2: Animal fat | L2: =+Feedstock_Database!E19 -> 0
A3: USER | D3: Tons [t a.r./year] | E3: =+Feedstock_Database!F5 -> 0 | F3: =+Feedstock_Database!F7 -> 0 | G3: =+Feedstock_Database!F9 -> 0 | H3: =+Feedstock_Database!F11 -> 0 | I3: =+Feedstock_Database!F13 -> 0 | J3: =+Feedstock_Database!F15 -> 0 | K3: =+Feedstock_Database!F17 -> 0 | L3: =+Feedstock_Database!F19 -> 0
A4: Type of anaerobic digestion
D5: Year operating hours | E5: 8000
D7: All substrates | E7: Primary Sludge | F7: Secondary Sludge | G7: Organic fraction MSW | H7: Digestate | I7: Food industry waste | J7: Animal blood | K7: Animal fat | L7: =+Feedstock_Database!E19 -> 0
C8: Total solid (%) | D8: =+((E8/100*E3)+(F8/100*F3)+(G8/100*G3)+(I8/100*I3)+(J8/100*J3)+(K8/100*K3)+(L8/100*L3))/(E3+F3+G3+I3+J3+K3+L3)*100 ->  | E8: =+Feedstock_Database!G5 -> 0 | F8: =+Feedstock_Database!G7 -> 0 | G8: =+Feedstock_Database!G9 -> 0 | I8: =+Feedstock_Database!G13 -> 0 | J8: =+Feedstock_Database!G15 -> 0 | K8: =+Feedstock_Database!G17 -> 0 | L8: =+Feedstock_Database!G19 -> 0
C10: Type of anaerobic digestion | D10: =+IF(AND(D8<=20,D8>=1),"Wet",IF(AND(D8>20,D8<=30),"Semy-Dry",IF(AND(D8>30,D8<=40),"Dry","No-Digestion"))) -> 
C12: WET | D12: Primary Sludge | E12: Secondary Sludge | F12: Organic fraction MSW | G12: Food industry waste | H12: Animal blood | I12: Animal fat | J12: =+L7 -> 0 | Y12: SEMI-DRY | Z12: Primary Sludge | AA12: Secondary Sludge | AB12: Organic fraction MSW | AC12: Food industry waste | AD12: Animal blood | AE12: Animal fat | AF12: =+L2 -> 0 | AR12: DRY | AS12: Primary Sludge | AT12: Secondary Sludge | AU12: Organic fraction MSW | AV12: Food industry waste | AW12: Animal blood | AX12: Animal fat | AY12: =+L2 -> 0
C13: Totalsolid (%) | D13: =+IF(D10="Wet",E8,0) ->  | E13: =+IF(D10="Wet",F8,0) ->  | F13: =+IF(D10="Wet",G8,0) ->  | G13: =+IF(D10="Wet",I8,0) ->  | H13: =+IF(D10="Wet",J8,0) ->  | I13: =+IF(D10="Wet",K8,0) ->  | J13: =+IF(D10="Wet",L8,0) ->  | Y13: Totalsolid (%) | Z13: =+IF($D$10="Semy-Dry",E8,0) ->  | AA13: =+IF($D$10="Semy-Dry",F8,0) ->  | AB13: =+IF($D$10="Semy-Dry",G8,0) ->  | AC13: =+IF($D$10="Semy-Dry",I8,0) ->  | AD13: =+IF($D$10="Semy-Dry",J8,0) ->  | AE13: =+IF($D$10="Semy-Dry",K8,0) ->  | AF13: =+IF($D$10="Semy-Dry",L8,0) ->  | AR13: Totalsolid (%) | AS13: =+IF($D$10="Dry",E8,0) ->  | AT13: =+IF($D$10="Dry",F8,0) ->  | AU13: =+IF($D$10="Dry",G8,0) ->  | AV13: =+IF($D$10="Dry",I8,0) ->  | AW13: =+IF($D$10="Dry",J8,0) ->  | AX13: =+IF($D$10="Dry",K8,0) ->  | AY13: =+IF($D$10="Dry",L8,0) -> 
C14: Volatile Matter (% solid) | D14: =+IF($D$10="Wet",Feedstock_Database!M5,0) ->  | E14: =+IF($D$10="Wet",Feedstock_Database!M7,0) ->  | F14: =+IF($D$10="Wet",Feedstock_Database!M9,0) ->  | G14: =+IF($D$10="Wet",Feedstock_Database!M13,0) ->  | H14: =+IF($D$10="Wet",Feedstock_Database!M15,0) ->  | I14: =+IF($D$10="Wet",Feedstock_Database!M17,0) ->  | J14: =+IF($D$10="Wet",Feedstock_Database!M19,0) ->  | Y14: Volatile Matter (% solid) | Z14: =+IF($D$10="Semy-Dry",Feedstock_Database!M5,0) ->  | AA14: =+IF($D$10="Semy-Dry",Feedstock_Database!M7,0) ->  | AB14: =+IF($D$10="Semy-Dry",Feedstock_Database!M9,0) ->  | AC14: =+IF($D$10="Semy-Dry",Feedstock_Database!M13,0) ->  | AD14: =+IF($D$10="Semy-Dry",Feedstock_Database!M15,0) ->  | AE14: =+IF($D$10="Semy-Dry",Feedstock_Database!M17,0) ->  | AF14: =+IF($D$10="Semy-Dry",Feedstock_Database!M19,0) ->  | AR14: Volatile Matter (% solid) | AS14: =+IF($D$10="Dry",Feedstock_Database!M5,0) ->  | AT14: =+IF($D$10="Dry",Feedstock_Database!M7,0) ->  | AU14: =+IF($D$10="Dry",Feedstock_Database!M9,0) ->  | AV14: =+IF($D$10="Dry",Feedstock_Database!M13,0) ->  | AW14: =+IF($D$10="Dry",Feedstock_Database!M15,0) ->  | AX14: =+IF($D$10="Dry",Feedstock_Database!M17,0) ->  | AY14: =+IF($D$10="Dry",Feedstock_Database!M19,0) -> 
C15: Specific production of biogas [m3/kgVM] | D15: 0.5 | E15: 0.5 | F15: 0 | G15: 0 | H15: 0 | I15: 0 | J15: 0 | Y15: Specific production of biogas [m3/kgVM] | Z15: 0.4 | AA15: 0.4 | AB15: 0.4 | AC15: 0 | AD15: 0 | AE15: 0 | AF15: 0 | AR15: Specific production of biogas [m3/kgVM] | AS15: 0.3 | AT15: 0.3 | AU15: 0.3 | AV15: 0 | AW15: 0 | AX15: 0 | AY15: 0
C16: default | D16: 0.5 | E16: 0.5 | F16: 0.5 | G16: 0.5 | H16: 0.5 | I16: 0.5 | J16: 0.5 | K16: 0.5 | L16: 0.5 | Y16: default | Z16: 0.4 | AA16: 0.4 | AB16: 0.4 | AC16: 0.4 | AD16: 0.4 | AE16: 0.4 | AF16: 0.4 | AG16: 0.4 | AH16: 0.4 | AR16: default | AS16: 0.3 | AT16: 0.3 | AU16: 0.3 | AV16: 0.3 | AW16: 0.3 | AX16: 0.3 | AY16: 0.3 | AZ16: 0.3 | BA16: 0.3
C20: SolidsInitial [t dry] | D20: =+IF($D$10="Wet",(D13/100)*E3,0) ->  | E20: =+IF($D$10="Wet",(E13/100)*F3,0) ->  | F20: =+IF($D$10="Wet",(F13/100)*G3,0) ->  | G20: =+IF($D$10="Wet",(G13/100)*I3,0) ->  | H20: =+IF($D$10="Wet",(H13/100)*J3,0) ->  | I20: =+IF($D$10="Wet",(I13/100)*K3,0) ->  | J20: =+IF($D$10="Wet",(J13/100)*L3,0) ->  | Y20: SolidsInitial [t dry] | Z20: =+IF($D$10="Semy-Dry",(Z13/100)*E3,0) ->  | AA20: =+IF($D$10="Semy-Dry",(AA13/100)*F3,0) ->  | AB20: =+IF($D$10="Semy-Dry",(AB13/100)*G3,0) ->  | AC20: =+IF($D$10="Semy-Dry",(AC13/100)*I3,0) ->  | AD20: =+IF($D$10="Semy-Dry",(AD13/100)*J3,0) ->  | AE20: =+IF($D$10="Semy-Dry",(AE13/100)*K3,0) ->  | AF20: =+IF($D$10="Semy-Dry",(AF13/100)*L3,0) ->  | AR20: SolidsInitial [t dry] | AS20: =+IF($D$10="Dry",(AS13/100)*E3,0) ->  | AT20: =+IF($D$10="Dry",(AT13/100)*F3,0) ->  | AU20: =+IF($D$10="Dry",(AU13/100)*G3,0) ->  | AV20: =+IF($D$10="Dry",(AV13/100)*I3,0) ->  | AW20: =+IF($D$10="Dry",(AW13/100)*J3,0) ->  | AX20: =+IF($D$10="Dry",(AX13/100)*K3,0) ->  | AY20: =+IF($D$10="Dry",(AY13/100)*L3,0) -> 
A22: 1 | B22: Biogas production | C22: Primary Sludge | D22: Secondary Sludge | E22: Organic fraction MSW | F22: Food industry waste | G22: Animal blood | H22: Animal fat | I22: =+L2 -> 0 | L22: Sum | W22: 1 | X22: Biogas production | Y22: Primary Sludge | Z22: Secondary Sludge | AA22: Organic fraction MSW | AB22: Food industry waste | AC22: Animal blood | AD22: Animal fat | AE22: =+AF12 -> 0 | AH22: Sum | AP22: 1 | AQ22: Biogas production | AR22: Primary Sludge | AS22: Secondary Sludge | AT22: Organic fraction MSW | AU22: Food industry waste | AV22: Animal blood | AW22: Animal fat | AX22: =+AY12 -> 0 | BA22: Sum
A24: =+(+F3*1000*(E13/100)*(E14/100)*E15)*1.13 ->  | B24: Biogas production [Nm3/year] | C24: =+E3*1000*(D13/100)*(D14/100)*D15 ->  | D24: =IF(UpDateAnaerobicDigestion!B25="Thermo-chemical",(+F3*1000*(E13/100)*(E14/100)*E15)*1.13,IF(UpDateAnaerobicDigestion!B25="Thermo-pressure",(+F3*1000*(E13/100)*(E14/100)*E15)*1.15,(+F3*1000*(E13/100)*(E14/100)*E15))) ->  | E24: =+G3*1000*(F13/100)*(F14/100)*F15 ->  | F24: =+I3*1000*(G13/100)*(G14/100)*G15 ->  | G24: =+J3*1000*(H13/100)*(H14/100)*H15 ->  | H24: =+K3*1000*(I13/100)*(I14/100)*I15 ->  | I24: =+L3*1000*(J13/100)*(J14/100)*J15 ->  | L24: =+SUM(C24:K24) ->  | M24: * | W24: =+F3*1000*(AA13/100)*(AA14/100)*AA15*1.13 ->  | X24: Biogas production [Nm3/year] | Y24: =+E3*1000*(Z13/100)*(Z14/100)*Z15 ->  | Z24: =IF(UpDateAnaerobicDigestion!B25="Thermo-chemical",(+F3*1000*(AA13/100)*(AA14/100)*AA15)*1.13,IF(UpDateAnaerobicDigestion!B25="Thermo-pressure",(+F3*1000*(AA13/100)*(AA14/100)*AA15)*1.15,(+F3*1000*(AA13/100)*(AA14/100)*AA15))) ->  | AA24: =+G3*1000*(AB13/100)*(AB14/100)*AB15 ->  | AB24: =+I3*1000*(AC13/100)*(AC14/100)*AC15 ->  | AC24: =+J3*1000*(AD13/100)*(AD14/100)*AD15 ->  | AD24: =+K3*1000*(AE13/100)*(AE14/100)*AE15 ->  | AE24: =+L3*1000*(AF13/100)*(AF14/100)*AF15 ->  | AH24: =+SUM(Y24:AG24) ->  | AI24: * | AP24: =+(+F3*1000*(AT13/100)*(AT14/100)*AT15)*1.13 ->  | AQ24: Biogas production [Nm3/year] | AR24: =+E3*1000*(AS13/100)*(AS14/100)*AS15 ->  | AS24: =IF(UpDateAnaerobicDigestion!B25="Thermo-chemical",(+F3*1000*(AT13/100)*(AT14/100)*AT15)*1.13,IF(UpDateAnaerobicDigestion!B25="Thermo-pressure",(+F3*1000*(AT13/100)*(AT14/100)*AT15)*1.15,(+F3*1000*(AT13/100)*(AT14/100)*AT15))) ->  | AT24: =+G3*1000*(AU13/100)*(AU14/100)*AU15 ->  | AU24: =+I3*1000*(AV13/100)*(AV14/100)*AV15 ->  | AV24: =+J3*1000*(AW13/100)*(AW14/100)*AW15 ->  | AW24: =+K3*1000*(AX13/100)*(AX14/100)*AX15 ->  | AX24: =+L3*1000*(AY13/100)*(AY14/100)*AY15 ->  | BA24: =+SUM(AR24:AZ24) -> 
A25: =+(+F3*1000*(E13/100)*(E14/100)*E15)*1.15 ->  | B25: Biogas production [Nm3/h] | C25: =+C24/$E$5 ->  | L25: =+SUM(C25:K25) ->  | W25: =+(+F3*1000*(AA13/100)*(AA14/100)*AA15)*1.15 ->  | X25: Biogas production [Nm3/h] | Y25: =+Y24/$E$5 ->  | AE25: =+AE24/$E$5 ->  | AH25: =+SUM(Y25:AG25) ->  | AP25: =+(+F3*1000*(AT13/100)*(AT14/100)*AT15)*1.15 ->  | AQ25: Biogas production [Nm3/h] | AR25: =+AR24/$E$5 ->  | BA25: =+SUM(AR25:AZ25) -> 
B26: biogas density [kg/m3] | C26: =+IF(D10="Wet",1.2,0) ->  | X26: biogas density [kg/m3] | Y26: =+IF(D10="Semy-Dry",1.2,0) ->  | AQ26: biogas density [kg/m3] | AR26: =+IF(D10="Dry",1.2,0) -> 
B27: CH4 production [Nm3/year] | C27: =UpGrading!C5/100*L24 ->  | X27: CH4 production [Nm3/year] | Y27: =UpGrading!C5/100*AH24 ->  | AQ27: CH4 production [Nm3/year] | AR27: =UpGrading!C5/100*BA24 -> 
B28: Biomethane production [Nm3/year] | C28: =+C27/0.95 ->  | D28: * | X28: Biomethane production [Nm3/year] | Y28: =+Y27/0.95 ->  | Z28: * | AQ28: Biomethane production [Nm3/year] | AR28: =+AR27/0.95 ->  | AS28: *
A31: 2 | B31: Digestate | E31: 2' | F31: solid/water separation | W31: 2 | X31: Digestate | AA31: 2' | AB31: solid/water separation | AP31: 2 | AQ31: Digestate | AT31: 2' | AU31: solid/water separation
B33: Input flow [t a.r./year] | C33: =+IF(D10="Wet",(E3+F3+G3+I3+J3+K3+L3),0) ->  | E33: Water fraction after separator [t/year] | F33: =+(C41-F41/100*C37)/(F42/100-F41/100) ->  | G33: * | X33: Input flow [t a.r./year] | Y33: =+IF(D10="Semy-Dry",(E3+F3+G3+I3+J3+K3+L3),0) ->  | AA33: Water fraction after separator [t/year] | AB33: =+(Y41-AB41/100*Y37)/(AB42/100-AB41/100) ->  | AC33: * | AQ33: Input flow [t a.r./year] | AR33: =+IF(D10="Dry",(E3+F3+G3+I3+J3+K3+L3),0) ->  | AT33: Water fraction after separator [t/year] | AU33: =+(AR41-AU41/100*AR37)/(AU42/100-AU41/100) ->  | AV33: *
B34: Totalsolid (%) | C34: =+((D20+E20+F20+G20+H20+I20+J20)/(E3+F3+G3+I3+J3+K3+L3))*100 ->  | E34: Solid fraction after separator [t/year] | F34: =+C37-F33 ->  | G34: * | X34: Totalsolid (%) | Y34: =+((Z20+AA20+AB20+AC20+AD20+AE20+AF20)/(E3+F3+G3+I3+J3+K3+L3))*100 ->  | AA34: Solid fraction after separator [t/year] | AB34: =+Y37-AB33 ->  | AC34: * | AQ34: Totalsolid (%) | AR34: =+((AS20+AT20+AU20+AV20+AW20+AX20+AY20)/(E3+F3+G3+I3+J3+K3+L3))*100 ->  | AT34: Solid fraction after separator [t/year] | AU34: =+AR37-AU33 ->  | AV34: *
B35: Water content (%) | C35: =+IF(D10="Wet",(100-C34),0) ->  | E35: SS OUTPUT SOLID [t/year] | F35: =+F34*F41/100 ->  | X35: Water content (%) | Y35: =+IF(D10="Semy-Dry",(100-Y34),0) ->  | AA35: SS OUTPUT SOLID [t/year] | AB35: =+AB34*AB41/100 ->  | AQ35: Water content (%) | AR35: =+IF(D10="Dry",(100-AR34),0) ->  | AT35: SS OUTPUT SOLID [t/year] | AU35: =+AU34*AU41/100 -> 
B36: Biogas mass [t/year] | C36: =+L24*C26*10^-3 ->  | E36: SS OUTPUT WATER [t/year] | F36: =+F33*F42/100 ->  | X36: Biogas mass [t/year] | Y36: =+AH24*Y26*10^-3 ->  | AA36: SS OUTPUT WATER [t/year] | AB36: =+AB33*AB42/100 ->  | AQ36: Biogas mass [t/year] | AR36: =+BA24*AR26*10^-3 ->  | AT36: SS OUTPUT WATER [t/year] | AU36: =+AU33*AU42/100 -> 
B37: Digestate mass [t/year] | C37: =+IF(D10="Wet",(C33-C36),0) ->  | D37: * | X37: Digestate mass [t/year] | Y37: =+IF(D10="Semy-Dry",(Y33-Y36),0) ->  | Z37: * | AQ37: Digestate mass [t/year] | AR37: =+IF(D10="Dry",(AR33-AR36),0) ->  | AS37: *
B38: Reduction of dry matter (%) | C38: =+IF(D10="Wet",(50),0) ->  | X38: Reduction of dry matter (%) | Y38: =+IF(Z10="Semy-Dry",(50),0) -> 0 | AQ38: Reduction of dry matter (%) | AR38: =+IF(D10="Semy-Dry",(50),0) -> 
B39: Solid into Digestate (%) | C39: =+C34*(1-C38/100) ->  | X39: Solid into Digestate (%) | Y39: =+Y34*(1-Y38/100) ->  | AQ39: Solid into Digestate (%) | AR39: =+AR34*(1-AR38/100) -> 
B40: Water into Digestate (%) | C40: =IF(D10="Wet",(100-C39),0) ->  | F40: Solid | G40: Water | X40: Water into Digestate (%) | Y40: =IF(D10="Semy-Dry",(100-Y39),0) ->  | AB40: Solid | AC40: Water | AQ40: Water into Digestate (%) | AR40: =IF(D10="Dry",(100-AR39),0) ->  | AU40: Solid | AV40: Water
B41: SS into Digestate [t/year] | C41: =+C39/100*C37 ->  | E41: Solid fraction % | F41: 30 | G41: =100-F41 -> 70 | X41: SS into Digestate [t/year] | Y41: =+Y39/100*Y37 ->  | AA41: Solid fraction % | AB41: 30 | AC41: =100-AB41 -> 70 | AQ41: SS into Digestate [t/year] | AR41: =+AR39/100*AR37 ->  | AT41: Solid fraction % | AU41: 30 | AV41: =100-AU41 -> 70
B42: Water into Digestate [t/year] | C42: =+IF(D10="Wet",(C37-C41),0) ->  | E42: Water fraction % | F42: 2 | G42: =100-F42 -> 98 | X42: Water into Digestate [t/year] | Y42: =+IF(D10="Semy-Dry",(Y37-Y41),0) ->  | AA42: Water fraction % | AB42: 2 | AC42: =100-AB42 -> 98 | AQ42: Water into Digestate [t/year] | AR42: =+IF(D10="Dry",(AR37-AR41),0) ->  | AT42: Water fraction % | AU42: 2 | AV42: =100-AU42 -> 98
A45: 3 | B45: Input power | E45: 2'' | F45: separation efficiency | W45: 3 | X45: Input power | AA45: 2'' | AB45: separation efficiency | AP45: 3 | AQ45: Input power | AT45: 2'' | AU45: separation efficiency
F46: η | G46: =+F35/C41*100 ->  | AB46: η | AC46: =+AB35/Y41*100 ->  | AU46: η | AV46: =+AU35/AR41*100 -> 
A47: * | B47: LHV- Biogas Lower Heating Value Biogas [MJ/m3] | C47: =+IF(D10="Wet",Input!E16,0) ->  | W47: * | X47: LHV- Biogas Lower Heating Value Biogas [MJ/m3] | Y47: =+IF(D10="Semy-Dry",Input!E29,0) ->  | AP47: * | AQ47: LHV- Biogas Lower Heating Value Biogas [MJ/m3] | AR47: =+IF(D10="Dry",Input!E41,0) -> 
B48: LHV Biogas [kWh/m3] | C48: =+C47*1000/3600 ->  | X48: LHV Biogas [kWh/m3] | Y48: =+Y47*1000/3600 ->  | AQ48: LHV Biogas [kWh/m3] | AR48: =+AR47*1000/3600 -> 
B49: Input power [kW] | C49: =+(SUM(C25:K25))*C48 ->  | X49: Input power [kW] | Y49: =+(SUM(Y25:AG25))*Y48 ->  | AQ49: Input power [kW] | AR49: =+(SUM(AR25:AZ25))*AR48 -> 
A54: 4 | B54: CHP Electricity | W54: 4 | X54: CHP Electricity | AP54: 4 | AQ54: CHP Electricity
A56: * | B56: η ele of CHP | C56: =+IF(D10="Wet",Input!F16,0) ->  | W56: * | X56: η ele of CHP | Y56: =+IF(D10="Semy-Dry",Input!F29,0) ->  | AP56: * | AQ56: η ele of CHP | AR56: =+IF(D10="Dry",Input!F41,0) -> 
A57: * | B57: Engine power [kWele] | C57: =+C56/100*C49 ->  | W57: * | X57: Engine power [kWele] | Y57: =+Y56/100*Y49 ->  | AP57: * | AQ57: Engine power [kWele] | AR57: =+AR56/100*AR49 -> 
B58: Electricity produced by the CHP engine [kWhele/y] | C58: =+C57*E5 ->  | X58: Electricity produced by the CHP engine [kWhele/y] | Y58: =+Y57*E5 ->  | AQ58: Electricity produced by the CHP engine [kWhele/y] | AR58: =+AR57*E5 -> 
B59: Annual energy used by utilities [kWhele/y] | C59: =0.1*C58 ->  | D59: 0.1 | X59: Annual energy used by utilities [kWhele/y] | Y59: =0.1*Y58 ->  | Z59: 0.1 | AQ59: Annual energy used by utilities [kWhele/y] | AR59: =0.1*AR58 ->  | AS59: 0.1
A60: * | B60: Power for the grid [kWhele/y] | C60: =+C58-C59 ->  | W60: * | X60: Power for the grid [kWhele/y] | Y60: =+Y58-Y59 ->  | AP60: * | AQ60: Power for the grid [kWhele/y] | AR60: =+AR58-AR59 -> 
A65: 5 | B65: CHP Thermal | W65: 5 | X65: CHP Thermal | AP65: 5 | AQ65: CHP Thermal
A67: * | B67: η thermal of CHP | C67: =+IF(D10="Wet",Input!G16,0) ->  | W67: * | X67: η thermal of CHP | Y67: =+IF(D10="Semy-Dry",Input!G29,0) ->  | AP67: * | AQ67: η thermal of CHP | AR67: =+IF(D10="Dry",Input!G41,0) -> 
B68: Engine thermal power [kWth] | C68: =+C67*C49/100 ->  | X68: Engine thermal power [kWth] | Y68: =+Y67*Y49/100 ->  | AQ68: Engine thermal power [kWth] | AR68: =+AR67*AR49/100 -> 
B69: Thermal energy produced by the CHP engine [kWhth/y] | C69: =+C68*E5 ->  | X69: Thermal energy produced by the CHP engine [kWhth/y] | Y69: =+Y68*E5 ->  | AQ69: Thermal energy produced by the CHP engine [kWhth/y] | AR69: =+AR68*E5 -> 
B70: Annual energy used by utilities [kWhth/y] | C70: =0.05*C69 ->  | D70: 0.05 | X70: Annual energy used by utilities [kWhth/y] | Y70: =0.05*Y69 ->  | Z70: 0.05 | AQ70: Annual energy used by utilities [kWhth/y] | AR70: =0.05*AR69 ->  | AS70: 0.05
A71: * | B71: Energy available for heating [kWhth/y] | C71: =C69-C70 ->  | W71: * | X71: Energy available for heating [kWhth/y] | Y71: =Y69-Y70 ->  | AP71: * | AQ71: Energy available for heating [kWhth/y] | AR71: =AR69-AR70 -> 

Sheet UpGrading
H1: DATA
F2: =+C6 -> No | H2: CALCULATED
A3: Input data | D3: Units | H3: USER
A4: Neccesary input data | B4: Raw biogas from AD | C4: =+RES_WWTP!J37*RES_WWTP!K37/100 ->  | D4: Nm3/year
B5: Content of CH4 in raw biogas | C5: 60 | D5: % | E5: devo dare la possibilità di modificare la % di ch4
B6: Technology | C6: No
E8: Usual range for selected technology
E9: Pressure Swing Adsorption - PSA | F9: Presure water absorption - PWA | G9: Membrane technology
A10: Recommanded use data from certain manufacturer for better results | B10: CH4 in output gas | C10: 98 | D10: % | E10: 95-98 | F10: 95-98 | G10: 97-98
B11: CH4 losses during upgrading | D11: % | E11: up to 4 | F11: up to 2 | G11: up to 0,6
B12: Electricity consuption for biogas upgrading | D12: kWh/Nm3 | E12: 0,23-0,30 | F12: 0,25-0,3 | G12: 0,18-0,20
B13: Electricity consuption for additional processes | D13: kWh/Nm3 | E13: 0,29-1 | F13: 0,3-0,9 | G13: 0,14-0,29
B14: CHP electricity efficiency | C14: =RES_WWTP!J23 -> 
B15: CHP heat efficiency | C15: =+RES_WWTP!K23 -> 
A20: Output data
A21: Output data | B21: Amount of clean biomethane | C21: =C4*C5/100*IF(ISBLANK(C11),(1-IF(C6="PSA",4/100,IF(C6="PWA",2/100,IF(C6="Membrane",0.6/100,1)))),1-C11/100)*(IF(ISBLANK(C10),(IF(C6="PSA",0.965,IF(C6="PWA",0.965,IF(C6="Membrane",0.975,0)))),C10/100)) ->  | D21: [Nm3/year] | E21: * | F21: moltiplicano per l'efficienza della tecnologia invece di dividere
B22: Total amount of ouput gas | C22: =C21/(IF(ISBLANK(C10),(IF(C6="PSA",0.965,IF(C6="PWA",0.965,IF(C6="Membrane",0.975,0)))),C10/100)) ->  | D22: [Nm3/year] | E22: *
B23: Total electricity consumption for biogas upgrading | C23: =C4*(IF(ISBLANK(C12),(IF(C6="PSA",0.265,IF(C6="PWA",0.27,IF(C6="Membrane",0.19,0)))),C12)+IF(ISBLANK(C13),(IF(C6="PSA",0.645,IF(C6="PWA",0.6,IF(C6="Membrane",0.205,0)))),IF(ISBLANK(C12),0,C13))) ->  | D23: [kWh/year] | E23: *
B24: Electricity from bioemthane | C24: =9.94*C21*C14 ->  | D24: [kWh/year] | E24: *
B25: Thermal energy from biomethane | C25: =9.94*C21*C15 ->  | D25: [kWh/year] | E25: *
B26: Thermal energy from biomethane | C26: =C25*3.6/1000 ->  | D26: [GJ/year] | E26: *
A30: Prices | B30: Electricity (consumption) | C30: =2.2/25 -> 0.088 | D30: EUR/kWh
A31: based on CZ | B31: Electricity (direct selling - low voltage) | C31: =1.6/25 -> 0.064 | D31: EUR/kWh
B32: Electricity (selling - to grid) | C32: =0.9/25 -> 0.036 | D32: EUR/kWh
B33: Biomethane direct selling (grid injection) | C33: =9/25 -> 0.36 | D33: EUR/Nm3
B34: Heat price (natural gas equivalent) | C34: =360/25 -> 14.4 | D34: EUR/GJ
B35: Biomethane for vehicle filling | C35: 0.36 | D35: EUR/Nm3
B36: Investments | C36: =(35000000/400)*C4/8100/25 ->  | D36: EUR/kWh | E36: only very simply approximation
J51: membranes | K51: membranes

Sheet UCA
A1: status quo | B1: Type | C1: no selection | D1: Type 1 a | E1: Type 1b | F1: Type 1c | G1: Type 2a | H1: Type 2b | I1: Type 3 | J1: Type 4 | L1: Type 1a | M1: Village centre (rural)
B2: Gross development area | C2: [ha] | D2: 3333 | L2: Type 1b | M2: Small sized town centre (rural)
B3: Specific thermal energy demand | C3: [MWh/(ha.a)] | D3: =+Input!D56 -> 333 | E3: =+Input!E56 -> 0 | F3: =+Input!F56 -> 0 | G3: =+Input!G56 -> 0 | H3: =+Input!H56 -> 0 | L3: Type 1c | M3: Medium sized town centre (suburban)
B4: Heat demand | C4: [MWh/a] | D4: =D2*D3 -> 1109889 | E4: =E2*E3 ->  | F4: =F2*F3 ->  | G4: =G2*G3 ->  | H4: =H2*H3 ->  | L4: Type 2a | M4: Multi-storey building - High density
I5: 1100 | J5: 250 | L5: Type 2b | M5: Multi-storey building - Low density
B6: Current heat demand | C6: [MWh/a] | D6: =SUM(D4:J4) ->  | L6: Type 3 | M6: Commerce and industry
L7: Type 4 | M7: Agricultural use
B9: Settlement specific grid length (internal) | C9: [m/ha] | D9: =+Input!D59 -> 0 | E9: =+Input!E59 -> 0 | F9: =+Input!F59 -> 0 | G9: =+Input!G59 -> 0 | H9: =+Input!H59 -> 0 | I9: =+Input!I59 -> 0 | M9: User Input
B10: Calculated grid length (internal) | C10: [m] | D10: =D9*D2 -> 0 | M10: Default value
B11: Grid length (external) | C11: [m] | K11: 2500 | M11: Calculated value
M12: Not required/available
B13: Total grid length | C13: [m] | D13: =SUM(D10:I10)+G11 ->  | L13: xxx
B15: Occupancy density | C15: [MWh/m] | D15: =D6/D13 -> 
L16: MWh/m
L17: >2
L18: 0,5-2
A19: future situation | B19: Degree of connection | C19: [%] | L19: <0,5
B20: Adapted heat demand | C20: [MWh/a] | D20: =D4*D19/100 ->  | J20: =J4 -> 
B21: Degree of densification | C21: [%]
B22: Potential | C22: [MWh/a] | D22: =(D21)*D20/100 ->  | J22: =(J21)*J20 -> 
B23: Interim heat demand 1 | C23: [MWh/a] | D23: =D20+D22 -> 
B24: Degree of energy savings | C24: [%]
B25: Interim heat demand 2 | C25: [MWh/a] | D25: =(1-D24/100)*D23 ->  | E25: =(1-E24/100)*E23 -> 
B26: Share of solar thermal energy provision | C26: [%]
B27: Interim heat demand 3 | C27: [MWh/a] | D27: =D25*(1-D26/100) ->  | E27: =E25*(1-E26/100) -> 
B29: Future heat demand | C29: [MWh/a] | D29: =SUM(D27:J27) -> 
B31: Occupancy density | C31: [MWh/m] | D31: =D29/D13 -> 

Sheet MsgBox (hidden)
B1: The scope of this Program is to provide a first evaluation on the advantages that the application of some innovative process in the waste and wastewater treatment, can reduce the energetic demand of these plants. The program is organized in different sections. The first section request information useful to describe the plant (e.g. Address) and on available substrates used. The second section ask information on the energetic aspects of the WWTP, if available, and on the technologies that is possible to implement for renewable energy production. The last two sections ask local economic information on energy costs, subsidies available and waste disposal costs, and information to evaluate how the new possible development of the plant can reduce its environmental impact. The REEF 2W team suggest to provide all the information requested to obtain the best result from the TOOL.

Sheet Result (hidden)
C2: Anaerobic Digestion | D2: =+IF(AND(AnaerobicDigestion!C10="Wet"),"Type of Anaerobic Digestion: Wet",IF(AND(AnaerobicDigestion!C10="Semy-Dry"),"Type of Anaerobic Digestion: Semy-Dry",IF(AND(AnaerobicDigestion!C10="Dry"),"Type of Anaerobic Digestion: Dry",0))) ->  | E2: =+IF(AND(AnaerobicDigestion!C10="Wet"),"Total Solid (%): "&ROUNDUP(AnaerobicDigestion!C34,2),IF(AND(AnaerobicDigestion!C10="Semy-Dry"),"Total Solid (%): "&ROUNDUP(AnaerobicDigestion!K34,2),IF(AND(AnaerobicDigestion!C10="Dry"),"Total Solid (%): "&ROUNDUP(AnaerobicDigestion!S34,2),0))) ->  | G2: PowerToGas
C3: Feedstock Properties | D3: OFMSW | E3: Sewage Sludge | G3: =+UpDateAnaerobicDigestion!C3 -> PEM-Elektrolyzer | H3: =+IF(UpDateAnaerobicDigestion!F1="SI",UpDateAnaerobicDigestion!D3,"No-Data") -> No-Data | I3: =+UpDateAnaerobicDigestion!E3 -> Energy consumption [kWh/Nm3 H2]
B4: INPUT | C4: =+AnaerobicDigestion!B8 -> Total solid (%) | D4: =+IF(AND(AnaerobicDigestion!C10="Wet"),AnaerobicDigestion!C13,IF(AND(AnaerobicDigestion!C10="Semy-Dry"),AnaerobicDigestion!K13,IF(AND(AnaerobicDigestion!C10="Dry"),AnaerobicDigestion!S13,0))) ->  | E4: =+IF(AND(AnaerobicDigestion!C10="Wet"),AnaerobicDigestion!D13,IF(AND(AnaerobicDigestion!C10="Semy-Dry"),AnaerobicDigestion!L13,IF(AND(AnaerobicDigestion!C10="Dry"),AnaerobicDigestion!T13,0))) ->  | G4: =+UpDateAnaerobicDigestion!C14 -> Electrolyzer | H4: =+IF(UpDateAnaerobicDigestion!F1="SI",UpDateAnaerobicDigestion!D14,"No-Data") -> No-Data | I4: Installed Power [kW]
C5: =+AnaerobicDigestion!B14 -> Volatile Matter (% solid) | D5: =+IF(AND(AnaerobicDigestion!C10="Wet"),AnaerobicDigestion!C14,IF(AND(AnaerobicDigestion!C10="Semy-Dry"),AnaerobicDigestion!K14,IF(AND(AnaerobicDigestion!C10="Dry"),AnaerobicDigestion!S14,0))) ->  | E5: =+IF(AND(AnaerobicDigestion!C10="Wet"),AnaerobicDigestion!D14,IF(AND(AnaerobicDigestion!C10="Semy-Dry"),AnaerobicDigestion!L14,IF(AND(AnaerobicDigestion!C10="Dry"),AnaerobicDigestion!T14,0))) ->  | G5: =+UpDateAnaerobicDigestion!C18 -> Total Methane | H5: =+IF(UpDateAnaerobicDigestion!F1="SI",UpDateAnaerobicDigestion!D18,"No-Data") -> No-Data | I5: [Nm3/year]
C6: =+AnaerobicDigestion!B15 -> Specific production of biogas [m3/kgVM] | D6: =+IF(AND(AnaerobicDigestion!C10="Wet"),AnaerobicDigestion!C15,IF(AND(AnaerobicDigestion!C10="Semy-Dry"),AnaerobicDigestion!K15,IF(AND(AnaerobicDigestion!C10="Dry"),AnaerobicDigestion!S15,0))) ->  | E6: =+IF(AND(AnaerobicDigestion!C10="Wet"),AnaerobicDigestion!D15,IF(AND(AnaerobicDigestion!C10="Semy-Dry"),AnaerobicDigestion!L15,IF(AND(AnaerobicDigestion!C10="Dry"),AnaerobicDigestion!T15,0))) -> 
C7: Biogas and CHP Parameters | D7: Co-Digestion
C8: =+AnaerobicDigestion!B47 -> LHV- Biogas Lower Heating Value Biogas [MJ/m3] | D8: =+IF(AND(AnaerobicDigestion!C10="Wet"),AnaerobicDigestion!C47,IF(AND(AnaerobicDigestion!C10="Semy-Dry"),AnaerobicDigestion!K47,IF(AND(AnaerobicDigestion!C10="Dry"),AnaerobicDigestion!S47,0))) ->  | G8: Biogas Upgrading | H8: =+IF(AND(UpGrading!C6="PSA"),"Biogas upgrading technology: PSA",IF(AND(UpGrading!C6="PWA"),"Biogas upgrading technology: PWA",IF(AND(UpGrading!C6="Membrane"),"Biogas upgrading technology: Membrane","Biogas upgrading technology: No data"))) -> Biogas upgrading technology: No data
C9: =+AnaerobicDigestion!B56 -> η ele of CHP | D9: =+IF(AND(AnaerobicDigestion!C10="Wet"),AnaerobicDigestion!C56,IF(AND(AnaerobicDigestion!C10="Semy-Dry"),AnaerobicDigestion!K56,IF(AND(AnaerobicDigestion!C10="Dry"),AnaerobicDigestion!S56,0))) ->  | G9: =+UpGrading!B21 -> Amount of clean biomethane | H9: =+IF(UpGrading!C6="PSA",UpGrading!C21,IF(UpGrading!C6="PWA",UpGrading!C21,IF(UpGrading!C6="Membrane",UpGrading!C21,"No-Data"))) -> No-Data | I9: =+UpGrading!D21 -> [Nm3/year]
C10: =+AnaerobicDigestion!B67 -> η thermal of CHP | D10: =+IF(AND(AnaerobicDigestion!C10="Wet"),AnaerobicDigestion!C67,IF(AND(AnaerobicDigestion!C10="Semy-Dry"),AnaerobicDigestion!K67,IF(AND(AnaerobicDigestion!C10="Dry"),AnaerobicDigestion!S67,0))) ->  | G10: =+UpGrading!B22 -> Total amount of ouput gas | H10: =+IF(UpGrading!C6="PSA",UpGrading!C22,IF(UpGrading!C6="PWA",UpGrading!C22,IF(UpGrading!C6="Membrane",UpGrading!C22,"No-Data"))) -> No-Data | I10: =+UpGrading!D22 -> [Nm3/year]
C11: Parameters | D11: Value | G11: =+UpGrading!B23 -> Total electricity consumption for biogas upgrading | H11: =+IF(UpGrading!C6="PSA",UpGrading!C23,IF(UpGrading!C6="PWA",UpGrading!C23,IF(UpGrading!C6="Membrane",UpGrading!C23,"No-Data"))) -> No-Data | I11: =+UpGrading!D23 -> [kWh/year]
B12: OUTPUT | C12: =+AnaerobicDigestion!B57 -> Engine power [kWele] | D12: =+IF(AND(AnaerobicDigestion!C10="Wet"),AnaerobicDigestion!C57,IF(AND(AnaerobicDigestion!C10="Semy-Dry"),AnaerobicDigestion!K57,IF(AND(AnaerobicDigestion!C10="Dry"),AnaerobicDigestion!S57,0))) ->  | G12: =+UpGrading!B24 -> Electricity from bioemthane | H12: =+IF(UpGrading!C6="PSA",UpGrading!C24,IF(UpGrading!C6="PWA",UpGrading!C24,IF(UpGrading!C6="Membrane",UpGrading!C24,"No-Data"))) -> No-Data | I12: =+UpGrading!D24 -> [kWh/year]
C13: =+AnaerobicDigestion!B60 -> Power for the grid [kWhele/y] | D13: =+IF(AND(AnaerobicDigestion!C10="Wet"),AnaerobicDigestion!C60,IF(AND(AnaerobicDigestion!C10="Semy-Dry"),AnaerobicDigestion!K60,IF(AND(AnaerobicDigestion!C10="Dry"),AnaerobicDigestion!S60,0))) ->  | G13: =+UpGrading!B25 -> Thermal energy from biomethane | H13: =+IF(UpGrading!C6="PSA",UpGrading!C25,IF(UpGrading!C6="PWA",UpGrading!C25,IF(UpGrading!C6="Membrane",UpGrading!C25,"No-Data"))) -> No-Data | I13: =+UpGrading!D25 -> [kWh/year]
C14: =+AnaerobicDigestion!B71 -> Energy available for heating [kWhth/y] | D14: =+IF(AND(AnaerobicDigestion!C10="Wet"),AnaerobicDigestion!C71,IF(AND(AnaerobicDigestion!C10="Semy-Dry"),AnaerobicDigestion!K71,IF(AND(AnaerobicDigestion!C10="Dry"),AnaerobicDigestion!S71,0))) ->  | G14: =+UpGrading!B26 -> Thermal energy from biomethane | H14: =+IF(UpGrading!C6="PSA",UpGrading!C26,IF(UpGrading!C6="PWA",UpGrading!C26,IF(UpGrading!C6="Membrane",UpGrading!C26,"No-Data"))) -> No-Data | I14: =+UpGrading!D26 -> [GJ/year]
C15: =+AnaerobicDigestion!B24 -> Biogas production [Nm3/year] | D15: =+IF(AND(AnaerobicDigestion!C10="Wet"),AnaerobicDigestion!E24,IF(AND(AnaerobicDigestion!C10="Semy-Dry"),AnaerobicDigestion!M24,IF(AND(AnaerobicDigestion!C10="Dry"),AnaerobicDigestion!U24,0))) -> 
C16: DIGESTATE MASS | D16: =+IF(AND(AnaerobicDigestion!C10="Wet"),AnaerobicDigestion!C37,IF(AND(AnaerobicDigestion!C10="Semy-Dry"),AnaerobicDigestion!K37,IF(AND(AnaerobicDigestion!C10="Dry"),AnaerobicDigestion!S37,0))) -> 
C17: =+AnaerobicDigestion!E34 -> Solid fraction after separator [t/year] | D17: =+IF(AND(AnaerobicDigestion!C10="Wet"),AnaerobicDigestion!F34,IF(AND(AnaerobicDigestion!C10="Semy-Dry"),AnaerobicDigestion!N34,IF(AND(AnaerobicDigestion!C10="Dry"),AnaerobicDigestion!V34,0))) -> 
C18: =+AnaerobicDigestion!E33 -> Water fraction after separator [t/year] | D18: =+IF(AND(AnaerobicDigestion!C10="Wet"),AnaerobicDigestion!F33,IF(AND(AnaerobicDigestion!C10="Semy-Dry"),AnaerobicDigestion!N33,IF(AND(AnaerobicDigestion!C10="Dry"),AnaerobicDigestion!V33,0))) -> 
C19: =+IF(UpDateAnaerobicDigestion!B25="Thermo-chemical","You have chosen to use: Thermo-chemical hydrolysis (65°C)",IF(UpDateAnaerobicDigestion!B25="Thermo-pressure","You have chosen to use: Thermo-pressure hydrolysis (165°C)","You haven't chosen the type of hydrolysis")) -> You haven't chosen the type of hydrolysis
C20: =+IF(OR(UpDateAnaerobicDigestion!B25="Thermo-chemical",UpDateAnaerobicDigestion!B25="Thermo-pressure"),"Pay attention that choosing this technology you will have an increase of non biodegradable COD","") -> 
C22: Composting
C23: Feedstock and Process Properties | D23: Co-Composting
B24: INPUT | C24: =+C4 -> Total solid (%) | D24: =+Composting!C9 -> 
C25: C feedstock (% solid) | D25: =+Composting!C10 -> 
C26: H feedstock (% solid) | D26: =+Composting!C11 -> 
C27: O feedstock (% solid) | D27: =+Composting!C12 -> 
C28: N feedstock (% solid) | D28: =+Composting!C13 -> 
C29: Organic substance that becomes compost (% weight) | D29: =+Composting!D36 -> 0
C30: =+Composting!C67 -> Inlet air temperature [°C] | D30: =+Composting!D67 -> 0
C31: =+Composting!C70 -> Output air temperature [°C] | D31: =+Composting!D70 -> 0
C32: =+Composting!C100 -> Inlet organic matter temperature [°C] | D32: =+Composting!D100 -> 0
C33: Parameters | D33: Value
B34: OUTPUT | C34: Compost mass [t/year] | D34: =+Composting!D60 -> 
C35: =+Composting!C66 -> Final compost moisture % | D35: =+Composting!D66 -> 0
C36: =+Composting!C99 -> Final compost temperature [°C] | D36: =+Composting!D99 -> 0
C37: Addition of coformulant [t ar/year] | D37: =+Composting!D3 -> 0
C39: Gasification
C40: Parameters | D40: Co-Gasification
B41: INPUT | C41: =+C24 -> Total solid (%) | D41: =+Gasification!C7 -> 
C42: C feedstock (% solid) | D42: =+Gasification!C8 -> 
C43: H feedstock (% solid) | D43: =+Gasification!C9 -> 
C44: O feedstock (% solid) | D44: =+Gasification!C10 -> 
C45: N feedstock (% solid) | D45: =+Gasification!C11 -> 
C46: =+C9 -> η ele of CHP | D46: =+Gasification!C134 -> 0
C47: =+C10 -> η thermal of CHP | D47: =+Gasification!C145 -> 0
C48: Parameters | D48: Value
B49: OUTPUT | C49: =+C12 -> Engine power [kWele] | D49: =+Gasification!C135 -> 
C50: =+C13 -> Power for the grid [kWhele/y] | D50: =+Gasification!C138 -> 
C51: =+C14 -> Energy available for heating [kWhth/y] | D51: =+Gasification!C149 -> 
C52: Syngas production [Nm3/year] | D52: =+Gasification!C105 -> 
C53: LHV - Syngas Lower Heating Value [MJ/Nm3] | D53: =+Gasification!C115 -> 5.613813201
C54: =+Gasification!B121 -> η cold (%) | D54: =+Gasification!C121 -> 
C56: HTC
C57: Parameters | D57: Co-HTC
B58: INPUT | C58: =+C41 -> Total solid (%) | D58: =+HTC!C9 -> 
C59: C feedstock (% solid) | D59: =+HTC!C10 -> 
C60: H feedstock (% solid) | D60: =+HTC!C11 -> 
C61: O feedstock (% solid) | D61: =+HTC!C12 -> 
C62: Ash feedstock (% solid) | D62: =+HTC!C13 -> 
C63: VM feedstock (% solid) | D63: =+HTC!C14 -> 
C64: FC feedstock (% solid) | D64: =+HTC!C15 -> 
C65: Final reaction temperature [°C] | D65: =+HTC!C23 -> 240
C66: Reaction time [min] | D66: =+HTC!C24 -> 920
C67: Heating time [min] | D67: =+HTC!C25 -> 81
C68: Volume [mL] | D68: =+HTC!C28 -> 2870
C69: Volume ratio | D69: =+HTC!C29 -> 0.4
C70: Parameters | D70: Value
B71: OUTPUT | C71: Hydrochar mass [t/year] | D71: =+HTC!C52 -> 
C72: Hydrochar carbon content (%C solid) | D72: =+HTC!C54 -> 
C73: LHV - Hydrochar Lower Heating Value [MJ/t] | D73: =+HTC!C60 -> 
C74: Input Power [kW] | D74: =+HTC!C64 -> 
C76: From Anaerobic Digestion to Composting
C77: Parameters | D77: Value
C78: =+C34 -> Compost mass [t/year] | D78: =+'AD+Composting'!D60 -> 
C79: =+C35 -> Final compost moisture % | D79: =+'AD+Composting'!D66 -> 45
C80: =+C36 -> Final compost temperature [°C] | D80: =+'AD+Composting'!D99 -> 30
C81: =+C37 -> Addition of coformulant [t ar/year] | D81: =+'AD+Composting'!D3 -> 
C83: From Anaerobic Digestion to Gasification
C84: Parameters | D84: Value
C85: =+C49 -> Engine power [kWele] | D85: =+'AD+Gasification'!C135 -> 
C86: Power for the grid [kWhele/y] | D86: =+'AD+Gasification'!C138 -> 
C87: Energy available for heating [kWhth/y] | D87: =+'AD+Gasification'!C149 -> 
C88: Syngas production [Nm3/year] | D88: =+'AD+Gasification'!C105 -> 
C89: LHV - Syngas Lower Heating Value [MJ/Nm3] | D89: =+'AD+Gasification'!C115 -> 5.831210684
C90: η cold (%) | D90: =+'AD+Gasification'!C121 -> 
C92: From Anaerobic Digestion to HTC
C93: Parameters | D93: Value
C94: =+C71 -> Hydrochar mass [t/year] | D94: =+'AD+HTC'!C52 -> 
C95: =+C72 -> Hydrochar carbon content (%C solid) | D95: =+'AD+HTC'!C54 -> 
C96: =+C73 -> LHV - Hydrochar Lower Heating Value [MJ/t] | D96: =+'AD+HTC'!C61 -> 
C97: =+C74 -> Input Power [kW] | D97: =+'AD+HTC'!C65 -> 
C99: From HTC to Gasification
C100: Parameters | D100: Value
C101: =+C85 -> Engine power [kWele] | D101: =+'HTC+Gasification'!C135 -> 
C102: Power for the grid [kWhele/y] | D102: =+'HTC+Gasification'!C138 -> 
C103: Energy available for heating [kWhth/y] | D103: =+'HTC+Gasification'!C149 -> 
C104: Syngas production [Nm3/year] | D104: =+'HTC+Gasification'!C105 -> 
C105: LHV - Syngas Lower Heating Value [MJ/Nm3] | D105: =+'HTC+Gasification'!C115 -> 5.410460112
C106: η cold (%) | D106: =+'HTC+Gasification'!C121 -> 

Sheet Results and Discussion (hidden)
A1: OFMSW | B1: 107.6 | C1: kg/people year (ITALY)
A2: SS | B2: 91.25 | C2: kg/people year (ITALY)
E6: 50000 | F6: Inhabitants | O6: 100000 | P6: Inhabitants | X6: 200000 | Y6: Inhabitants
E7: OFMSW | F7: =+$E$6*B1*10^-3 -> 5380 | G7: t/year | O7: OFMSW | P7: =+$O$6*B1*10^-3 -> 10760 | Q7: t/year | X7: OFMSW | Y7: =+$X$6*B1*10^-3 -> 21520 | Z7: t/year
E8: SS | F8: =+$E$6*B2*10^-3 -> 4562.5 | G8: t/year | O8: SS | P8: =+$O$6*B2*10^-3 -> 9125 | Q8: t/year | X8: SS | Y8: =+$X$6*B2*10^-3 -> 18250 | Z8: t/year
E10: Anaerobic Digestion | F10: Type of Anaerobic Digestion: Dry | G10: Total Solid (%): 38.12 | X10: Anaerobic Digestion | Y10: Type of Anaerobic Digestion: Dry | Z10: Total Solid (%): 38.12
E11: Feedstock Properties | F11: OFMSW | G11: Sewage Sludge | O11: Feedstock Properties | P11: OFMSW | Q11: Sewage Sludge | X11: Feedstock Properties | Y11: OFMSW | Z11: Sewage Sludge
D12: INPUT | E12: Total solid (%) | F12: 45 | G12: 30 | N12: INPUT | O12: Total solid (%) | P12: 45 | Q12: 30 | W12: INPUT | X12: Total solid (%) | Y12: 45 | Z12: 30
E13: Volatile Matter (% solid) | F13: 90 | G13: 80 | O13: Volatile Matter (% solid) | P13: 90 | Q13: 80 | X13: Volatile Matter (% solid) | Y13: 90 | Z13: 80
E14: Specific production of biogas [m3/kgVM] | F14: 0.3 | G14: 0.3 | O14: Specific production of biogas [m3/kgVM] | P14: 0.3 | Q14: 0.3 | X14: Specific production of biogas [m3/kgVM] | Y14: 0.3 | Z14: 0.3
E15: Biogas and CHP Parameters | F15: Co-Digestion | O15: Biogas and CHP Parameters | P15: Co-Digestion | X15: Biogas and CHP Parameters | Y15: Co-Digestion
E16: LHV- Biogas Lower Heating Value Biogas [MJ/m3] | F16: 20 | O16: LHV- Biogas Lower Heating Value Biogas [MJ/m3] | P16: 20 | X16: LHV- Biogas Lower Heating Value Biogas [MJ/m3] | Y16: 20
E17: η ele of CHP | F17: 40 | O17: η ele of CHP | P17: 40 | X17: η ele of CHP | Y17: 40
E18: η thermal of CHP | F18: 50 | O18: η thermal of CHP | P18: 50 | X18: η thermal of CHP | Y18: 50
E19: Parameters | F19: Value
D20: OUTPUT | E20: Motor power [kWele] | F20: 272.825
E21: Power for the grid [kWhele/y] | F21: 1964340 | O21: Anaerobic Digestion | P21: Type of Anaerobic Digestion: Dry | Q21: Total Solid (%): 38.12 | X21: Anaerobic Digestion | Y21: Type of Anaerobic Digestion: Dry | Z21: Total Solid (%): 38.12
E22: Energy available for heating [kWhth/y] | F22: 2591837.5 | O22: Parameters | P22: Value | X22: Parameters | Y22: Value
E23: Biogas production [m3/year] | F23: 982170 | N23: OUTPUT | O23: Motor power [kWele] | P23: 545.65 | W23: OUTPUT | X23: Motor power [kWele] | Y23: 1091.3
E24: Biomethane production [m3/year] | F24: 620317.8947 | O24: Power for the grid [kWhele/y] | P24: 3928680 | X24: Power for the grid [kWhele/y] | Y24: 7857360
E25: Digestate mass [t/year] | F25: 8763.896 | O25: Energy available for heating [kWhth/y] | P25: 5183675 | X25: Energy available for heating [kWhth/y] | Y25: 10367350
E26: Solid fraction after separator [t/year] | F26: 5339.19563 | O26: Biogas production [m3/year] | P26: 1964340 | X26: Biogas production [m3/year] | Y26: 3928680
E27: Water fraction after separator [t/year] | F27: 3424.70037 | O27: Biomethane production [m3/year] | P27: 1240635.789 | X27: Biomethane production [m3/year] | Y27: 2481271.579
O28: Digestate mass [t/year] | P28: 17527.792 | X28: Digestate mass [t/year] | Y28: 35055.584
O29: Solid fraction after separator [t/year] | P29: 10678.39126 | X29: Solid fraction after separator [t/year] | Y29: 21356.78252
O30: Water fraction after separator [t/year] | P30: 6849.400741 | X30: Water fraction after separator [t/year] | Y30: 13698.80148
E33: Qui è aggiunto il coformulante
E34: Composting | O34: Composting | X34: Composting
E35: Feedstock and Process Properties | F35: Co-Composting | O35: Feedstock and Process Properties | P35: Co-Composting | X35: Feedstock and Process Properties | Y35: Co-Composting
D36: INPUT | E36: Total solid (%) | F36: 43.74444724 | N36: INPUT | O36: Total solid (%) | P36: 43.74444724 | W36: INPUT | X36: Total solid (%) | Y36: 43.74444724
E37: C feedstock (% solid) | F37: 43.3573421 | O37: C feedstock (% solid) | P37: 43.3573421 | X37: C feedstock (% solid) | Y37: 43.3573421
E38: H feedstock (% solid) | F38: 5.829756186 | O38: H feedstock (% solid) | P38: 5.829756186 | X38: H feedstock (% solid) | Y38: 5.829756186
E39: O feedstock (% solid) | F39: 38.07024247 | O39: O feedstock (% solid) | P39: 38.07024247 | X39: O feedstock (% solid) | Y39: 38.07024247
E40: N feedstock (% solid) | F40: 2.809398082 | O40: N feedstock (% solid) | P40: 2.809398082 | X40: N feedstock (% solid) | Y40: 2.809398082
E41: Organic substance that becomes compost (% weight) | F41: 60 | O41: Organic substance that becomes compost (% weight) | P41: 60 | X41: Organic substance that becomes compost (% weight) | Y41: 60
E42: Inlet air temperature [°C] | F42: 20 | O42: Inlet air temperature [°C] | P42: 20 | X42: Inlet air temperature [°C] | Y42: 20
E43: Output air temperature [°C] | F43: 45 | O43: Output air temperature [°C] | P43: 45 | X43: Output air temperature [°C] | Y43: 45
E44: Inlet organic matter temperature [°C] | F44: 25 | O44: Inlet organic matter temperature [°C] | P44: 25 | X44: Inlet organic matter temperature [°C] | Y44: 25
E45: Parameters | F45: Value | O45: Composting | X45: Composting
D46: OUTPUT | E46: Compost mass [t/year] | F46: 3914.3625 | O46: Parameters | P46: Value | X46: Parameters | Y46: Value
E47: Final compost moisture % | F47: 45 | N47: OUTPUT | O47: Compost mass [t/year] | P47: 7828.725 | W47: OUTPUT | X47: Compost mass [t/year] | Y47: 15657.45
E48: Final compost temperature [°C] | F48: 30 | O48: Final compost moisture % | P48: 45 | X48: Final compost moisture % | Y48: 45
E49: Addition of coformulant [t ar/year] | F49: 4971.25 | O49: Final compost temperature [°C] | P49: 30 | X49: Final compost temperature [°C] | Y49: 30
O50: Addition of coformulant [t ar/year] | P50: 9942.5 | X50: Addition of coformulant [t ar/year] | Y50: 19885
E54: Gasification | O54: Gasification | X54: Gasification
E55: Feedstock and Process Properties | F55: Co-Gasification | O55: Feedstock and Process Properties | P55: Co-Gasification | X55: Feedstock and Process Properties | Y55: Co-Gasification
D56: INPUT | E56: Total solid (%) | F56: 38.11667086 | N56: INPUT | O56: Total solid (%) | P56: 38.11667086 | W56: INPUT | X56: Total solid (%) | Y56: 38.11667086
E57: C feedstock (% solid) | F57: 40.15210172 | O57: C feedstock (% solid) | P57: 40.15210172 | X57: C feedstock (% solid) | Y57: 40.15210172
E58: H feedstock (% solid) | F58: 5.706930536 | O58: H feedstock (% solid) | P58: 5.706930536 | X58: H feedstock (% solid) | Y58: 5.706930536
E59: O feedstock (% solid) | F59: 38.12092025 | O59: O feedstock (% solid) | P59: 38.12092025 | X59: O feedstock (% solid) | Y59: 38.12092025
E60: N feedstock (% solid) | F60: 2.383297051 | O60: N feedstock (% solid) | P60: 2.383297051 | X60: N feedstock (% solid) | Y60: 2.383297051
E61: η ele of CHP | F61: 30 | O61: η ele of CHP | P61: 30 | X61: η ele of CHP | Y61: 30
E62: η thermal of CHP | F62: 40 | O62: η thermal of CHP | P62: 40 | X62: η thermal of CHP | Y62: 40
E63: Parameters | F63: Value | O63: Gasification | X63: Parameters | Y63: Value
D64: OUTPUT | E64: Motor power [kWele] | F64: 548.0210099 | O64: Parameters | P64: Value | W64: OUTPUT | X64: Motor power [kWele] | Y64: 2192.084039
E65: Power for the grid [kWhele/y] | F65: 3945751.271 | N65: OUTPUT | O65: Motor power [kWele] | P65: 1096.04202 | X65: Power for the grid [kWhele/y] | Y65: 15783005.08
E66: Energy available for heating [kWhth/y] | F66: 5553279.567 | O66: Power for the grid [kWhele/y] | P66: 7891502.542 | X66: Energy available for heating [kWhth/y] | Y66: 22213118.27
E67: Syngas production [Nm3/year] | F67: 9442661.939 | O67: Energy available for heating [kWhth/y] | P67: 11106559.13 | X67: Syngas production [Nm3/year] | Y67: 37770647.75
E68: LHV - Syngas Lower Heating Value [MJ/Nm3] | F68: 5.571523929 | O68: Syngas production [Nm3/year] | P68: 18885323.88 | X68: LHV - Syngas Lower Heating Value [MJ/Nm3] | Y68: 5.571523929
E69: η cold (%) | F69: 92.9012664 | O69: LHV - Syngas Lower Heating Value [MJ/Nm3] | P69: 5.571523929 | X69: η cold (%) | Y69: 92.9012664
O70: η cold (%) | P70: 92.9012664
E79: HTC | O79: HTC | X79: HTC
E80: Feedstock and Process Properties | F80: Co-HTC | O80: Feedstock and Process Properties | P80: Co-HTC | X80: Feedstock and Process Properties | Y80: Co-HTC
D81: INPUT | E81: Total solid (%) | F81: 27.79167714 | N81: INPUT | O81: Total solid (%) | P81: 27.79167714 | W81: INPUT | X81: Total solid (%) | Y81: 27.79167714
E82: C feedstock (% solid) | F82: 42.80549162 | O82: C feedstock (% solid) | P82: 42.80549162 | X82: C feedstock (% solid) | Y82: 42.80549162
E83: H feedstock (% solid) | F83: 5.761517269 | O83: H feedstock (% solid) | P83: 5.761517269 | X83: H feedstock (% solid) | Y83: 5.761517269
E84: O feedstock (% solid) | F84: 39.96025582 | O84: O feedstock (% solid) | P84: 39.96025582 | X84: O feedstock (% solid) | Y84: 39.96025582
E85: Ash feedstock (% solid) | F85: 10.02821334 | O85: Ash feedstock (% solid) | P85: 10.02821334 | X85: Ash feedstock (% solid) | Y85: 10.02821334
E86: VM feedstock (% solid) | F86: 74.17750017 | O86: VM feedstock (% solid) | P86: 74.17750017 | X86: VM feedstock (% solid) | Y86: 74.17750017
E87: FC feedstock (% solid) | F87: 14.78069417 | O87: FC feedstock (% solid) | P87: 14.78069417 | X87: FC feedstock (% solid) | Y87: 14.78069417
E88: Final reaction temperature [°C] | F88: 240 | O88: Final reaction temperature [°C] | P88: 240 | X88: Final reaction temperature [°C] | Y88: 240
E89: Reaction time [min] | F89: 920 | O89: Reaction time [min] | P89: 920 | X89: Reaction time [min] | Y89: 920
E90: Heating time [min] | F90: 81 | O90: Heating time [min] | P90: 81 | X90: Heating time [min] | Y90: 81
E91: Volume [mL] | F91: 2870 | O91: Volume [mL] | P91: 2870 | X91: Volume [mL] | Y91: 2870
E92: Volume ratio | F92: 0.4 | O92: Volume ratio | P92: 0.4 | X92: Volume ratio | Y92: 0.4
E93: Parameters | F93: Value | O93: HTC | X93: Parameters | Y93: Value
D94: OUTPUT | E94: Hydrochar mass [t/year] | F94: 1465.439842 | O94: Parameters | P94: Value | W94: OUTPUT | X94: Hydrochar mass [t/year] | Y94: 5861.759368
E95: Hydrochar carbon content (%C solid) | F95: 63.95537707 | N95: OUTPUT | O95: Hydrochar mass [t/year] | P95: 2930.879684 | X95: Hydrochar carbon content (%C solid) | Y95: 63.95537707
E96: LHV - Hydrochar Lower Heating Value [MJ/t] | F96: 26374.46232 | O96: Hydrochar carbon content (%C solid) | P96: 63.95537707 | X96: LHV - Hydrochar Lower Heating Value [MJ/t] | Y96: 26374.46232
E97: Input Power [kW] | F97: 1342.020413 | O97: LHV - Hydrochar Lower Heating Value [MJ/t] | P97: 26374.46232 | X97: Input Power [kW] | Y97: 5368.081652
O98: Input Power [kW] | P98: 2684.040826
E104: From Anaerobic Digestion to Composting | O104: From Anaerobic Digestion to Composting | X104: From Anaerobic Digestion to Composting
E105: Parameters | F105: Value (50000) | G105: Value (100000) | H105: Value (200000) | O105: Parameters | P105: Value (100000) | X105: Parameters | Y105: Value (200000)
E106: Compost mass [t/year] | F106: 1228.014995 | G106: 2456.02999 | H106: 4912.059979 | O106: Compost mass [t/year] | P106: 2456.02999 | X106: Compost mass [t/year] | Y106: 4912.059979
E107: Final compost moisture % | F107: 45 | G107: 45 | H107: 45 | O107: Final compost moisture % | P107: 45 | X107: Final compost moisture % | Y107: 45
E108: Final compost temperature [°C] | F108: 30 | G108: 30 | H108: 30 | O108: Final compost temperature [°C] | P108: 30 | X108: Final compost temperature [°C] | Y108: 30
E109: Addition of coformulant [t/year] | F109: 2669.597815 | G109: 5339.19563 | H109: 10678.39126 | O109: Addition of coformulant [t ar/year] | P109: 5339.19563 | X109: Addition of coformulant [t ar/year] | Y109: 10678.39126
E114: From Anaerobic Digestion to Gasification | O114: From Anaerobic Digestion to Gasification | X114: From Anaerobic Digestion to Gasification
E115: Parameters | F115: Value (50000) | G115: Value (100000) | H115: Value (200000) | O115: Parameters | P115: Value | X115: Parameters | Y115: Value
E116: Motor power [kWele] | F116: 263.141624 | G116: 526.2832481 | H116: 1052.566496 | O116: Motor power [kWele] | P116: 526.2832481 | X116: Motor power [kWele] | Y116: 1052.566496
E117: Power for the grid [kWhele/y] | F117: 1894619.693 | G117: 3789239.386 | H117: 7578478.773 | O117: Power for the grid [kWhele/y] | P117: 3789239.386 | X117: Power for the grid [kWhele/y] | Y117: 7578478.773
E118: Energy available for heating [kWhth/y] | F118: 2666501.79 | G118: 5333003.581 | H118: 10666007.16 | O118: Energy available for heating [kWhth/y] | P118: 5333003.581 | X118: Energy available for heating [kWhth/y] | Y118: 10666007.16
E119: Syngas production [Nm3/year] | F119: 4326323.523 | G119: 8652647.045 | H119: 17305294.09 | O119: Syngas production [Nm3/year] | P119: 8652647.045 | X119: Syngas production [Nm3/year] | Y119: 17305294.09
E120: LHV - Syngas Lower Heating Value [MJ/Nm3] | F120: 5.839044578 | G120: 5.839044578 | H120: 5.839044578 | O120: LHV - Syngas Lower Heating Value [MJ/Nm3] | P120: 5.839044578 | X120: LHV - Syngas Lower Heating Value [MJ/Nm3] | Y120: 5.839044578
E121: η cold (%) | F121: 99.38469601 | G121: 99.38469601 | H121: 99.38469601 | O121: η cold (%) | P121: 99.38469601 | X121: η cold (%) | Y121: 99.38469601
E130: From Anaerobic Digestion to HTC | O130: From Anaerobic Digestion to HTC | X130: From Anaerobic Digestion to HTC
E131: Parameters | F131: Value (50000) | G131: Value (100000) | H131: Value (200000) | O131: Parameters | P131: Value | X131: Parameters | Y131: Value
E132: Hydrochar mass [t/year] | F132: 1165.326663 | G132: 2330.653326 | H132: 4661.306652 | O132: Hydrochar mass [t/year] | P132: 2330.653326 | X132: Hydrochar mass [t/year] | Y132: 4661.306652
E133: Hydrochar carbon content (%C solid) | F133: 57.55574922 | G133: 57.55574922 | H133: 57.55574922 | O133: Hydrochar carbon content (%C solid) | P133: 57.55574922 | X133: Hydrochar carbon content (%C solid) | Y133: 57.55574922
E134: LHV - Hydrochar Lower Heating Value [MJ/t] | F134: 23996.3332 | G134: 23996.3332 | H134: 23996.3332 | O134: LHV - Hydrochar Lower Heating Value [MJ/t] | P134: 23996.3332 | X134: LHV - Hydrochar Lower Heating Value [MJ/t] | Y134: 23996.3332
E135: Input Power [kW] | F135: 970.9571837 | G135: 1941.914367 | H135: 3883.828735 | O135: Input Power [kW] | P135: 1941.914367 | X135: Input Power [kW] | Y135: 3883.828735
E139: From HTC to Gasification | O139: From HTC to Gasification | X139: From HTC to Gasification
E140: Parameters | F140: Value (50000) | G140: Value (100000) | H140: Value (200000) | O140: Parameters | P140: Value | X140: Parameters | Y140: Value
E141: Motor power [kWele] | F141: 244.4375306 | G141: 488.8750613 | H141: 977.7501226 | O141: Motor power [kWele] | P141: 488.8750613 | X141: Motor power [kWele] | Y141: 977.7501226
E142: Power for the grid [kWhele/y] | F142: 1759950.221 | G142: 3519900.441 | H142: 7039800.883 | O142: Power for the grid [kWhele/y] | P142: 3519900.441 | X142: Power for the grid [kWhele/y] | Y142: 7039800.883
E143: Energy available for heating [kWhth/y] | F143: 2476966.977 | G143: 4953933.954 | H143: 9907867.909 | O143: Energy available for heating [kWhth/y] | P143: 4953933.954 | X143: Energy available for heating [kWhth/y] | Y143: 9907867.909
E144: Syngas production [Nm3/year] | F144: 4363380.57 | G144: 8726761.14 | H144: 17453522.28 | O144: Syngas production [Nm3/year] | P144: 8726761.14 | X144: Syngas production [Nm3/year] | Y144: 17453522.28
E145: LHV - Syngas Lower Heating Value [MJ/Nm3] | F145: 5.377940926 | G145: 5.377940926 | H145: 5.377940926 | O145: LHV - Syngas Lower Heating Value [MJ/Nm3] | P145: 5.377940926 | X145: LHV - Syngas Lower Heating Value [MJ/Nm3] | Y145: 5.377940926
E146: η cold (%) | F146: 79.33075574 | G146: 79.33075574 | H146: 79.33075574 | O146: η cold (%) | P146: 79.33075574 | X146: η cold (%) | Y146: 79.33075574

Sheet AnaerobicDigestion (hidden)
A1: DATA | H1: wet | I1: <=20
A2: CALCULATED | C2: OFMSW [t a.r.] | D2: =+Input!C2 -> 0 | H2: semy-dry | I2: 20-30
A3: USER | C3: SEWAGE SLUDGE [t a.r.] | D3: =+Input!C3 -> 0 | H3: dry | I3: >30
C5: Year operating hours | D5: 8000
C7: OFMSW+Sewage Sludge | D7: OFMSW | E7: Sewage Sludge
A8: * | B8: Total solid (%) | C8: =+((D8/100*D2)+(E8/100*D3))/(D2+D3)*100 ->  | D8: =+Input!F4 -> 0 | E8: =+Input!G4 -> 0
B10: Type of anaerobic digestion | C10: =+IF(AND(C8>=10,C8<=20),"Wet",IF(AND(C8>20,C8<=30),"Semy-Dry",IF(AND(C8>30,C8<=40),"Dry","No-Digestion"))) -> 
B12: WET | C12: OFMSW | D12: Sewage Sludge | J12: SEMY-DRY | K12: OFMSW | L12: Sewage Sludge | R12: DRY | S12: OFMSW | T12: Sewage Sludge
B13: Totalsolid (%) | C13: =+IF(C10="Wet",D8,0) ->  | D13: =+IF(C10="Wet",E8,0) ->  | J13: Totalsolid (%) | K13: =+IF(C10="Semy-Dry",D8,0) ->  | L13: =+IF(C10="Semy-Dry",E8,0) ->  | R13: Totalsolid (%) | S13: =+IF(C10="Dry",D8,0) ->  | T13: =+IF(C10="Dry",E8,0) -> 
A14: * | B14: Volatile Matter (% solid) | C14: =+IF(C10="Wet",Input!E10,0) ->  | D14: =+IF(C10="Wet",Input!E12,0) ->  | J14: Volatile Matter (% solid) | K14: =+IF(C10="Semy-Dry",Input!E23,0) ->  | L14: =+IF(C10="Semy-Dry",Input!E25,0) ->  | R14: Volatile Matter (% solid) | S14: =+IF(C10="Dry",Input!E35,0) ->  | T14: =+IF(C10="Dry",Input!E37,0) -> 
A15: * | B15: Specific production of biogas [m3/kgVM] | C15: =+IF(C10="Wet",Input!F10,0) ->  | D15: =+IF(C10="Wet",Input!F12,0) ->  | J15: Specific production of biogas [m3/kgVS] | K15: =+IF(C10="Semy-Dry",Input!F23,0) ->  | L15: =+IF(C10="Semy-Dry",Input!F25,0) ->  | R15: Specific production of biogas [m3/kgVS] | S15: =+IF(C10="Dry",Input!F35,0) ->  | T15: =+IF(C10="Dry",Input!F37,0) -> 
B18: SolidsInitial [t dry] | C18: OFMSW [t] | D18: =+IF(C10="Wet",(C13/100)*D2,0) ->  | J18: SolidsInitial [t dry] | K18: OFMSW [t] | L18: =+(K13/100)*D2 ->  | R18: SolidsInitial [t dry] | S18: OFMSW [t] | T18: =+(S13/100)*D2 -> 
C19: SEWAGE SLUDGE [t] | D19: =+IF(C10="Wet",(D13/100)*D3,0) ->  | K19: SEWAGE SLUDGE [t] | L19: =+(L13/100)*D3 ->  | S19: SEWAGE SLUDGE [t] | T19: =+(T13/100)*D3 -> 
A22: 1 | B22: Biogas production | C22: OFMSW | D22: Sewage Sludge | E22: Sum | I22: 1 | J22: Biogas production | K22: OFMSW | L22: Sewage Sludge | M22: Sum | Q22: 1 | R22: Biogas production | S22: OFMSW | T22: Sewage Sludge | U22: Sum
B24: Biogas production [Nm3/year] | C24: =+D2*1000*(C13/100)*(C14/100)*C15 ->  | D24: =(D3*1000*D15*(D13/100)*(D14/100)) ->  | E24: =+SUM(C24:D24) ->  | F24: * | J24: Biogas production [Nm3/year] | K24: =+D2*1000*(K13/100)*(K14/100)*K15 ->  | L24: =(D3*1000*(L13/100)*(L14/100)*L15) ->  | M24: =+SUM(K24:L24) ->  | R24: Biogas production [Nm3/year] | S24: =+D2*1000*(S13/100)*(S14/100)*S15 ->  | T24: =(D3*1000*(T13/100)*(T14/100)*T15) ->  | U24: =+SUM(S24:T24) -> 
B25: Biogas production [Nm3/h] | C25: =+C24/$D$5 ->  | D25: =+D24/$D$5 ->  | E25: =+SUM(C25:D25) ->  | J25: Biogas production [Nm3/h] | K25: =+K24/$D$5 ->  | L25: =+L24/$D$5 ->  | M25: =+SUM(K25:L25) ->  | R25: Biogas production [Nm3/h] | S25: =+S24/$D$5 ->  | T25: =+T24/$D$5 ->  | U25: =+SUM(S25:T25) -> 
B26: biogas density [kg/m3] | C26: =+IF(C10="Wet",1.2,0) ->  | J26: biogas density [kg/m3] | K26: =+IF(C10="Semy-Dry",1.2,0) ->  | R26: biogas density [kg/m3] | S26: =+IF(C10="Dry",1.2,0) -> 
B27: CH4 production [Nm3/year] | C27: =UpGrading!C5/100*E24 ->  | J27: CH4 production [Nm3/year] | K27: =(UpGrading!C5/100)*M24 ->  | R27: CH4 production [Nm3/year] | S27: =(UpGrading!C5/100)*U24 -> 
B28: Biomethane production [Nm3/year] | C28: =+C27/0.95 ->  | D28: * | J28: Biomethane production [Nm3/year] | K28: =+K27/0.95 ->  | R28: Biomethane production [Nm3/year] | S28: =+S27/0.95 -> 
A31: 2 | B31: Digestate | E31: 2' | F31: solid/water separation | I31: 2 | J31: Digestate | M31: 2' | N31: solid/water separation | Q31: 2 | R31: Digestate | U31: 2' | V31: solid/water separation
B33: Input flow [t a.r./year] | C33: =+IF(C10="Wet",(D2+D3),0) ->  | E33: Water fraction after separator [t/year] | F33: =+(C41-F41/100*C37)/(F42/100-F41/100) ->  | G33: * | J33: Input flow [t a.r./year] | K33: =+IF(C10="Semy-Dry",(D2+D3),0) ->  | M33: Water fraction [t/year] | N33: =+(K41-N41/100*K37)/(N42/100-N41/100) ->  | R33: Input flow [t a.r./year] | S33: =+IF(C10="Dry",(D2+D3),0) ->  | U33: Water fraction [t/year] | V33: =+(S41-V41/100*S37)/(V42/100-V41/100) -> 
B34: Totalsolid (%) | C34: =+((D18+D19)/(D2+D3))*100 ->  | E34: Solid fraction after separator [t/year] | F34: =+C37-F33 ->  | G34: * | J34: Totalsolid (%) | K34: =+((L18+L19)/(D2+D3))*100 ->  | M34: Solid fraction [t/year] | N34: =+K37-N33 ->  | R34: Totalsolid (%) | S34: =+((T18+T19)/(D2+D3))*100 ->  | U34: Solid fraction [t/year] | V34: =+S37-V33 -> 
B35: Water content (%) | C35: =+IF(C10="Wet",(100-C34),0) ->  | E35: SS OUTPUT SOLID [t/year] | F35: =+F34*F41/100 ->  | J35: Water content (%) | K35: =IF(C10="Semy-Dry",100-K34,0) ->  | M35: SS OUTPUT SOLID [t/year] | N35: =+N34*N41/100 ->  | R35: Water content (%) | S35: =IF(C10="Dry",100-S34,0) ->  | U35: SS OUTPUT SOLID [t/year] | V35: =+V34*V41/100 -> 
B36: Biogas mass [t/year] | C36: =+E24*C26*10^-3 ->  | E36: SS OUTPUT WATER [t/year] | F36: =+F33*F42/100 ->  | J36: Biogas mass [t/year] | K36: =+M24*K26*10^-3 ->  | M36: SS OUTPUT WATER [t/year] | N36: =+N33*N42/100 ->  | R36: Biogas mass [t/year] | S36: =+U24*S26*10^-3 ->  | U36: SS OUTPUT WATER [t/year] | V36: =+V33*V42/100 -> 
B37: Digestate mass [t/year] | C37: =+IF(C10="Wet",(C33-C36),0) ->  | D37: * | J37: Digestate mass [t/year] | K37: =+K33-K36 ->  | R37: Digestate mass [t/year] | S37: =+S33-S36 -> 
B38: Reduction of dry matter (%) | C38: =+IF(C10="Wet",(50),0) ->  | J38: Reduction of dry matter (%) | K38: =+IF(C10="Semy-Dry",(50),0) ->  | R38: Reduction of dry matter (%) | S38: =+IF(C10="Dry",(50),0) -> 
B39: Solid into Digestate (%) | C39: =+C34*(1-C38/100) ->  | J39: Solid into Digestate (%) | K39: =+K34*(1-K38/100) ->  | R39: Solid into Digestate (%) | S39: =+S34*(1-S38/100) -> 
B40: Water into Digestate (%) | C40: =IF(C10="Wet",(100-C39),0) ->  | F40: Solid | G40: Water | J40: Water into Digestate (%) | K40: =IF(C10="Semy-Dry",100-K39,0) ->  | N40: Solid | R40: Water into Digestate (%) | S40: =IF(C10="Dry",100-S39,0) ->  | V40: Solid
B41: SS into Digestate [t/year] | C41: =+C39/100*C37 ->  | E41: Solid fraction % | F41: 30 | G41: =100-F41 -> 70 | J41: Solid output [t/year] | K41: =+K39/100*K37 ->  | M41: Solid fraction % | N41: 30 | R41: Solid output [t/year] | S41: =+S39/100*S37 ->  | U41: Solid fraction % | V41: 30
B42: Water into Digestate [t/year] | C42: =+IF(C10="Wet",(C37-C41),0) ->  | E42: Water fraction % | F42: 2 | G42: =100-F42 -> 98 | J42: Water output [t/year] | K42: =+K37-K41 ->  | M42: Water fraction % | N42: 2 | R42: Water output [t/year] | S42: =+S37-S41 ->  | U42: Water fraction % | V42: 2
A45: 3 | B45: Input power | E45: 2'' | F45: separation efficiency | I45: 3 | J45: Input power | M45: 2'' | N45: separation efficiency | Q45: 3 | R45: Input power | U45: 2'' | V45: separation efficiency
F46: η | G46: =+F35/C41*100 ->  | N46: η | O46: =+N35/K41*100 ->  | V46: η | W46: =+V35/S41*100 -> 
A47: * | B47: LHV- Biogas Lower Heating Value Biogas [MJ/m3] | C47: =+IF(C10="Wet",Input!E16,0) ->  | J47: LHV Biogas [MJ/m3] | K47: =+IF(C10="Semy-Dry",Input!E29,0) ->  | R47: LHV Biogas [MJ/m3] | S47: =+IF(C10="Dry",Input!E41,0) -> 
B48: LHV Biogas [kWh/m3] | C48: =+C47*1000/3600 ->  | J48: LHV Biogas [kWh/m3] | K48: =+K47*1000/3600 ->  | R48: LHV Biogas [kWh/m3] | S48: =+S47*1000/3600 -> 
B49: Input power [kW] | C49: =+(SUM(C25:D25))*C48 ->  | J49: Input power [kW] | K49: =+(SUM(K25:L25))*K48 ->  | R49: Input power [kW] | S49: =+(SUM(S25:T25))*S48 -> 
A54: 4 | B54: CHP Electricity | I54: 4 | J54: CHP Electricity | Q54: 4 | R54: CHP Electricity
A56: * | B56: η ele of CHP | C56: =+IF(C10="Wet",Input!F16,0) ->  | J56: η ele | K56: =+IF(C10="Semy-Dry",Input!F29,0) ->  | R56: η ele | S56: =+IF(C10="Dry",Input!F41,0) -> 
A57: * | B57: Engine power [kWele] | C57: =+C56/100*C49 ->  | J57: Motor power [kWele] | K57: =+K56/100*K49 ->  | R57: Motor power [kWele] | S57: =+S56/100*S49 -> 
B58: Electricity produced by the CHP engine [kWhele/y] | C58: =+C57*D5 ->  | J58: Electricity produced by the CHP engine [kWhele/y] | K58: =+K57*D5 ->  | R58: Electricity produced by the CHP engine [kWhele/y] | S58: =+S57*D5 -> 
B59: Annual energy used by utilities [kWhele/y] | C59: =0.1*C58 ->  | D59: 0.1 | J59: Annual energy used by utilities [kWhele/y] | K59: =0.1*K58 ->  | R59: Annual energy used by utilities [kWhele/y] | S59: =0.1*S58 -> 
A60: * | B60: Power for the grid [kWhele/y] | C60: =+C58-C59 ->  | J60: Power for the grid [kWhele/y] | K60: =+K58-K59 ->  | R60: Power for the grid [kWhele/y] | S60: =+S58-S59 -> 
A65: 5 | B65: CHP Thermal | I65: 5 | J65: CHP Thermal | Q65: 5 | R65: CHP Thermal
A67: * | B67: η thermal of CHP | C67: =+IF(C10="Wet",Input!G16,0) ->  | J67: η thermal | K67: =+IF(C10="Semy-Dry",Input!G29,0) ->  | R67: η thermal | S67: =+IF(C10="Dry",Input!G41,0) -> 
B68: Engine thermal power [kWth] | C68: =+C67*C49/100 ->  | J68: Engine thermal power [kWth] | K68: =+K67*K49/100 ->  | R68: Engine thermal power [kWth] | S68: =+S67*S49/100 -> 
B69: Thermal energy produced by the CHP engine [kWhth/y] | C69: =+C68*D5 ->  | J69: Thermal energy produced by the CHP engine [kWhth/y] | K69: =+K68*D5 ->  | R69: Thermal energy produced by the CHP engine [kWhth/y] | S69: =+S68*D5 -> 
B70: Annual energy used by utilities [kWhth/y] | C70: =0.05*C69 ->  | D70: 0.05 | J70: Annual energy used by utilities [kWhth/y] | K70: =0.05*K69 ->  | R70: Annual energy used by utilities [kWhth/y] | S70: =0.05*S69 -> 
A71: * | B71: Energy available for heating [kWhth/y] | C71: =C69-C70 ->  | J71: Energy available for heating [kWhth/y] | K71: =K69-K70 ->  | R71: Energy available for heating [kWhth/y] | S71: =S69-S70 -> 

Sheet UpDateAnaerobicDigestion
A1: DATA | C1: Electrolyzer power (Power to Gas) | F1: NO
A2: CALCULATED | C2: Model | E2: Unit
A3: USER | C3: PEM-Elektrolyzer | D3: 4.9 | E3: Energy consumption [kWh/Nm3 H2] | F3: H-TEC Systems (Series -ME)
C4: Year operating hours | D4: =+Anaerobic_Digestion!E5 -> 8000 | E4: [h/year]
B6: POSSO LEVARLE PERCHE' POSSO SOLO LAVORARE CON CO2 | C6: Biogas | D6: =+RES_WWTP!J37*RES_WWTP!K37/100 ->  | E6: N m3/year | F6: Write your Input
C8: Methane | D8: =D6*(UpGrading!C5/100) ->  | E8: N m3/year | F8: Biogas consists of about 60% Mehtane and approx. 40% CO2
B10: MODIFICATA | C10: CO2 | D10: =D6*(1-UpGrading!C5/100)*UpGrading!C10/100 ->  | E10: N m3/year | F10: one m3 CO2 needs 4 m3 H2 (Standard condition: 1bar and 0 °C)
B12: =+D8+D10 ->  | C12: H2 | D12: =D10*4 ->  | E12: N m3/year | F12: 4H2+CO2 à CH4 + 2H2O
B14: * | C14: Electrolyzer | D14: =(D12*D3)/D4 ->  | E14: kW | F14: Energy consumption 4,9 kWh/Nm3 (H-TEC Systems (Series -ME))
B16: MODIFICATA | C16: Produced Methane (Methanation) | D16: =D10 ->  | E16: N m3/year | F16: 4 Nm3 H2 produces 1 Nm3 CH4
B18: * | C18: Total Methane | D18: =D16+D8 ->  | E18: N m3/year
A24: Hydrolysis
A25: We have chosen Way 2 | B25: NO
A29: only sludge | B29: per i risultati dovresti confrontare con e senza ricordarti di sommare anche l'apporto della forsu
B30: No hydrolysis | C30: Thermo-chemical hydrolyisis (65°C) | D30: Thermo-pressure hydrolysis (165°C) HT | E30: Thermo-pressure hydrolysis (165°C) LT
A32: electricity demand [kWh/m³ treated excess] | C32: 0.95 | D32: 1.8 | E32: 1.8
A33: Heat demand [kWh/m³ treated excess sludge] | C33: 60 | D33: 190 | E33: 25
A35: Sludge Density [t/m3] | C35: 1.05 | D35: 1.05 | E35: 1.05
A37: electricity demand [kWh/y] | C37: =+C32*Feedstock_Database!F7/UpDateAnaerobicDigestion!C35 -> 0 | D37: =+D32*Feedstock_Database!F7/UpDateAnaerobicDigestion!D35 -> 0 | E37: =+E32*Feedstock_Database!F7/UpDateAnaerobicDigestion!E35 -> 0
A38: Heat demand [kWh/y] | C38: =+C33*Feedstock_Database!F7/UpDateAnaerobicDigestion!C35 -> 0 | D38: =+D33*Feedstock_Database!F7/UpDateAnaerobicDigestion!D35 -> 0 | E38: =+E33*Feedstock_Database!F7/UpDateAnaerobicDigestion!E35 -> 0
A40: Biogas production [Nm3/year] | B40: =+D6 ->  | C40: =IF(UpDateAnaerobicDigestion!B25="Thermo-chemical",IF(Anaerobic_Digestion!D10="Wet",Anaerobic_Digestion!A24,IF(Anaerobic_Digestion!D10="Semy-Dry",Anaerobic_Digestion!W24,IF(Anaerobic_Digestion!D10="Dry",Anaerobic_Digestion!AP24)))) -> FALSE | D40: =IF(UpDateAnaerobicDigestion!B25="Thermo-pressure",IF(Anaerobic_Digestion!D10="Wet",Anaerobic_Digestion!A25,IF(Anaerobic_Digestion!D10="Semy-Dry",Anaerobic_Digestion!W25,IF(Anaerobic_Digestion!D10="Dry",Anaerobic_Digestion!AP25)))) -> FALSE | E40: =IF(UpDateAnaerobicDigestion!B25="Thermo-pressure",IF(Anaerobic_Digestion!D10="Wet",Anaerobic_Digestion!A25,IF(Anaerobic_Digestion!D10="Semy-Dry",Anaerobic_Digestion!W25,IF(Anaerobic_Digestion!D10="Dry",Anaerobic_Digestion!AP25)))) -> FALSE
A41: Biogas production [Nm3/h] | B41: =+B40/Anaerobic_Digestion!E5 ->  | C41: =+C40/Anaerobic_Digestion!E5 -> 0 | D41: =+D40/Anaerobic_Digestion!E5 -> 0 | E41: =+E40/Anaerobic_Digestion!E5 -> 0
A42: Biogas production [Nm3/d] | B42: =+B40/365 ->  | C42: =+C40/365 -> 0 | D42: =+D40/365 -> 0 | E42: =+E40/365 -> 0
A45: Input power
A47: LHV- Biogas Lower Heating Value Biogas [MJ/m3] | B47: =IF(Anaerobic_Digestion!D10="Wet",Anaerobic_Digestion!C47,IF(Anaerobic_Digestion!D10="Semy-Dry",Anaerobic_Digestion!Y47,IF(Anaerobic_Digestion!D10="Dry",Anaerobic_Digestion!AR47))) ->  | C47: =+B47 -> 
A48: LHV Biogas [kWh/m3] | B48: =IF(Anaerobic_Digestion!D10="Wet",Anaerobic_Digestion!C48,IF(Anaerobic_Digestion!D10="Semy-Dry",Anaerobic_Digestion!Y48,IF(Anaerobic_Digestion!D10="Dry",Anaerobic_Digestion!AR48))) -> 
A49: Input power [kW] | B49: =IF(Anaerobic_Digestion!D10="Wet",Anaerobic_Digestion!C49,IF(Anaerobic_Digestion!D10="Semy-Dry",Anaerobic_Digestion!Y49,IF(Anaerobic_Digestion!D10="Dry",Anaerobic_Digestion!AR49))) ->  | C49: =+C48*C41 ->  | D49: =+D48*D41 ->  | E49: =+E48*E41 -> 
A52: CHP Electricity
A54: η ele of CHP | B54: =IF(Anaerobic_Digestion!D10="Wet",Anaerobic_Digestion!C56,IF(Anaerobic_Digestion!D10="Semy-Dry",Anaerobic_Digestion!Y56,IF(Anaerobic_Digestion!D10="Dry",Anaerobic_Digestion!AR56))) ->  | C54: =+B54 ->  | D54: =+C54 -> 
A55: Engine power [kWele] | B55: =IF(Anaerobic_Digestion!D10="Wet",Anaerobic_Digestion!C57,IF(Anaerobic_Digestion!D10="Semy-Dry",Anaerobic_Digestion!Y57,IF(Anaerobic_Digestion!D10="Dry",Anaerobic_Digestion!AR57))) ->  | C55: =+C54/100*C49 ->  | D55: =+D54/100*D49 -> 
A56: Electricity produced by the CHP engine [kWhele/y] | B56: =IF(Anaerobic_Digestion!D10="Wet",Anaerobic_Digestion!C58,IF(Anaerobic_Digestion!D10="Semy-Dry",Anaerobic_Digestion!Y58,IF(Anaerobic_Digestion!D10="Dry",Anaerobic_Digestion!AR58))) ->  | C56: =IF(Anaerobic_Digestion!D10="Wet",Anaerobic_Digestion!C58,IF(Anaerobic_Digestion!D10="Semy-Dry",Anaerobic_Digestion!Y58,IF(Anaerobic_Digestion!D10="Dry",Anaerobic_Digestion!AR58))) ->  | D56: =IF(Anaerobic_Digestion!D10="Wet",Anaerobic_Digestion!C58,IF(Anaerobic_Digestion!D10="Semy-Dry",Anaerobic_Digestion!Y58,IF(Anaerobic_Digestion!D10="Dry",Anaerobic_Digestion!AR58))) -> 
A57: Annual energy used by utilities [kWhele/y] | B57: =IF(Anaerobic_Digestion!D10="Wet",Anaerobic_Digestion!C59,IF(Anaerobic_Digestion!D10="Semy-Dry",Anaerobic_Digestion!Y59,IF(Anaerobic_Digestion!D10="Dry",Anaerobic_Digestion!AR59))) ->  | C57: =IF(Anaerobic_Digestion!D10="Wet",Anaerobic_Digestion!C59,IF(Anaerobic_Digestion!D10="Semy-Dry",Anaerobic_Digestion!Y59,IF(Anaerobic_Digestion!D10="Dry",Anaerobic_Digestion!AR59))) ->  | D57: =IF(Anaerobic_Digestion!D10="Wet",Anaerobic_Digestion!C59,IF(Anaerobic_Digestion!D10="Semy-Dry",Anaerobic_Digestion!Y59,IF(Anaerobic_Digestion!D10="Dry",Anaerobic_Digestion!AR59))) -> 
A58: Power for the grid [kWhele/y] | B58: =IF(Anaerobic_Digestion!D10="Wet",Anaerobic_Digestion!C60,IF(Anaerobic_Digestion!D10="Semy-Dry",Anaerobic_Digestion!Y60,IF(Anaerobic_Digestion!D10="Dry",Anaerobic_Digestion!AR60))) ->  | C58: =IF(Anaerobic_Digestion!D10="Wet",Anaerobic_Digestion!C60,IF(Anaerobic_Digestion!D10="Semy-Dry",Anaerobic_Digestion!Y60,IF(Anaerobic_Digestion!D10="Dry",Anaerobic_Digestion!AR60))) ->  | D58: =IF(Anaerobic_Digestion!D10="Wet",Anaerobic_Digestion!C60,IF(Anaerobic_Digestion!D10="Semy-Dry",Anaerobic_Digestion!Y60,IF(Anaerobic_Digestion!D10="Dry",Anaerobic_Digestion!AR60))) -> 
B59: Surplus | C59: =+C58-$B$58 ->  | D59: =+D58-$B$58 -> 
A62: CHP Thermal
A64: η thermal of CHP | B64: =IF(Anaerobic_Digestion!D10="Wet",Anaerobic_Digestion!C67,IF(Anaerobic_Digestion!D10="Semy-Dry",Anaerobic_Digestion!Y67,IF(Anaerobic_Digestion!D10="Dry",Anaerobic_Digestion!AR67))) ->  | C64: =+B64 ->  | D64: =+C64 ->  | E64: =+D64 -> 
A65: Engine thermal power [kWth] | B65: =IF(Anaerobic_Digestion!D10="Wet",Anaerobic_Digestion!C68,IF(Anaerobic_Digestion!D10="Semy-Dry",Anaerobic_Digestion!Y68,IF(Anaerobic_Digestion!D10="Dry",Anaerobic_Digestion!AR68))) ->  | C65: =IF(Anaerobic_Digestion!D10="Wet",Anaerobic_Digestion!C68,IF(Anaerobic_Digestion!D10="Semy-Dry",Anaerobic_Digestion!Y68,IF(Anaerobic_Digestion!D10="Dry",Anaerobic_Digestion!AR68))) ->  | D65: =IF(Anaerobic_Digestion!D10="Wet",Anaerobic_Digestion!C68,IF(Anaerobic_Digestion!D10="Semy-Dry",Anaerobic_Digestion!Y68,IF(Anaerobic_Digestion!D10="Dry",Anaerobic_Digestion!AR68))) ->  | E65: =IF(Anaerobic_Digestion!D10="Wet",Anaerobic_Digestion!C68,IF(Anaerobic_Digestion!D10="Semy-Dry",Anaerobic_Digestion!Y68,IF(Anaerobic_Digestion!D10="Dry",Anaerobic_Digestion!AR68))) -> 
A66: Thermal energy produced by the CHP engine [kWhth/y] | B66: =IF(Anaerobic_Digestion!D10="Wet",Anaerobic_Digestion!C69,IF(Anaerobic_Digestion!D10="Semy-Dry",Anaerobic_Digestion!Y69,IF(Anaerobic_Digestion!D10="Dry",Anaerobic_Digestion!AR69))) ->  | C66: =IF(Anaerobic_Digestion!D10="Wet",Anaerobic_Digestion!C69,IF(Anaerobic_Digestion!D10="Semy-Dry",Anaerobic_Digestion!Y69,IF(Anaerobic_Digestion!D10="Dry",Anaerobic_Digestion!AR69))) ->  | D66: =IF(Anaerobic_Digestion!D10="Wet",Anaerobic_Digestion!C69,IF(Anaerobic_Digestion!D10="Semy-Dry",Anaerobic_Digestion!Y69,IF(Anaerobic_Digestion!D10="Dry",Anaerobic_Digestion!AR69))) ->  | E66: =IF(Anaerobic_Digestion!D10="Wet",Anaerobic_Digestion!C69,IF(Anaerobic_Digestion!D10="Semy-Dry",Anaerobic_Digestion!Y69,IF(Anaerobic_Digestion!D10="Dry",Anaerobic_Digestion!AR69))) -> 
A67: Annual energy used by utilities [kWhth/y] | B67: =IF(Anaerobic_Digestion!D10="Wet",Anaerobic_Digestion!C70,IF(Anaerobic_Digestion!D10="Semy-Dry",Anaerobic_Digestion!Y70,IF(Anaerobic_Digestion!D10="Dry",Anaerobic_Digestion!AR70))) ->  | C67: =IF(Anaerobic_Digestion!D10="Wet",Anaerobic_Digestion!C70,IF(Anaerobic_Digestion!D10="Semy-Dry",Anaerobic_Digestion!Y70,IF(Anaerobic_Digestion!D10="Dry",Anaerobic_Digestion!AR70))) ->  | D67: =IF(Anaerobic_Digestion!D10="Wet",Anaerobic_Digestion!C70,IF(Anaerobic_Digestion!D10="Semy-Dry",Anaerobic_Digestion!Y70,IF(Anaerobic_Digestion!D10="Dry",Anaerobic_Digestion!AR70))) ->  | E67: =IF(Anaerobic_Digestion!D10="Wet",Anaerobic_Digestion!C70,IF(Anaerobic_Digestion!D10="Semy-Dry",Anaerobic_Digestion!Y70,IF(Anaerobic_Digestion!D10="Dry",Anaerobic_Digestion!AR70))) -> 
A68: Energy available for heating [kWhth/y] | B68: =IF(Anaerobic_Digestion!D10="Wet",Anaerobic_Digestion!C71,IF(Anaerobic_Digestion!D10="Semy-Dry",Anaerobic_Digestion!Y71,IF(Anaerobic_Digestion!D10="Dry",Anaerobic_Digestion!AR71))) ->  | C68: =IF(Anaerobic_Digestion!D10="Wet",Anaerobic_Digestion!C71,IF(Anaerobic_Digestion!D10="Semy-Dry",Anaerobic_Digestion!Y71,IF(Anaerobic_Digestion!D10="Dry",Anaerobic_Digestion!AR71))) ->  | D68: =IF(Anaerobic_Digestion!D10="Wet",Anaerobic_Digestion!C71,IF(Anaerobic_Digestion!D10="Semy-Dry",Anaerobic_Digestion!Y71,IF(Anaerobic_Digestion!D10="Dry",Anaerobic_Digestion!AR71))) ->  | E68: =IF(Anaerobic_Digestion!D10="Wet",Anaerobic_Digestion!C71,IF(Anaerobic_Digestion!D10="Semy-Dry",Anaerobic_Digestion!Y71,IF(Anaerobic_Digestion!D10="Dry",Anaerobic_Digestion!AR71))) -> 
B69: Surplus | C69: =+C68-$B$68 ->  | D69: =+D68-$B$68 ->  | E69: =+E68-$B$68 -> 
A72: verification
A74: electricity demand [kWh/y] | C74: =+C59-C37 ->  | D74: =+D59-D37 -> 
A75: Heat demand [kWh/y] | C75: =+C69-C38 ->  | D75: =-D69-D38 ->  | E75: FOR HT NOT CONSIDERED HEAT RECOVERY OF EXHAUST GASES
D76: =+E69-E38 ->  | E76: FOR LT NOT CONSIDERED HEAT RECOVERY OF EXHAUST GASES
A80: Total energy (OFMSW+SEWAGE)

Sheet Feedstock_Database
F3: Tons [t/y] | G3: Total Solid (%) | H3: C feedstock (% solid) | I3: H feedstock (% solid) | J3: O feedstock (% solid) | K3: N feedstock (% solid) | L3: Ash feedstock (% solid) | M3: VM feedstock (% solid) | N3: FC feedstock (% solid)
E5: Primary Sludge | F5: 0 | G5: 0 | H5: 0 | I5: 0 | J5: 0 | K5: 0 | L5: 0 | M5: 0 | N5: 0
E6: default | G6: 7.5 | H6: 33.01 | I6: 5.56 | J6: 33.17 | K6: 2 | L6: 28.34 | M6: 67.58 | N6: 3.89
E7: Secondary Sludge | F7: 0 | G7: 0 | H7: 0 | I7: 0 | J7: 0 | K7: 0 | L7: 0 | M7: 0 | N7: 0
E8: default | G8: 7.5 | H8: 33.01 | I8: 5.56 | J8: 33.17 | K8: 2 | L8: 28.34 | M8: 67.58 | N8: 3.89
E9: Organic fraction MSW | F9: 0 | G9: 0 | H9: 0 | I9: 0 | J9: 0 | K9: 0 | L9: 0 | M9: 0 | N9: 0
E10: default | G10: 45 | H10: 44.19 | I10: 5.79 | J10: 40.92 | K10: 2.6 | L10: 7.44 | M10: 75.11 | N10: 16.32
E11: Digestate | F11: 0 | G11: 0 | H11: 0 | I11: 0 | J11: 0 | K11: 0 | L11: 0 | M11: 0 | N11: 0
E12: default | G12: 20 | H12: 40.39 | I12: 5.65 | J12: 32.99 | K12: 1.2 | L12: 26.2 | M12: 55.9 | N12: 8.2
E13: Food industry waste | F13: 0 | G13: 0 | H13: 0 | I13: 0 | J13: 0 | K13: 0 | L13: 0 | M13: 0 | N13: 0
E14: default | G14: 64.13 | H14: 48.36 | I14: 6.58 | J14: 42.39 | K14: 1.35 | L14: 4.82 | M14: 78.05 | N14: 21.95
E15: Animal blood | F15: 0 | G15: 0 | H15: 0 | I15: 0 | J15: 0 | K15: 0 | L15: 0 | M15: 0 | N15: 0
E16: default | G16: 85 | H16: 51.22 | I16: 7.81 | J16: 25.81 | K16: 14 | L16: 1.4 | M16: 95.13 | N16: 4.87
E17: Animal fat | F17: 0 | G17: 0 | H17: 0 | I17: 0 | J17: 0 | K17: 0 | L17: 0 | M17: 0 | N17: 0
E18: default | G18: 98 | H18: 76.19 | I18: 12.55 | J18: 0 | K18: 0.12 | L18: 2.5 | M18: 70 | N18: 3
D19: User choice | E19: 0 | F19: 0 | G19: 0 | H19: 0 | I19: 0 | J19: 0 | K19: 0 | L19: 0 | M19: 0 | N19: 0
E21: Animal feed
E22: default
E23: Cellulosa
E24: default
E25: Coal/lignite
E26: default
E27: Animal waste
E28: default
E29: Fructose
E30: default
E31: Glucose
E32: default
E33: Lactose
E34: default
D35: Saccarosio | E35: Sacrose
E36: default
E37: Lignin
E38: default
E39: Paper
E40: default
D41: pianta | E41: Plant
E42: default
D43: seta | E43: Silk
E44: default
E45: Sludge
E46: default
D47: Amido | E47: Starch
E48: default
D49: Paglia/pagliuzza | E49: Straw
E50: default
E51: Wood
E52: default
D53: da cantiere | E53: Yard waste
E54: default
E55: Algae
E56: default
E57: Municipal Solid Waste
E58: default
E59: Agricolture residues
E60: default

Sheet AD+Composting
A1: DATA
A2: CALCULATED | C2: DIGESTATE [t a.r.] | D2: =IF(Feedstock_Database!F11=0,IF(Anaerobic_Digestion!D10="Wet",Anaerobic_Digestion!F34,IF(Anaerobic_Digestion!D10="Semy-Dry",Anaerobic_Digestion!AB34,IF(Anaerobic_Digestion!D10="Dry",Anaerobic_Digestion!AU34,))),Feedstock_Database!F11) -> 
C3: CO-FORMULANT [t a.r.] | D3: =1/2*(D2) -> 
B8: Properties of feedstock | D8: DIGESTATE | E8: COFORMULANT
B9: Solidsinitial = initial feedstock concentration (%, solid) | C9: =+(C17+D17)/(D2+D3)*100 ->  | D9: =+IF(Feedstock_Database!G11=0,IF(AND(Anaerobic_Digestion!D10="Wet"),Anaerobic_Digestion!F41,IF(AND(Anaerobic_Digestion!D10="Semy-Dry"),Anaerobic_Digestion!AB41,IF(AND(Anaerobic_Digestion!D10="Dry"),Anaerobic_Digestion!AU41,))),Feedstock_Database!G11) ->  | E9: 55
B10: Cfeed = carbon content of the feedstock (%, db) | C10: =+((((D10/100*C17)+(E10/100*D17)+(F10/100*E17)))/(C17+D17+E17))*100 ->  | D10: =+IF(Feedstock_Database!H11=0,40.39,Feedstock_Database!H11) -> 40.39 | E10: 47.8
B11: Hfeed = hydrogen content of the feedstock (%, db) | C11: =+((D11/100*C17)+(E11/100*D17)+(F11/100*E17))/(C17+D17+E17)*100 ->  | D11: =+IF(Feedstock_Database!I9=0,5.65,Feedstock_Database!I9) -> 5.65 | E11: 6
B12: Ofeed = oxygen content of the feedstock (%, db) | C12: =+((D12/100*C17)+(E12/100*D17)+(F12/100*E17))/(C17+D17+E17)*100 ->  | D12: =+IF(Feedstock_Database!J11=0,32.99,Feedstock_Database!J11) -> 32.99 | E12: 38
B13: Nfeed = nitrogen content of the feedstock (%, db) | C13: =+((D13/100*C17)+(E13/100*D17)+(F13/100*E17))/(C17+D17+E17)*100 ->  | D13: =+IF(Feedstock_Database!K11=0,1.2,Feedstock_Database!K11) -> 1.2 | E13: 3.4
C16: DIGESTATE | D16: COFORMULANT
B17: Solids Initial [t dry] | C17: =+D9/100*D2 ->  | D17: =+E9/100*D3 -> 
B18: Water Initial [t dry] | C18: =+D2-C17 ->  | D18: =+D3-D17 -> 
B21: 1 | C21: The chemical formula, based on a single atom of carbon
C23: Atomic wight C [kg/kmol] | D23: 12
C24: Atomic wight H [kg/kmol] | D24: 1
C25: Atomic wight O [kg/kmol] | D25: 16
C26: Atomic wight N [kg/kmol] | D26: 14
C27: C [kmol/kmol C] | D27: 1
C28: H [kmol/kmol C] | D28: =+(C11*D23)/(C10*D24) -> 
C29: O [kmol/kmol C] | D29: =+(C12*D23)/(C10*D25) -> 
C30: N [kmol/kmol C] | D30: =+(C13*D23)/(C10*D26) -> 
C32: molecular weight [kg/kmol] | D32: =+D23*D27+D24*D28+D25*D29+D26*D30 -> 
B34: 2 | C34: Stoichiometric Oxygen Requirements
B36: * | C36: % weight of the organic substance that becomes compost | D36: 40
C37: molecular weight of compost [kg/kmol] | D37: 406
C38: kmol compost | D38: =+(D36/100)*((C17+D17)/D37) -> 
C39: kmol dry biomass | D39: =+(C17+D17)/D32 -> 
C40: n [kmol compost/kmol dry biomass] | D40: =+D38/D39 -> 
B41: [kmol/kmol dry biomass] | C41: α | D41: =+(12*D40+2*D42+D43-D29)/2 -> 
C42: β | D42: =+D27-15*D40 -> 
C43: γ | D43: =+(D28-20*D40-3*D44)/2 -> 
C44: δ | D44: =+D30-D40 -> 
C45: Stoichiometric Oxygen Requirements [kgO2/kg dry biomass] | D45: =+D41*32*D39/(C17+D17) -> 
C46: % O2 in dry air (weight) | D46: 23.2
C47: % N2 in dry air | D47: =100-D46 -> 76.8
C48: dry air density[kg/m3] | D48: 1.293
B49: Air requirements | C49: [m3/kg dry] | D49: =+D45/(D46/100*D48) -> 
C50: [kg dry air/kg dry biomass] | D50: =+D49*D48 -> 
B52: 3 | C52: Mass Balance
C54: Reagents [t / t tq] | D54: Products [t / t tq]
B55: total dry matter | C55: =+C17+D17 -> 
B56: O 2 | C56: =+C55*D45 -> 
B57: C O 2 | D57: =+D42*44*D39 -> 
B58: N H 3 | D58: =+D44*17*D39 -> 
B59: H 2 O | D59: =+D43*18*D39 -> 
B60: Compost Product | D60: =+D40*D39*D37 -> 
B61: CHECK | C61: =+SUM(C55:C56) ->  | D61: =+SUM(D57:D60) ->  | E61: =+C61-D61 -> 
B64: 4 | C64: Moisture
B66: * | C66: final compost moisture % | D66: 45
B67: * | C67: inlet air temperature [°C] | D67: 20
C68: %inlet relative moisture | D68: 75
C69: pressure [mm Hg] | D69: 760
B70: * | C70: output air temperature [°C] | D70: 45
C71: %output relative moisture | D71: 100
C72: pressure [mm Hg] | D72: 760
C73: water out of the process (into compost) [t H20] | D73: =+(D60)*(D66/100)/(1-D66/100) -> 
B74: Water to be removed | C74: [t H2O/t ar] | D74: =+C18+D18+D59-D73 -> 
C75: [t H2O/t dry matter] | D75: =+D74/(C17+D17) -> 
C77: saturated inlet steam pressure [mmHg] | D77: =10^(-2238/(D67+273)+8.896) -> 18.10400847
C78: inlet steam pressure [mmHg] | D78: =+D77*D68/100 -> 13.57800635
C79: AIR Molecular weight | D79: =0.232*18+0.768*28 -> 25.68
C80: Amount of H20 inlet ωi [t H2O/t dry matter] | D80: =+(18*D78)/(D79*(D72-D78)) -> 0.01275055431
C81: Amount of H20 inlet referred to dry matter [t H2O/t dry] | D81: =+D80*D50 -> 
C82: saturated output steam pressure [mmHg] | D82: =10^(-2238/(D70+273)+8.896) -> 72.15462118
C83: PM gas (N2+CO2) [kg/kmol] | D83: =+((D57/(C17+D17))+0.768*D50)/(D57/(C17+D17)/14+0.768*D50/28) -> 
C84: Amount of H2O output ωu* [tH2O/t gas] | D84: =18*D82/(D83*(D72-D82)) -> 
C85: Amount of H20 output referred to dry matter ωu [t H2O/t dry] | D85: =+D84*(0.768*D50+D57/(C17+D17)) -> 
C86: Amount of H20 removed with stoichiometric air [t H2O/t dry] | D86: =+D85-D81 -> 
C87: Quantity of H20 to be removed [t H2O/t dry] | D87: =+D75-D86 ->  | E87: CHECK | F87: difference to be removed and removed [t H20/t dry] | G87: =+D75-D86 -> 
C88: Further air to be insufflated [t H2O/t dry] | D88: =+IF(G87<=0,0,G87) -> 
C89: Amount of H20 inlet referred to dry air [t H2O/t dry] | D89: =+IF(D88=0,0,D80) -> 
C90: Amount of H20 output referred to dry air [t H2O/t dry] | D90: =+IF(D88=0,0,(18*D82)/(D79*(D72-D82))) -> 
C91: Amount of H20 removed with added air [t H2O/t dry] | D91: =+IF(D88=0,0,D90-D89) -> 
C92: added air [t air dry/t dry] | D92: =+IF(D88=0,0,D88/D91) -> 
B93: Total air used | C93: [m3/kg dry] | D93: =+IF(D88=0,D49,D94/D48) -> 
C94: [kg dry air/kg dry biomass] | D94: =+D92+D50 -> 
B97: 5 | C97: Temperature and energy
B99: * | C99: final compost temperature [°C] | D99: 30
B100: * | C100: inlet organic matter temperature [°C] | D100: 25
C101: energy released during the process [kJ/mol O2] | D101: 24.89
C102: Cs H20 [kJ/kg k] | D102: 4.186
C103: latent vaporization heat a 20°C λ [kcal/kg H20] | D103: 583
C104: Cs steam [kJ/kg k] | D104: 1.863
C105: Cs dry air [kJ/kg k] | D105: 1
C106: mass of H20 remaining in the compost [t H2O/t dry] | D106: =+D73/(C17+D17) -> 
C107: E1 energy to heat H2O [kJ/kg dry] | D107: =+D106*D102*(D99-D100) -> 
C108: H2O mass that is evaporated and then heated [t H2O/t dry] | D108: =+((C18+D18)-D73)/(C17+D17) -> 
C109: E2 energy to evaporate H20 [kJ/kg dry] | D109: =+D108*D102*D103 -> 
C110: E3 energy to heat steam [kJ/kg dry] | D110: =+D108*D104*(D99-D100) -> 
C111: mass of H20 that inlets with dry air [t H2O/t dry] | D111: =+D94*D80 -> 
C112: E4 energy to heat steam [kJ/kg dry] | D112: =+D111*D104*(D99-D100) -> 
C113: mass of dry air [t air/t dry] | D113: =+D94 -> 
C114: E5 energy to heat dry air [kJ/kg dry] | D114: =+D113*D105*(D99-D100) -> 
C115: Energy required by the process [kJ/kg dry] | D115: =+D107+D109+D110+D112+D114 -> 
C116: Energy available from the process [kJ/kg dry] | D116: =+D101*(D46/100*D50)*1000/32 ->  | E116: Il prof qua prendeva l'o2 stechiometrico. Io ho preso tutta l'aria
D117: CHECK
D118: Eavai>Erequi?
D119: =+D116-D115 ->  | E119: Modificare %compost (da 20 a 40),u o T
B201: Compost mass [t/year] | F201: 926.1052835
B202: Final compost moisture (%) | F202: 45
B203: Final compost temperature [°C] | F203: 30
B204: Addition of coformulant [t ar/year] | F204: 2013.272356

Sheet AD+HTC
A1: DATA
A2: CALCULATED
C3: DIGESTATE [t a.r.] | D3: =IF(Feedstock_Database!F11=0,IF(Anaerobic_Digestion!D10="Wet",Anaerobic_Digestion!F34,IF(Anaerobic_Digestion!D10="Semy-Dry",Anaerobic_Digestion!AB34,IF(Anaerobic_Digestion!D10="Dry",Anaerobic_Digestion!AU34,))),Feedstock_Database!F11) -> 
B5: SolidsInitial [t dry] | D5: =+(D9/100)*D3 -> 
B8: Properties of feedstock | D8: DIGESTATE
B9: Solidsinitial = initial feedstock concentration (%, solid) | C9: =+((D5)/(D3))*100 ->  | D9: =+IF(AND(Anaerobic_Digestion!D10="Wet"),Anaerobic_Digestion!F41,IF(AND(Anaerobic_Digestion!D10="Semy-Dry"),Anaerobic_Digestion!AB41,IF(AND(Anaerobic_Digestion!D10="Dry"),Anaerobic_Digestion!AU41,0))) -> 
B10: Cfeed = carbon content of the feedstock (%, db) | C10: =((D5*((D10)/100))/(D5))*100 ->  | D10: =+IF(Feedstock_Database!H11=0,40.39,Feedstock_Database!H11) -> 40.39
B11: Hfeed = hydrogen content of the feedstock (%, db) | C11: =((D5*((D11)/100))/(D5)*100) ->  | D11: =+IF(Feedstock_Database!I9=0,5.65,Feedstock_Database!I9) -> 5.65
B12: Ofeed = oxygen content of the feedstock (%, db) | C12: =((D5*((D12)/100))/(D5))*100 ->  | D12: =+IF(Feedstock_Database!J11=0,32.99,Feedstock_Database!J11) -> 32.99
B13: Ashfeed = ash content of the feedstock (%, db) | C13: =((D5*((D13)/100))/(D5))*100 ->  | D13: =+IF(Feedstock_Database!L11=0,26.2,Feedstock_Database!L11) -> 26.2
B14: VMfeed = volatile matter content of the feedstock (%,db) | C14: =((D5*((D14)/100)))/(D5)*100 ->  | D14: =+IF(Feedstock_Database!M11=0,55.9,Feedstock_Database!M11) -> 55.9
B15: FCfeed = fixed carbon content of the feedstock (%, db) | C15: =((D5*((D15)/100))/(D5))*100 ->  | D15: =+IF(Feedstock_Database!N11=0,8.2,Feedstock_Database!N11) -> 8.2
B21: Process parameters | D21: Recommended
B22: Solidsinitial = initial feedstock concentration (%, solid) | C22: =+C9 ->  | D22: 1-47 (18)
B23: Tfinal = final reaction temperature (°C) | C23: 240 | D23: 180-320 (240)
B24: t = reaction time (min) | C24: 920 | D24: 5-7200 (920)
B25: HT = heating time (min) | C25: 81 | D25: 0.4-310 (81)
B26: HT/t = heating time to reaction time ratio | C26: =+C25/C24 -> 0.08804347826 | D26: 0.01-4 (0.5) | E26: HT/t
B27: HR = heating rate (°C/min) | C27: =+(C23-25)/C25 -> 2.654320988 | D27: 0.6-580 (28) | E27: (T-25)/HT
B28: V = volume (mL) | C28: 2870 | D28: 5-25000 (2870)
B29: VR = volume ratio | C29: 0.4 | D29: 0.04-0.98 (0.40)
A33: 1 | B33: HHV Feedstock
B35: LHV Feedstock [kcal/kg dry] | C35: =80.8*C10+345.56*C11-(345.56/8)*C12 -> 
B36: LHV Feedstock [kJ/g dry] | C36: =+C35*4.186/10^3 -> 
A39: 2 | B39: MLR Model
B41: Solid Yield (%, db) | C41: =-1.12*C13-1.22*C14-1.58*C15+1.63*C10-4.89*C11-0.73*C12+0.43*C22-0.21*C23+9.7*C26+1.36*C27-22.19*C29+212.76 -> 
B42: Hydrochar Carbon Content (%C, db) | C42: =-0.94*C13-0.75*C14+0.55*C15+0.4*C10+4.18*C11+0.3*C12+0.0005*C24-5.65*C26-0.36*C27-0.00009*C28-12.68 -> 
B43: Energy content (kJ/g, db) | C43: =-0.45*C13-0.43*C14+0.41*C15+2.35*C11-0.16*C23+0.0005*C24+0.52*C25-2.11*C26+25.25*C27-12.73*C29-22.74 -> 
B44: Norm. C in solid (g C/g dry feedstock) | C44: =-0.0058*C13-0.0072*C14-0.0061*C15+0.0181*C10-0.0331*C11-0.0031*C12+0.0027*C22-0.0013*C23-0.0005*C25+0.0133*C26-0.1447*C29+0.922 -> 
B45: Norm. C in liquid (g C/g dry feedstock) | C45: =0.0049*C13+0.0137*C10-0.0469*C11+0.0043*C12-0.0033*C22+0.0006*C23-7.39*(10^-6)*C24-0.0007*C25-0.0002*C27+0.2209*C29-0.5406 -> 
B46: Norm. C in gas (g C/g dry feedstock) | C46: =0.0005*C14+0.003*C15-0.0012*C10+0.0058*C11+0.0006*C12+0.0002*C23+9.53*(10^-7)*C24-0.0082*C26-0.00006*C27-0.022*C29-0.0995 -> 
A50: 3 | B50: Hydrochar Carbon content and Solid Yield Calculate
B52: Solid Yield (t dry) | C52: =+(C41/100)*(D5) -> 
B53: Hydrochar Carbon Content (t) | C53: =+C44*(D5+D6) -> 
B54: Hydrochar Carbon Content (%C, db) | C54: =+C53/C52*100 -> 
A58: 4 | B58: Input power
B60: Energy content (kJ/g, db) | C60: =+C43 -> 
B61: Energy content (MJ/t, db) | C61: =+C60*10^3 -> 
B62: Energy content (kWh/t, db) | C62: =+C61*1000/3600 -> 
B63: Year operating hours | C63: 8000
B64: Hydrochar production (t dry/h) | C64: =+C52/C63 -> 
B65: Input power (kW) | C65: =+C62*C64 -> 
A208: Hydrochar mass [t/year] | G208: 891.353766 | J208: 208
A209: Hydrochar carbon content (%C solid) | G209: 57.79552027
A210: LHV - Hydrochar Lower Heating Value [MJ/t] | G210: 24325.3332
A211: Input Power [kW] | G211: 752.8637971

Sheet AD+Gasification
A1: DATA
A2: CALCULATED
B3: DIGESTATE [t a.r.] | C3: =IF(Feedstock_Database!F11=0,IF(Anaerobic_Digestion!D10="Wet",Anaerobic_Digestion!F34,IF(Anaerobic_Digestion!D10="Semy-Dry",Anaerobic_Digestion!AB34,IF(Anaerobic_Digestion!D10="Dry",Anaerobic_Digestion!AU34,))),Feedstock_Database!F11) -> 
B6: Properties of feedstock | D6: DIGESTATE
B7: Solidsinitial = initial feedstock concentration (%, solid) | C7: =(C14)/(C3)*100 ->  | D7: =+IF(Feedstock_Database!G11=0,IF(AND(Anaerobic_Digestion!D10="Wet"),Anaerobic_Digestion!F41,IF(AND(Anaerobic_Digestion!D10="Semy-Dry"),Anaerobic_Digestion!AB41,IF(AND(Anaerobic_Digestion!D10="Dry"),Anaerobic_Digestion!AU41,))),Feedstock_Database!G11) -> 
B8: Cfeed = carbon content of the feedstock (%, db) | C8: =(C14*((D8)/100)/(C14))*100 ->  | D8: =+IF(Feedstock_Database!H11=0,40.39,Feedstock_Database!H11) -> 40.39
B9: Hfeed = hydrogen content of the feedstock (%, db) | C9: =(C14*((D9)/100))/(C14)*100 ->  | D9: =+IF(Feedstock_Database!I9=0,5.65,Feedstock_Database!I9) -> 5.65
B10: Ofeed = oxygen content of the feedstock (%, db) | C10: =((C14*((D10)/100))/(C14))*100 ->  | D10: =+IF(Feedstock_Database!J11=0,32.99,Feedstock_Database!J11) -> 32.99
B11: Nfeed = nitrogen content of the feedstock (%, db) | C11: =((C14*((D11)/100))/(C14))*100 ->  | D11: =+IF(Feedstock_Database!K11=0,1.2,Feedstock_Database!K11) -> 1.2
C13: SolidsInitial [t dry]
B14: DIGESTATE [t] | C14: =+D7/100*C3 -> 
B19: Atomic wight C [kg/kmol] | C19: 12
B20: Atomic wight H [kg/kmol] | C20: 1
B21: Atomic wight O [kg/kmol] | C21: 16
B22: Atomic wight N [kg/kmol] | C22: 14
A25: 1 | B25: The chemical formula, based on a single atom of carbon
B27: C [kmol/kmol C] | C27: 1
B28: H [kmol/kmol C] | C28: =+(C9*C19)/(C8*C20) -> 
B29: O [kmol/kmol C] | C29: =+(C10*C19)/(C8*C21) -> 
B30: N [kmol/kmol C] | C30: =+(C11*C19)/(C8*C22) -> 
B32: molecular weight [kg/kmol] | C32: =+C19*C27+C20*C28+C21*C29+C30*C22 -> 
A34: 2 | B34: Calculation of w
B36: Moisture content % | C36: =100-C7 ->  | D36: *
B37: Moisture content per kmol of feedstock | C37: =+C36/100 ->  | D37: *
B38: Moisture content [t H2O/t dry matter] | C38: 0.15 | D38: 15-20
B39: w [kmol H2O/kmol dry matter] | C39: =+(C32*C38)/(18*(1-C38)) -> 
A42: 3 | B42: Calculation of m
B44: AIR stoichiometric [kmol air/kmol dry matter] | C44: =+C8/100*12.71+C9/100*38.08+C11/100*1.27-C10/100*4.76 -> 
B45: O2 stoichiometric [kmol O2/kmol dry matter] | C45: =+C44*0.21 -> 
B46: ER | C46: 0.25
B47: m [kmol O2/kmol dry matter] | C47: =+C46*C45 -> 
A50: 4 | B50: Calculation of k1 and k2
B52: ln(k1) | C52: =7082.848/C58-6.567*LN(C58)+((7.466*10^-3)/2)*C58+((-2.164*10^-6)/6)*(C58^2)+((0.701*10^-5)/(2*(C58^2)))+32.541 -> -3.09508672
B53: k1 | C53: =+EXP(C52) -> 0.04527108638
B55: ln(k2) | C55: =5872.46/C58+1.86*LN(C58)+(-2.7*10^-4)*C58-58200/(C58^2)-18.014 -> 0.09762162742
B56: k2 | C56: =+EXP(C55) -> 1.102545533
B58: T [K] | C58: =800+273.15 -> 1073.15
A60: 5 | B60: Newton-Raphson
B62: k1 | C62: =+C53 -> 0.04527108638
B63: k2 | C63: =+C56 -> 1.102545533
B64: w | C64: =+C39 -> 
B65: m | C65: =+C47 -> 
B66: a | C66: =+C27 -> 1
B67: b | C67: =+C28 -> 
B68: c | C68: =+C29 -> 
B69: d | C69: =+C30 -> 
A71: CO | B71: x0(1) | C71: 1
A72: CO2 | B72: x0(2) | C72: 1
A73: H3 | B73: x0(3) | C73: 1
A74: H2O | B74: x0(4) | C74: 1
A75: CH4 | B75: x0(5) | C75: 1
A76: N2 | B76: x0(6) | C76: 1
B79: F1 | C79: =+C87+C88+C91-C27 -> 7.450580597e-08 | D79: = | E79: 0
B80: F2 | C80: =2*C89+2*C90+4*C91-C28-2*C39 ->  | D80: = | E80: 0
B81: F3 | C81: =+C87+2*C88+C90-C29-C39-2*C47 ->  | D81: = | E81: 0
B82: F4 | C82: =2*C92-C30-2*3.76*C47 ->  | D82: = | E82: 0
B83: F5 | C83: =+C88*C89*C62-C87*C90 -> -3.630579587e-10 | D83: = | E83: 0
B84: F6 | C84: =+(C89^2)*C63-C91*(SUM(C87:C92)) -> -2.353366573e-07 | D84: = | E84: 0
A87: CO | B87: x1 [kmol/kmol dry matter] | C87: 0.2620486617 | D87: % | E87: =+C87/$C$93*100 -> 9.040543181
A88: CO2 | B88: x2 [kmol/kmol dry matter] | C88: 0.5629616976 | D88: % | E88: 19.42188715
A89: H2 | B89: x3 [kmol/kmol dry matter] | C89: 0.6782684326 | D89: % | E89: 23.39990982
A90: H2O | B90: x4 [kmol/kmol dry matter] | C90: 0.06596589088 | D90: % | E90: 2.275789089
A91: CH4 | B91: x5 [kmol/kmol dry matter] | C91: 0.1749897152 | D91: % | E91: 6.037054593
A92: N2 | B92: x6 [kmol/kmol dry matter] | C92: 1.154359818 | D92: % | E92: 39.82481616
B93: tot | C93: =+SUM(C87:C92) -> 2.898594216 | E93: =+SUM(E87:E92) -> 100
B96: kmol dry matter | C96: =+((C14)*1000)/C32 -> 
A98: CO | B98: x1 [kmol] | C98: =+C87*$C$96 -> 
A99: CO2 | B99: x2 [kmol]
A100: H2 | B100: x3 [kmol]
A101: H2O | B101: x4 [kmol]
A102: CH4 | B102: x5 [kmol]
A103: N2 | B103: x6 [kmol]
B104: tot | C104: =+SUM(C98:C103) -> 
B105: tot [Nm3] | C105: =+C104*22.4 -> 
A109: 6 | B109: Process efficiency
B110: Heat of combustion H2 [MJ/kmol] | C110: 241.8
B111: Heat of combustion CO [MJ/kmol] | C111: 283
B112: Heat of combustion CH4 [MJ/kmol] | C112: 802.6
B114: LHV Syngas [MJ/kmol] | C114: =+E87/100*C111+C110*E89/100+E91/100*C112 -> 130.6191193
B115: LHV Syngas [MJ/Nm3] | C115: =+C114/22.4 -> 5.831210684
B116: Syngas [MJ/year] | C116: =+C114*C104 -> 
B118: LHV Feedstock [MJ/kmol] | C118: =((80.8*C8+345.56*C9-(345.56/8)*C10)*4.186)*C32*10^-3 -> 
B119: Feedstock [MJ/year] | C119: =+C118*C96 -> 
B121: η cold (%) | C121: =+C116/C119*100 -> 
A124: 7 | B124: Input Power
B126: LHV Syngas [MJ/Nm3] | C126: =+C115 -> 5.831210684
B127: LHV Syngas [kWh/Nm3] | C127: =+C126*1000/3600 -> 1.619780746
B128: Year operating hours | C128: 8000
B129: Input power [kW] | C129: =+(C105/C128)*C127 -> 
A132: 8 | B132: CHP Electricity
B134: η ele | C134: 30
B135: Motor power [kWele] | C135: =+C134/100*C129 -> 
B136: Electricity produced by the CHP engine [kWhele/y] | C136: =+C135*C128 -> 
B137: Annual energy used by utilities [kWhele/y] | C137: =0.1*C136 ->  | D137: 0.1
B138: Power for the grid [kWhele/y] | C138: =+C136-C137 -> 
A143: 9 | B143: CHP Thermal
B145: η thermal | C145: 40
B146: Engine thermal power [kWth] | C146: =+C145*C129/100 -> 
B147: Thermal energy produced by the CHP engine [kWhth/y] | C147: =+C146*C128 -> 
B148: Annual energy used by utilities [kWhth/y] | C148: =0.05*C147 ->  | D148: 0.05
B149: Energy available for heating [kWhth/y] | C149: =C147-C148 -> 
A223: Engine power [kWele] | G223: NA | J223: 223
A224: Power for the grid [kWhele/y] | G224: NA
A225: Energy available for heating [kWhth/y] | G225: NA
A226: Syngas production [Nm3/year] | G226: NA
A227: LHV - Syngas Lower Heating Value [MJ/Nm3] | G227: NA
A228: η cold (%) | G228: NA

Sheet Foglio2 (hidden)

Sheet Composting (hidden)
A1: DATA | B1: MODELLO STECHIOMETRICO
A2: CALCULATED | C2: OFMSW [t a.r.] | D2: =+Input!C2 -> 0
A3: USER | C3: CO-FORMULANT [t a.r.] | D3: =1/2*(D2+D4) -> 0
C4: SEWAGE SLUDGE [t a.r.] | D4: =+Input!C3 -> 0
B8: Properties of feedstock | D8: OFMSW | E8: COFORMULANT | F8: SEWAGE SLUDGE
A9: * | B9: Solidsinitial = initial feedstock concentration (%, solid) | C9: =+(C17+D17+E17)/(D2+D3+D4)*100 ->  | D9: =+Input!Q5 -> 0 | E9: 55 | F9: =+Input!Q7 -> 0
A10: * | B10: Cfeed = carbon content of the feedstock (%, db) | C10: =+((((D10/100*C17)+(E10/100*D17)+(F10/100*E17)))/(C17+D17+E17))*100 ->  | D10: =+Input!R5 -> 0 | E10: 47.8 | F10: =+Input!R7 -> 0
A11: * | B11: Hfeed = hydrogen content of the feedstock (%, db) | C11: =+((D11/100*C17)+(E11/100*D17)+(F11/100*E17))/(C17+D17+E17)*100 ->  | D11: =+Input!S5 -> 0 | E11: 6 | F11: =+Input!S7 -> 0
A12: * | B12: Ofeed = oxygen content of the feedstock (%, db) | C12: =+((D12/100*C17)+(E12/100*D17)+(F12/100*E17))/(C17+D17+E17)*100 ->  | D12: =+Input!T5 -> 0 | E12: 38 | F12: =+Input!T7 -> 0
A13: * | B13: Nfeed = nitrogen content of the feedstock (%, db) | C13: =+((D13/100*C17)+(E13/100*D17)+(F13/100*E17))/(C17+D17+E17)*100 ->  | D13: =+Input!U5 -> 0 | E13: 3.4 | F13: =+Input!U7 -> 0
C16: OFMSW | D16: COFORMULANT | E16: sewage-sludge
B17: Solids Initial [t dry] | C17: =+D9/100*D2 -> 0 | D17: =+E9/100*D3 -> 0 | E17: =+F9/100*D4 -> 0
B18: Water Initial [t dry] | C18: =+D2-C17 -> 0 | D18: =+D3-D17 -> 0 | E18: =+D4-E17 -> 0
B21: 1 | C21: The chemical formula, based on a single atom of carbon
C23: Atomic wight C [kg/kmol] | D23: 12
C24: Atomic wight H [kg/kmol] | D24: 1
C25: Atomic wight O [kg/kmol] | D25: 16
C26: Atomic wight N [kg/kmol] | D26: 14
C27: C [kmol/kmol C] | D27: 1
C28: H [kmol/kmol C] | D28: =+(C11*D23)/(C10*D24) -> 
C29: O [kmol/kmol C] | D29: =+(C12*D23)/(C10*D25) -> 
C30: N [kmol/kmol C] | D30: =+(C13*D23)/(C10*D26) -> 
C32: molecular weight [kg/kmol] | D32: =+D23*D27+D24*D28+D25*D29+D26*D30 -> 
B34: 2 | C34: Stoichiometric Oxygen Requirements
B36: * | C36: % weight of the organic substance that becomes compost | D36: =+Input!Q11 -> 0
C37: molecular weight of compost [kg/kmol] | D37: 406
C38: kmol compost | D38: =+(D36/100)*((C17+D17+E17)/D37) -> 0
C39: kmol dry biomass | D39: =+(C17+D17+E17)/D32 -> 
C40: n [kmol compost/kmol dry biomass] | D40: =+D38/D39 -> 
B41: [kmol/kmol dry biomass] | C41: α | D41: =+(12*D40+2*D42+D43-D29)/2 -> 
C42: β | D42: =+D27-15*D40 -> 
C43: γ | D43: =+(D28-20*D40-3*D44)/2 -> 
C44: δ | D44: =+D30-D40 -> 
C45: Stoichiometric Oxygen Requirements [kgO2/kg dry biomass] | D45: =+D41*32*D39/(C17+D17+E17) -> 
C46: % O2 in dry air (weight) | D46: 23.2
C47: % N2 in dry air | D47: =100-D46 -> 76.8
C48: dry air density[kg/m3] | D48: 1.293
B49: Air requirements | C49: [m3/kg dry] | D49: =+D45/(D46/100*D48) -> 
C50: [kg dry air/kg dry biomass] | D50: =+D49*D48 -> 
B52: 3 | C52: Mass Balance
C54: Reagents [t / t tq] | D54: Products [t / t tq]
B55: total dry matter | C55: =+C17+D17+E17 -> 0
B56: O 2 | C56: =+C55*D45 -> 
B57: C O 2 | D57: =+D42*44*D39 -> 
B58: N H 3 | D58: =+D44*17*D39 -> 
B59: H 2 O | D59: =+D43*18*D39 -> 
B60: Compost Product | D60: =+D40*D39*D37 -> 
B61: CHECK | C61: =+SUM(C55:C56) ->  | D61: =+SUM(D57:D60) ->  | E61: =+C61-D61 -> 
B64: 4 | C64: Moisture
B66: * | C66: Final compost moisture % | D66: =+Input!V11 -> 0
B67: * | C67: Inlet air temperature [°C] | D67: =+Input!S11 -> 0
C68: %inlet relative moisture | D68: 75
C69: pressure [mm Hg] | D69: 760
B70: * | C70: Output air temperature [°C] | D70: =+Input!T11 -> 0
C71: %output relative moisture | D71: 100
C72: pressure [mm Hg] | D72: 760
C73: water out of the process (into compost) [t H20] | D73: =+(D60)*(D66/100)/(1-D66/100) -> 
B74: Water to be removed | C74: [t H2O/t ar] | D74: =+C18+D18+D59+E18-D73 -> 
C75: [t H2O/t dry matter] | D75: =+D74/(C17+D17+E17) -> 
C77: saturated inlet steam pressure [mmHg] | D77: =10^(-2238/(D67+273)+8.896) -> 4.991117593
C78: inlet steam pressure [mmHg] | D78: =+D77*D68/100 -> 3.743338195
C79: AIR Molecular weight | D79: =0.232*18+0.768*28 -> 25.68
C80: Amount of H20 inlet ωi [t H2O/t dry matter] | D80: =+(18*D78)/(D79*(D72-D78)) -> 0.003469503564
C81: Amount of H20 inlet referred to dry matter [t H2O/t dry] | D81: =+D80*D50 -> 
C82: saturated output steam pressure [mmHg] | D82: =10^(-2238/(D70+273)+8.896) -> 4.991117593
C83: PM gas (N2+CO2) [kg/kmol] | D83: =+((D57/(C17+D17+E17))+0.768*D50)/(D57/(C17+D17+E17)/14+0.768*D50/28) -> 
C84: Amount of H2O output ωu* [tH2O/t gas] | D84: =18*D82/(D83*(D72-D82)) -> 
C85: Amount of H20 output referred to dry matter ωu [t H2O/t dry] | D85: =+D84*(0.768*D50+D57/(C17+D17+E17)) -> 
C86: Amount of H20 removed with stoichiometric air [t H2O/t dry] | D86: =+D85-D81 -> 
C87: Quantity of H20 to be removed [t H2O/t dry] | D87: =+D75-D86 ->  | E87: CHECK | F87: difference to be removed and removed [t H20/t dry] | G87: =+D75-D86 -> 
C88: Further air to be insufflated [t H2O/t dry] | D88: =+IF(G87<=0,0,G87) -> 
C89: Amount of H20 inlet referred to dry air [t H2O/t dry] | D89: =+IF(D88=0,0,D80) -> 
C90: Amount of H20 output referred to dry air [t H2O/t dry] | D90: =+IF(D88=0,0,(18*D82)/(D79*(D72-D82))) -> 
C91: Amount of H20 removed with added air [t H2O/t dry] | D91: =+IF(D88=0,0,D90-D89) -> 
C92: added air [t air dry/t dry] | D92: =+IF(D88=0,0,D88/D91) -> 
B93: Total air used | C93: [m3/kg dry] | D93: =+IF(D88=0,D49,D94/D48) -> 
C94: [kg dry air/kg dry biomass] | D94: =+D92+D50 -> 
B97: 5 | C97: Temperature and energy
B99: * | C99: Final compost temperature [°C] | D99: =+Input!U11 -> 0
B100: * | C100: Inlet organic matter temperature [°C] | D100: =+Input!R11 -> 0
C101: energy released during the process [kJ/mol O2] | D101: 24.89
C102: Cs H20 [kJ/kg k] | D102: 4.186
C103: latent vaporization heat a 20°C λ [kcal/kg H20] | D103: 583
C104: Cs steam [kJ/kg k] | D104: 1.863
C105: Cs dry air [kJ/kg k] | D105: 1
C106: mass of H20 remaining in the compost [t H2O/t dry] | D106: =+D73/(C17+D17+E17) -> 
C107: E1 energy to heat H2O [kJ/kg dry] | D107: =+D106*D102*(D99-D100) -> 
C108: H2O mass that is evaporated and then heated [t H2O/t dry] | D108: =+((C18+D18+E18)-D73)/(C17+D17+E17) -> 
C109: E2 energy to evaporate H20 [kJ/kg dry] | D109: =+D108*D102*D103 -> 
C110: E3 energy to heat steam [kJ/kg dry] | D110: =+D108*D104*(D99-D100) -> 
C111: mass of H20 that inlets with dry air [t H2O/t dry] | D111: =+D94*D80 -> 
C112: E4 energy to heat steam [kJ/kg dry] | D112: =+D111*D104*(D99-D100) -> 
C113: mass of dry air [t air/t dry] | D113: =+D94 -> 
C114: E5 energy to heat dry air [kJ/kg dry] | D114: =+D113*D105*(D99-D100) -> 
C115: Energy required by the process [kJ/kg dry] | D115: =+D107+D109+D110+D112+D114 -> 
C116: Energy available from the process [kJ/kg dry] | D116: =+D101*(D46/100*D50)*1000/32 ->  | E116: Il prof qua prendeva l'o2 stechiometrico. Io ho preso tutta l'aria
D117: CHECK
D118: Eavai>Erequi?
D119: =+D116-D115 ->  | E119: Modificare %compost (da 20 a 40),u o T

Sheet Gasification (hidden)
A1: DATA
A2: CALCULATED
A3: USER | B3: OFMSW [t a.r.] | C3: =+Input!C2 -> 0
B4: SEWAGE SLUDGE [t a.r.] | C4: =+Input!C3 -> 0
B6: Properties of feedstock | D6: OFMSW | E6: SEWAGE SLUDGE
B7: Solidsinitial = initial feedstock concentration (%, solid) | C7: =(C14+C15)/(C3+C4)*100 ->  | D7: =+Input!AB5 -> 0 | E7: =+Input!AB7 -> 0
B8: Cfeed = carbon content of the feedstock (%, db) | C8: =+(D8/100*$C$14+E8/100*$C$15)/($C$14+$C$15)*100 ->  | D8: =+Input!AC5 -> 0 | E8: =+Input!AC7 -> 0
B9: Hfeed = hydrogen content of the feedstock (%, db) | C9: =+(D9/100*$C$14+E9/100*$C$15)/($C$14+$C$15)*100 ->  | D9: =+Input!AD5 -> 0 | E9: =+Input!AD7 -> 0
B10: Ofeed = oxygen content of the feedstock (%, db) | C10: =+(D10/100*$C$14+E10/100*$C$15)/($C$14+$C$15)*100 ->  | D10: =+Input!AE5 -> 0 | E10: =+Input!AE7 -> 0
B11: Nfeed = nitrogen content of the feedstock (%, db) | C11: =+(D11/100*$C$14+E11/100*$C$15)/($C$14+$C$15)*100 ->  | D11: =+Input!AF5 -> 0 | E11: =+Input!AF7 -> 0
C13: SolidsInitial [t dry]
B14: OFMSW [t] | C14: =+D7/100*C3 -> 0
B15: SEWAGE SLUDGE [t] | C15: =+E7/100*C4 -> 0
B19: Atomic wight C [kg/kmol] | C19: 12
B20: Atomic wight H [kg/kmol] | C20: 1
B21: Atomic wight O [kg/kmol] | C21: 16
B22: Atomic wight N [kg/kmol] | C22: 14
A25: 1 | B25: The chemical formula, based on a single atom of carbon
B27: C [kmol/kmol C] | C27: 1
B28: H [kmol/kmol C] | C28: =+(C9*C19)/(C8*C20) -> 
B29: O [kmol/kmol C] | C29: =+(C10*C19)/(C8*C21) -> 
B30: N [kmol/kmol C] | C30: =+(C11*C19)/(C8*C22) -> 
B32: molecular weight [kg/kmol] | C32: =+C19*C27+C20*C28+C21*C29+C30*C22 -> 
A34: 2 | B34: Calculation of w
B36: Moisture content % | C36: =100-C7 ->  | D36: *
B37: Moisture content per kmol of feedstock | C37: =+C36/100 ->  | D37: *
B38: Moisture content [t H2O/t dry matter] | C38: 0.15 | D38: 15-20
B39: w [kmol H2O/kmol dry matter] | C39: =+(C32*C38)/(18*(1-C38)) -> 
A42: 3 | B42: Calculation of m
B44: AIR stoichiometric [kmol air/kmol dry matter] | C44: =+C8/100*12.71+C9/100*38.08+C11/100*1.27-C10/100*4.76 -> 
B45: O2 stoichiometric [kmol O2/kmol dry matter] | C45: =+C44*0.21 -> 
B46: ER | C46: 0.25
B47: m [kmol O2/kmol dry matter] | C47: =+C46*C45 -> 
A50: 4 | B50: Calculation of k1 and k2
B52: ln(k1) | C52: =7082.848/C58-6.567*LN(C58)+((7.466*10^-3)/2)*C58+((-2.164*10^-6)/6)*(C58^2)+((0.701*10^-5)/(2*(C58^2)))+32.541 -> -3.09508672
B53: k1 | C53: =+EXP(C52) -> 0.04527108638
B55: ln(k2) | C55: =5872.46/C58+1.86*LN(C58)+(-2.7*10^-4)*C58-58200/(C58^2)-18.014 -> 0.09762162742
B56: k2 | C56: =+EXP(C55) -> 1.102545533
B58: T [K] | C58: =800+273.15 -> 1073.15
A60: 5 | B60: Newton-Raphson
B62: k1 | C62: =+C53 -> 0.04527108638
B63: k2 | C63: =+C56 -> 1.102545533
B64: w | C64: =+C39 -> 
B65: m | C65: =+C47 -> 
B66: a | C66: =+C27 -> 1
B67: b | C67: =+C28 -> 
B68: c | C68: =+C29 -> 
B69: d | C69: =+C30 -> 
A71: CO | B71: x0(1) | C71: 1
A72: CO2 | B72: x0(2) | C72: 1
A73: H2 | B73: x0(3) | C73: 1
A74: H2O | B74: x0(4) | C74: 1
A75: CH4 | B75: x0(5) | C75: 1
A76: N2 | B76: x0(6) | C76: 1
B79: F1 | C79: =+C87+C88+C91-C27 -> 0 | D79: = | E79: 0
B80: F2 | C80: =2*C89+2*C90+4*C91-C28-2*C39 ->  | D80: = | E80: 0
B81: F3 | C81: =+C87+2*C88+C90-C29-C39-2*C47 ->  | D81: = | E81: 0
B82: F4 | C82: =2*C92-C30-2*3.76*C47 ->  | D82: = | E82: 0
B83: F5 | C83: =+C88*C89*C62-C87*C90 -> -1.752944793e-09 | D83: = | E83: 0
B84: F6 | C84: =+(C89^2)*C63-C91*(SUM(C87:C92)) -> 9.38012516e-08 | D84: = | E84: 0
A87: CO | B87: x1 [kmol/kmol dry matter] | C87: 0.2043887377 | D87: % | E87: =+C87/$C$93*100 -> 7.1299861
A88: CO2 | B88: x2 [kmol/kmol dry matter] | C88: 0.6213405132 | D88: % | E88: 21.67511416
A89: H2 | B89: x3 [kmol/kmol dry matter] | C89: 0.6731287837 | D89: % | E89: 23.48171883
A90: H2O | B90: x4 [kmol/kmol dry matter] | C90: 0.09263856709 | D90: % | E90: 3.231644283
A91: CH4 | B91: x5 [kmol/kmol dry matter] | C91: 0.1742707491 | D91: % | E91: 6.079337016
A92: N2 | B92: x6 [kmol/kmol dry matter] | C92: 1.100840449 | D92: % | E92: 38.40219961
B93: tot | C93: =+SUM(C87:C92) -> 2.8666078 | E93: =+SUM(E87:E92) -> 100
B96: kmol dry matter | C96: =+((C14+C15)*1000)/C32 -> 
A98: CO | B98: x1 [kmol] | C98: =+C87*$C$96 -> 
A99: CO2 | B99: x2 [kmol]
A100: H2 | B100: x3 [kmol]
A101: H2O | B101: x4 [kmol]
A102: CH4 | B102: x5 [kmol]
A103: N2 | B103: x6 [kmol]
B104: tot | C104: =+SUM(C98:C103) -> 
B105: tot [Nm3] | C105: =+C104*22.4 -> 
B106: tot [Nm3/h] | C106: =+C105/C128 -> 
A109: 6 | B109: Process efficiency
B110: Heat of combustion H2 [MJ/kmol] | C110: 241.8
B111: Heat of combustion CO [MJ/kmol] | C111: 283
B112: Heat of combustion CH4 [MJ/kmol] | C112: 802.6
B114: LHV Syngas [MJ/kmol] | C114: =+E87/100*C111+C110*E89/100+E91/100*C112 -> 125.7494157
B115: LHV Syngas [MJ/Nm3] | C115: =+C114/22.4 -> 5.613813201
B116: Syngas [MJ/year] | C116: =+C114*C104 -> 
B118: LHV Feedstock [MJ/kmol] | C118: =((80.8*C8+345.56*C9-(345.56/8)*C10)*4.186)*C32*10^-3 -> 
B119: Feedstock [MJ/year] | C119: =+C118*C96 -> 
B121: η cold (%) | C121: =+C116/C119*100 -> 
A124: 7 | B124: Input Power
B126: LHV Syngas [MJ/Nm3] | C126: =+C115 -> 5.613813201
B127: LHV Syngas [kWh/Nm3] | C127: =+C126*1000/3600 -> 1.559392556
B128: Year operating hours | C128: 8000
B129: Input power [kW] | C129: =+(C105/C128)*C127 -> 
A132: 8 | B132: CHP Electricity
B134: η ele | C134: =+Input!AB11 -> 0
B135: Motor power [kWele] | C135: =+C134/100*C129 -> 
B136: Electricity produced by the CHP engine [kWhele/y] | C136: =+C135*C128 -> 
B137: Annual energy used by utilities [kWhele/y] | C137: =0.1*C136 ->  | D137: 0.1
B138: Power for the grid [kWhele/y] | C138: =+C136-C137 -> 
A143: 9 | B143: CHP Thermal
B145: η thermal | C145: =+Input!AC11 -> 0
B146: Engine thermal power [kWth] | C146: =+C145*C129/100 -> 
B147: Thermal energy produced by the CHP engine [kWhth/y] | C147: =+C146*C128 -> 
B148: Annual energy used by utilities [kWhth/y] | C148: =0.05*C147 ->  | D148: 0.05
B149: Energy available for heating [kWhth/y] | C149: =C147-C148 -> 

Sheet HTC (hidden)
A1: DATA
A2: CALCULATED
A3: USER | C3: OFMSW [t a.r.] | D3: =+Input!C2 -> 0
C4: SEWAGE SLUDGE [t a.r.] | D4: =+Input!C3 -> 0
B5: SolidsInitial [t dry] | C5: OFMSW [t] | D5: =+(D9/100)*D3 -> 0
C6: SEWAGE SLUDGE [t] | D6: =+(E9/100)*D4 -> 0
B8: Properties of feedstock | D8: OFMSW | E8: SEWAGE SLUDGE
B9: Solidsinitial = initial feedstock concentration (%, solid) | C9: =+((D5+D6)/(D3+D4))*100 ->  | D9: =+Input!AQ5 -> 45 | E9: =+Input!AQ7 -> 7.5
B10: Cfeed = carbon content of the feedstock (%, db) | C10: =((D5*((D10)/100)+D6*((E10)/100))/(D5+D6))*100 ->  | D10: =+Input!AR5 -> 44.19 | E10: =+Input!AR7 -> 33.01
B11: Hfeed = hydrogen content of the feedstock (%, db) | C11: =((D5*((D11)/100)+D6*((E11)/100))/(D5+D6))*100 ->  | D11: =+Input!AS5 -> 5.79 | E11: =+Input!AS7 -> 5.56
B12: Ofeed = oxygen content of the feedstock (%, db) | C12: =((D5*((D12)/100)+D6*((E12)/100))/(D5+D6))*100 ->  | D12: =+Input!AT5 -> 40.92 | E12: =+Input!AT7 -> 33.17
B13: Ashfeed = ash content of the feedstock (%, db) | C13: =((D5*((D13)/100)+D6*((E13)/100))/(D5+D6))*100 ->  | D13: =+Input!AU5 -> 7.44 | E13: =+Input!AU7 -> 28.34
B14: VMfeed = volatile matter content of the feedstock (%,db) | C14: =((D5*((D14)/100)+D6*((E14)/100))/(D5+D6))*100 ->  | D14: =+Input!AV5 -> 75.11 | E14: =+Input!AV7 -> 67.58
B15: FCfeed = fixed carbon content of the feedstock (%, db) | C15: =((D5*((D15)/100)+D6*((E15)/100))/(D5+D6))*100 ->  | D15: =+Input!AW5 -> 16.32 | E15: =+Input!AW7 -> 3.89
B21: Process parameters | D21: Recommended
B22: Solidsinitial = initial feedstock concentration (%, solid) | C22: 18 | D22: 1-47 (18)
B23: Tfinal = final reaction temperature (°C) | C23: =+Input!AQ11 -> 240 | D23: 180-320 (240)
B24: t = reaction time (min) | C24: =+Input!AR11 -> 920 | D24: 5-7200 (920)
B25: HT = heating time (min) | C25: =+Input!AS11 -> 81 | D25: 0.4-310 (81)
B26: HT/t = heating time to reaction time ratio | C26: =+C25/C24 -> 0.08804347826 | D26: 0.01-4 (0.5) | E26: HT/t
B27: HR = heating rate (°C/min) | C27: =+(C23-25)/C25 -> 2.654320988 | D27: 0.6-580 (28) | E27: (T-25)/HT
B28: V = volume (mL) | C28: =+Input!AT11 -> 2870 | D28: 5-25000 (2870)
B29: VR = volume ratio | C29: =+Input!AU11 -> 0.4 | D29: 0.04-0.98 (0.40)
A33: 1 | B33: HHV Feedstock
B35: LHV Feedstock [kcal/kg dry] | C35: =80.8*C10+345.56*C11-(345.56/8)*C12 -> 
B36: LHV Feedstock [kJ/g dry] | C36: =+C35*4.186/10^3 -> 
A39: 2 | B39: MLR Model
B41: Solid Yield (%, db) | C41: =-1.12*C13-1.22*C14-1.58*C15+1.63*C10-4.89*C11-0.73*C12+0.43*C22-0.21*C23+9.7*C26+1.36*C27-22.19*C29+212.76 -> 
B42: Hydrochar Carbon Content (%C, db) | C42: =-0.94*C13-0.75*C14+0.55*C15+0.4*C10+4.18*C11+0.3*C12+0.0005*C24-5.65*C26-0.36*C27-0.00009*C28-12.68 -> 
B43: Energy content (kJ/g, db) | C43: =-0.45*C13-0.43*C14+0.41*C15+2.35*C11-0.16*C23+0.0005*C24+0.52*C25-2.11*C26+25.25*C27-12.73*C29-22.74 -> 
B44: Norm. C in solid (g C/g dry feedstock) | C44: =-0.0058*C13-0.0072*C14-0.0061*C15+0.0181*C10-0.0331*C11-0.0031*C12+0.0027*C22-0.0013*C23-0.0005*C25+0.0133*C26-0.1447*C29+0.922 -> 
B45: Norm. C in liquid (g C/g dry feedstock) | C45: =0.0049*C13+0.0137*C10-0.0469*C11+0.0043*C12-0.0033*C22+0.0006*C23-7.39*(10^-6)*C24-0.0007*C25-0.0002*C27+0.2209*C29-0.5406 -> 
B46: Norm. C in gas (g C/g dry feedstock) | C46: =0.0005*C14+0.003*C15-0.0012*C10+0.0058*C11+0.0006*C12+0.0002*C23+9.53*(10^-7)*C24-0.0082*C26-0.00006*C27-0.022*C29-0.0995 -> 
A50: 3 | B50: Hydrochar Carbon content and Solid Yield Calculate
B52: Solid Yield (t dry/year) | C52: =+(C41/100)*(D5+D6) -> 
B53: Hydrochar Carbon Content (t) | C53: =+C44*(D5+D6) -> 
B54: Hydrochar Carbon Content (%C, db) | C54: =+C53/C52*100 -> 
A57: 4 | B57: Input power
B59: Energy content (kJ/g, db) | C59: =+C43 -> 
B60: Energy content (MJ/t, db) | C60: =+C59*10^3 -> 
B61: Energy content (kWh/t, db) | C61: =+C60*0.277777777777778 -> 
B62: Year operating hours | C62: 8000
B63: Hydrochar production (t dry/h) | C63: =+C52/C62 -> 
B64: Input power (kW) | C64: =+C61*C63 -> 

Sheet HTC+Gasification (hidden)
A1: DATA
A2: CALCULATED
B3: HYDROCHAR [t a.r.] | C3: =+IF(AND(AnaerobicDigestion!C10="Wet"),AnaerobicDigestion!F34,IF(AND(AnaerobicDigestion!C10="Semy-Dry"),AnaerobicDigestion!N34,IF(AND(AnaerobicDigestion!C10="Dry"),AnaerobicDigestion!V34,0))) -> 
B6: Properties of feedstock | D6: HYDROCHAR
B7: Solidsinitial = initial feedstock concentration (%, solid) | C7: =+D7 -> 80 | D7: 80
B8: Cfeed = carbon content of the feedstock (%, db) | C8: =(C14*((D8)/100)/(C14))*100 ->  | D8: =+HTC!C54 -> 
B9: Hfeed = hydrogen content of the feedstock (%, db) | C9: =(C14*((D9)/100))/(C14)*100 ->  | D9: 3
B10: Ofeed = oxygen content of the feedstock (%, db) | C10: =((C14*((D10)/100))/(C14))*100 ->  | D10: 32
B11: Nfeed = nitrogen content of the feedstock (%, db) | C11: =((C14*((D11)/100))/(C14))*100 ->  | D11: 0.2
C13: SolidsInitial [t dry]
B14: HYDROCHAR [t] | C14: =+HTC!C52 -> 
B19: Atomic wight C [kg/kmol] | C19: 12
B20: Atomic wight H [kg/kmol] | C20: 1
B21: Atomic wight O [kg/kmol] | C21: 16
B22: Atomic wight N [kg/kmol] | C22: 14
A25: 1 | B25: The chemical formula, based on a single atom of carbon
B27: C [kmol/kmol C] | C27: 1
B28: H [kmol/kmol C] | C28: =+(C9*C19)/(C8*C20) -> 
B29: O [kmol/kmol C] | C29: =+(C10*C19)/(C8*C21) -> 
B30: N [kmol/kmol C] | C30: =+(C11*C19)/(C8*C22) -> 
B32: molecular weight [kg/kmol] | C32: =+C19*C27+C20*C28+C21*C29+C30*C22 -> 
A34: 2 | B34: Calculation of w
B36: Moisture content % | C36: =100-C7 -> 20 | D36: *
B37: Moisture content per kmol of feedstock | C37: =+C36/100 -> 0.2 | D37: *
B38: Moisture content [t H2O/t dry matter] | C38: 0.2 | D38: 15-20
B39: w [kmol H2O/kmol dry matter] | C39: =+(C32*C38)/(18*(1-C38)) -> 
A42: 3 | B42: Calculation of m
B44: AIR stoichiometric [kmol air/kmol dry matter] | C44: =+C8/100*12.71+C9/100*38.08+C11/100*1.27-C10/100*4.76 -> 
B45: O2 stoichiometric [kmol O2/kmol dry matter] | C45: =+C44*0.21 -> 
B46: ER | C46: 0.2
B47: m [kmol O2/kmol dry matter] | C47: =+C46*C45 -> 
A50: 4 | B50: Calculation of k1 and k2
B52: ln(k1) | C52: =7082.848/C58-6.567*LN(C58)+((7.466*10^-3)/2)*C58+((-2.164*10^-6)/6)*(C58^2)+((0.701*10^-5)/(2*(C58^2)))+32.541 -> -2.608071793
B53: k1 | C53: =+EXP(C52) -> 0.07367647039
B55: ln(k2) | C55: =5872.46/C58+1.86*LN(C58)+(-2.7*10^-4)*C58-58200/(C58^2)-18.014 -> 0.2847348925
B56: k2 | C56: =+EXP(C55) -> 1.329409545
B58: T [K] | C58: =750+273.15 -> 1023.15
A60: 5 | B60: Newton-Raphson
B62: k1 | C62: =+C53 -> 0.07367647039
B63: k2 | C63: =+C56 -> 1.329409545
B64: w | C64: =+C39 -> 
B65: m | C65: =+C47 -> 
B66: a | C66: =+C27 -> 1
B67: b | C67: =+C28 -> 
B68: c | C68: =+C29 -> 
B69: d | C69: =+C30 -> 
A71: CO | B71: x0(1) | C71: 1
A72: CO2 | B72: x0(2) | C72: 1
A73: H2 | B73: x0(3) | C73: 1
A74: H2O | B74: x0(4) | C74: 1
A75: CH4 | B75: x0(5) | C75: 1
A76: N2 | B76: x0(6) | C76: 1
B79: F1 | C79: =+C87+C88+C91-C27 -> 2.980232239e-08 | D79: = | E79: 0
B80: F2 | C80: =2*C89+2*C90+4*C91-C28-2*C39 ->  | D80: = | E80: 0
B81: F3 | C81: =+C87+2*C88+C90-C29-C39-2*C47 ->  | D81: = | E81: 0
B82: F4 | C82: =2*C92-C30-2*3.76*C47 ->  | D82: = | E82: 0
B83: F5 | C83: =+C88*C89*C62-C87*C90 -> -0.004411944826 | D83: = | E83: 0
B84: F6 | C84: =+(C89^2)*C63-C91*(SUM(C87:C92)) -> -0.2939508232 | D84: = | E84: 0
A87: CO | B87: x1 [kmol/kmol dry matter] | C87: 0.4486684501 | D87: % | E87: =+C87/$C$93*100 -> 18.19442575
A88: CO2 | B88: x2 [kmol/kmol dry matter] | C88: 0.4048886895 | D88: % | E88: 16.41906668
A89: H2 | B89: x3 [kmol/kmol dry matter] | C89: 0.224784404 | D89: % | E89: 9.115468558
A90: H2O | B90: x4 [kmol/kmol dry matter] | C90: 0.02477873489 | D90: % | E90: 1.004828515
A91: CH4 | B91: x5 [kmol/kmol dry matter] | C91: 0.1464428902 | D91: % | E91: 5.938559512
A92: N2 | B92: x6 [kmol/kmol dry matter] | C92: 1.216403365 | D92: % | E92: 49.32765098
B93: tot | C93: =+SUM(C87:C92) -> 2.465966534 | E93: =+SUM(E87:E92) -> 100
B96: kmol dry matter | C96: =+((C14)*1000)/C32 -> 
A98: CO | B98: x1 [kmol] | C98: =+C87*$C$96 -> 
A99: CO2 | B99: x2 [kmol]
A100: H2 | B100: x3 [kmol]
A101: H2O | B101: x4 [kmol]
A102: CH4 | B102: x5 [kmol]
A103: N2 | B103: x6 [kmol]
B104: tot | C104: =+SUM(C98:C103) -> 
B105: tot [Nm3] | C105: =+C104*22.4 -> 
A109: 6 | B109: Process efficiency
B110: Heat of combustion H2 [MJ/kmol] | C110: 241.8
B111: Heat of combustion CO [MJ/kmol] | C111: 283
B112: Heat of combustion CH4 [MJ/kmol] | C112: 802.6
B114: LHV Syngas [MJ/kmol] | C114: =+E87/100*C111+C110*E89/100+E91/100*C112 -> 121.1943065
B115: LHV Syngas [MJ/Nm3] | C115: =+C114/22.4 -> 5.410460112
B116: Syngas [MJ/year] | C116: =+C114*C104 -> 
B118: LHV Feedstock [MJ/kmol] | C118: =((80.8*C8+345.56*C9-(345.56/8)*C10)*4.186)*C32*10^-3 -> 
B119: Feedstock [MJ/year] | C119: =+C118*C96 -> 
B121: η cold (%) | C121: =+C116/C119*100 -> 
A124: 7 | B124: Input Power
B126: LHV Syngas [MJ/Nm3] | C126: =+C115 -> 5.410460112
B127: LHV Syngas [kWh/Nm3] | C127: =+C126*1000/3600 -> 1.502905587
B128: Year operating hours | C128: 8000
B129: Input power [kW] | C129: =+(C105/C128)*C127 -> 
A132: 8 | B132: CHP Electricity
B134: η ele | C134: 30
B135: Motor power [kWele] | C135: =+C134/100*C129 -> 
B136: Electricity produced by the CHP engine [kWhele/y] | C136: =+C135*C128 -> 
B137: Annual energy used by utilities [kWhele/y] | C137: =0.1*C136 ->  | D137: 0.1
B138: Power for the grid [kWhele/y] | C138: =+C136-C137 -> 
A143: 9 | B143: CHP Thermal
B145: η thermal | C145: 40
B146: Engine thermal power [kWth] | C146: =+C145*C129/100 -> 
B147: Thermal energy produced by the CHP engine [kWhth/y] | C147: =+C146*C128 -> 
B148: Annual energy used by utilities [kWhth/y] | C148: =0.05*C147 ->  | D148: 0.05
B149: Energy available for heating [kWhth/y] | C149: =C147-C148 -> 
